Workbook

Sheet Main
B10: 2019-02-21
B12: Sheet No. | C12: Template Name | D12: Summary
B13: 1 | C13: Future Intra | D13: For Intraday trading in F&O segment
B14: 2 | C14: Cash Intra | D14: For Intraday trading in cash market segment
B15: 3 | C15: Mid-cap Intra | D15: For Intraday trading in Mid-cap stocks
B16: 4 | C16: Bulk Deals | D16: Reveals Bulk Deals carried on NSE & BSE
B17: 5 | C17: Call Tracker

Sheet Future Intra
M5: Back to Main Page
A6: FOR INTRA DAY TRADING | L6: =Main!B10 -> 2019-02-21
A9: Sr.no | B9: Sector | C9: Scrip | D9: CLOSE RATE | E9: Pivot Point | F9: Supports | I9: Resistances
B10: Sector | D10: Point | E10: Point | F10: S1 | G10: S2 | H10: S3 | I10: R1 | J10: R2 | K10: R3 | L10: HIGH | M10: LOW | N10: OI | O10: % Change in OI
A11: 1 | B11: Index | C11: BANKNIFTY | D11: 27017.95 | E11: 26933.48 | F11: 26814.62 | G11: 26611.28 | H11: 26492.42 | I11: 27136.82 | J11: 27255.68 | K11: 27459.02 | L11: 27052.35 | M11: 26730.15 | N11: 1523080 | O11: -7.09%
A12: 2 | B12: Index | C12: NIFTY | D12: 10751.85 | E12: 10723.93 | F12: 10677.87 | G12: 10603.88 | H12: 10557.82 | I12: 10797.92 | J12: 10843.98 | K12: 10917.97 | L12: 10770 | M12: 10649.95 | N12: 24342900 | O12: -0.29%
A13: 3 | B13: Index | C13: NIFTYIT | D13: 15641.00 | E13: 15573.67 | F13: 15462.33 | G13: 15283.67 | H13: 15172.33 | I13: 15752.33 | J13: 15863.67 | K13: 16042.33 | L13: 15685 | M13: 15395 | N13: 23600 | O13: -19.04%
A14: 4 | B14: Cement | C14: ACC | D14: 1390.15 | E14: 1383.12 | F14: 1369.23 | G14: 1348.32 | H14: 1334.43 | I14: 1404.03 | J14: 1417.92 | K14: 1438.83 | L14: 1397 | M14: 1362.2 | N14: 2246400 | O14: 0.16%
A15: 5 | B15: Others | C15: ADANIENT | D15: 120.80 | E15: 120.40 | F15: 118.80 | G15: 116.80 | H15: 115.20 | I15: 122.40 | J15: 124.00 | K15: 126.00 | L15: 122 | M15: 118.4 | N15: 41420000 | O15: 0.00%
A16: 6 | B16: Others | C16: ADANIPORTS | D16: 355.00 | E16: 350.98 | F16: 345.62 | G16: 336.23 | H16: 330.87 | I16: 360.37 | J16: 365.73 | K16: 375.12 | L16: 356.35 | M16: 341.6 | N16: 19802500 | O16: -3.01%
A17: 7 | B17: Power | C17: ADANIPOWER | D17: 39.95 | E17: 39.38 | F17: 37.37 | G17: 34.78 | H17: 32.77 | I17: 41.97 | J17: 43.98 | K17: 46.57 | L17: 41.4 | M17: 36.8 | N17: 163940000 | O17: 1.27%
A18: 8 | B18: Pharma | C18: AJANTPHARM | D18: 970.40 | E18: 963.88 | F18: 951.57 | G18: 932.73 | H18: 920.42 | I18: 982.72 | J18: 995.03 | K18: 1013.87 | L18: 976.2 | M18: 945.05 | N18: 1207500 | O18: -1.59%
A19: 9 | B19: Banking | C19: ALBK | D19: 41.55 | E19: 40.93 | F19: 39.92 | G19: 38.28 | H19: 37.27 | I19: 42.57 | J19: 43.58 | K19: 45.22 | L19: 41.95 | M19: 39.3 | N19: 32422000 | O19: 5.86%
A20: 10 | B20: Automobile | C20: AMARAJABAT | D20: 725.35 | E20: 727.07 | F20: 710.63 | G20: 695.92 | H20: 679.48 | I20: 741.78 | J20: 758.22 | K20: 772.93 | L20: 743.5 | M20: 712.35 | N20: 1099700 | O20: 1.88%
A21: 11 | B21: Cement | C21: AMBUJACEM | D21: 206.05 | E21: 204.10 | F21: 201.40 | G21: 196.75 | H21: 194.05 | I21: 208.75 | J21: 211.45 | K21: 216.10 | L21: 206.8 | M21: 199.45 | N21: 15722500 | O21: -1.75%
A22: 12 | B22: Others | C22: APOLLOHOSP | D22: 1133.95 | E22: 1135.53 | F22: 1123.22 | G22: 1112.48 | H22: 1100.17 | I22: 1146.27 | J22: 1158.58 | K22: 1169.32 | L22: 1147.85 | M22: 1124.8 | N22: 1153000 | O22: 1.63%
A23: 13 | B23: Automobile | C23: APOLLOTYRE | D23: 209.50 | E23: 208.30 | F23: 205.60 | G23: 201.70 | H23: 199.00 | I23: 212.20 | J23: 214.90 | K23: 218.80 | L23: 211 | M23: 204.4 | N23: 9885000 | O23: 5.04%
A24: 14 | B24: Textile | C24: ARVIND | D24: 76.80 | E24: 76.77 | F24: 76.23 | G24: 75.67 | H24: 75.13 | I24: 77.33 | J24: 77.87 | K24: 78.43 | L24: 77.3 | M24: 76.2 | N24: 6690000 | O24: 3.18%
A25: 15 | B25: Automobile | C25: ASHOKLEY | D25: 81.30 | E25: 80.98 | F25: 80.17 | G25: 79.03 | H25: 78.22 | I25: 82.12 | J25: 82.93 | K25: 84.07 | L25: 81.8 | M25: 79.85 | N25: 82992000 | O25: 0.58%
A26: 16 | B26: FMCG | C26: ASIANPAINT | D26: 1398.20 | E26: 1391.98 | F26: 1383.97 | G26: 1369.73 | H26: 1361.72 | I26: 1406.22 | J26: 1414.23 | K26: 1428.47 | L26: 1400 | M26: 1377.75 | N26: 6181200 | O26: -1.44%
A27: 17 | B27: Pharma | C27: AUROPHARMA | D27: 723.95 | E27: 720.40 | F27: 714.60 | G27: 705.25 | H27: 699.45 | I27: 729.75 | J27: 735.55 | K27: 744.90 | L27: 726.2 | M27: 711.05 | N27: 19187000 | O27: -1.24%
A28: 18 | B28: Banking | C28: AXISBANK | D28: 701.20 | E28: 700.15 | F28: 697.35 | G28: 693.50 | H28: 690.70 | I28: 704.00 | J28: 706.80 | K28: 710.65 | L28: 702.95 | M28: 696.3 | N28: 40702800 | O28: -0.12%
A29: 19 | B29: Automobile | C29: BAJAJ-AUTO | D29: 2788.25 | E29: 2780.03 | F29: 2755.12 | G29: 2721.98 | H29: 2697.07 | I29: 2813.17 | J29: 2838.08 | K29: 2871.22 | L29: 2804.95 | M29: 2746.9 | N29: 2117500 | O29: 3.80%
A30: 20 | B30: Others | C30: BAJAJFINSV | D30: 6027.20 | E30: 6011.55 | F30: 5969.65 | G30: 5912.10 | H30: 5870.20 | I30: 6069.10 | J30: 6111.00 | K30: 6168.55 | L30: 6053.45 | M30: 5954 | N30: 773250 | O30: 0.28%
A31: 21 | B31: Finance | C31: BAJFINANCE | D31: 2609.55 | E31: 2600.17 | F31: 2583.58 | G31: 2557.62 | H31: 2541.03 | I31: 2626.13 | J31: 2642.72 | K31: 2668.68 | L31: 2616.75 | M31: 2574.2 | N31: 6129000 | O31: -1.16%
A32: 22 | B32: Others | C32: BALKRISIND | D32: 829.95 | E32: 829.63 | F32: 824.57 | G32: 819.18 | H32: 814.12 | I32: 835.02 | J32: 840.08 | K32: 845.47 | L32: 834.7 | M32: 824.25 | N32: 2300000 | O32: -2.18%
A33: 23 | B33: Banking | C33: BANKBARODA | D33: 103.20 | E33: 103.28 | F33: 102.07 | G33: 100.93 | H33: 99.72 | I33: 104.42 | J33: 105.63 | K33: 106.77 | L33: 104.5 | M33: 102.15 | N33: 61948000 | O33: 1.05%
A34: 24 | B34: Banking | C34: BANKINDIA | D34: 82.10 | E34: 82.08 | F34: 81.02 | G34: 79.93 | H34: 78.87 | I34: 83.17 | J34: 84.23 | K34: 85.32 | L34: 83.15 | M34: 81 | N34: 24396000 | O34: 4.04%
A35: 25 | B35: FMCG | C35: BATAINDIA | D35: 1261.60 | E35: 1258.45 | F35: 1251.75 | G35: 1241.90 | H35: 1235.20 | I35: 1268.30 | J35: 1275.00 | K35: 1284.85 | L35: 1265.15 | M35: 1248.6 | N35: 3243350 | O35: 1.53%
A36: 26 | B36: Capital_Goods | C36: BEL | D36: 77.40 | E36: 77.47 | F36: 76.13 | G36: 74.87 | H36: 73.53 | I36: 78.73 | J36: 80.07 | K36: 81.33 | L36: 78.8 | M36: 76.2 | N36: 35766000 | O36: -2.02%
A37: 27 | B37: Infrastructure | C37: BEML | D37: 777.95 | E37: 773.48 | F37: 764.47 | G37: 750.98 | H37: 741.97 | I37: 786.97 | J37: 795.98 | K37: 809.47 | L37: 782.5 | M37: 760 | N37: 1312500 | O37: -0.74%
A38: 28 | B38: Others | C38: BERGEPAINT | D38: 294.85 | E38: 293.43 | F38: 290.42 | G38: 285.98 | H38: 282.97 | I38: 297.87 | J38: 300.88 | K38: 305.32 | L38: 296.45 | M38: 289 | N38: 5035800 | O38: -4.23%
A39: 29 | B39: Finance | C39: BHARATFIN | D39: 933.70 | E39: 931.35 | F39: 926.70 | G39: 919.70 | H39: 915.05 | I39: 938.35 | J39: 943.00 | K39: 950.00 | L39: 936 | M39: 924.35 | N39: 5121000 | O39: -0.99%
A40: 30 | B40: Automobile | C40: BHARATFORG | D40: 473.70 | E40: 469.65 | F40: 464.35 | G40: 455.00 | H40: 449.70 | I40: 479.00 | J40: 484.30 | K40: 493.65 | L40: 474.95 | M40: 460.3 | N40: 11894400 | O40: -3.16%
A41: 31 | B41: Telecom | C41: BHARTIARTL | D41: 310.50 | E41: 309.55 | F41: 307.10 | G41: 303.70 | H41: 301.25 | I41: 312.95 | J41: 315.40 | K41: 318.80 | L41: 312 | M41: 306.15 | N41: 37988200 | O41: 4.22%
A42: 32 | B42: Capital_Goods | C42: BHEL | D42: 63.05 | E42: 62.87 | F42: 62.28 | G42: 61.52 | H42: 60.93 | I42: 63.63 | J42: 64.22 | K42: 64.98 | L42: 63.45 | M42: 62.1 | N42: 33937500 | O42: 1.19%
A43: 33 | B43: Pharma | C43: BIOCON | D43: 620.75 | E43: 618.65 | F43: 615.35 | G43: 609.95 | H43: 606.65 | I43: 624.05 | J43: 627.35 | K43: 632.75 | L43: 621.95 | M43: 613.25 | N43: 5729400 | O43: -1.88%
A44: 34 | B44: Automobile | C44: BOSCHLTD | D44: 18245.80 | E44: 18116.97 | F44: 17943.93 | G44: 17642.07 | H44: 17469.03 | I44: 18418.83 | J44: 18591.87 | K44: 18893.73 | L44: 18290 | M44: 17815.1 | N44: 132960 | O44: -0.63%
A45: 35 | B45: Oil_Gas | C45: BPCL | D45: 330.45 | E45: 329.27 | F45: 325.18 | G45: 319.92 | H45: 315.83 | I45: 334.53 | J45: 338.62 | K45: 343.88 | L45: 333.35 | M45: 324 | N45: 10953000 | O45: 7.78%
A46: 36 | B46: FMCG | C46: BRITANNIA | D46: 2930.75 | E46: 2922.35 | F46: 2904.95 | G46: 2879.15 | H46: 2861.75 | I46: 2948.15 | J46: 2965.55 | K46: 2991.35 | L46: 2939.75 | M46: 2896.55 | N46: 3489600 | O46: 0.37%
A47: 37 | B47: Pharma | C47: CADILAHC | D47: 314.50 | E47: 313.62 | F47: 311.93 | G47: 309.37 | H47: 307.68 | I47: 316.18 | J47: 317.87 | K47: 320.43 | L47: 315.3 | M47: 311.05 | N47: 9915200 | O47: 0.99%
A48: 38 | B48: Banking | C48: CANBK | D48: 219.45 | E48: 218.73 | F48: 216.92 | G48: 214.38 | H48: 212.57 | I48: 221.27 | J48: 223.08 | K48: 225.62 | L48: 220.55 | M48: 216.2 | N48: 14886000 | O48: 3.12%
A49: 39 | B49: Others | C49: CANFINHOME | D49: 254.40 | E49: 251.57 | F49: 247.23 | G49: 240.07 | H49: 235.73 | I49: 258.73 | J49: 263.07 | K49: 270.23 | L49: 255.9 | M49: 244.4 | N49: 4420800 | O49: 3.50%
A50: 40 | B50: Oil_Gas | C50: CASTROLIND | D50: 150.50 | E50: 149.82 | F50: 148.63 | G50: 146.77 | H50: 145.58 | I50: 151.68 | J50: 152.87 | K50: 154.73 | L50: 151 | M50: 147.95 | N50: 6198200 | O50: -2.67%
A51: 41 | B51: Automobile | C51: CEATLTD | D51: 1058.85 | E51: 1056.50 | F51: 1048.55 | G51: 1038.25 | H51: 1030.30 | I51: 1066.80 | J51: 1074.75 | K51: 1085.05 | L51: 1064.45 | M51: 1046.2 | N51: 1369200 | O51: 1.24%
A52: 42 | B52: Textile | C52: CENTURYTEX | D52: 743.20 | E52: 736.23 | F52: 727.52 | G52: 711.83 | H52: 703.12 | I52: 751.92 | J52: 760.63 | K52: 776.32 | L52: 744.95 | M52: 720.55 | N52: 5281200 | O52: -2.28%
A53: 43 | B53: Power | C53: CESC | D53: 675.00 | E53: 670.67 | F53: 664.33 | G53: 653.67 | H53: 647.33 | I53: 681.33 | J53: 687.67 | K53: 698.33 | L53: 677 | M53: 660 | N53: 1192950 | O53: -0.18%
A54: 44 | B54: Power | C54: CGPOWER | D54: 30.40 | E54: 30.00 | F54: 29.15 | G54: 27.90 | H54: 27.05 | I54: 31.25 | J54: 32.10 | K54: 33.35 | L54: 30.85 | M54: 28.75 | N54: 42720000 | O54: 1.42%
A55: 45 | B55: Others | C55: CHENNPETRO | D55: 207.35 | E55: 207.65 | F55: 204.75 | G55: 202.15 | H55: 199.25 | I55: 210.25 | J55: 213.15 | K55: 215.75 | L55: 210.55 | M55: 205.05 | N55: 2118600 | O55: 2.53%
A56: 46 | B56: Others | C56: CHOLAFIN | D56: 1188.95 | E56: 1186.00 | F56: 1172.45 | G56: 1155.95 | H56: 1142.40 | I56: 1202.50 | J56: 1216.05 | K56: 1232.55 | L56: 1199.55 | M56: 1169.5 | N56: 867000 | O56: 1.29%
A57: 47 | B57: Pharma | C57: CIPLA | D57: 542.55 | E57: 542.75 | F57: 539.45 | G57: 536.35 | H57: 533.05 | I57: 545.85 | J57: 549.15 | K57: 552.25 | L57: 546.05 | M57: 539.65 | N57: 9541000 | O57: -1.55%
A58: 48 | B58: Others | C58: COALINDIA | D58: 215.60 | E58: 215.08 | F58: 214.12 | G58: 212.63 | H58: 211.67 | I58: 216.57 | J58: 217.53 | K58: 219.02 | L58: 216.05 | M58: 213.6 | N58: 30520600 | O58: 2.18%
A59: 49 | B59: FMCG | C59: COLPAL | D59: 1248.70 | E59: 1252.83 | F59: 1237.67 | G59: 1226.63 | H59: 1211.47 | I59: 1263.87 | J59: 1279.03 | K59: 1290.07 | L59: 1268 | M59: 1241.8 | N59: 1821400 | O59: 0.39%
A60: 50 | B60: Others | C60: CONCOR | D60: 493.80 | E60: 490.95 | F60: 484.50 | G60: 475.20 | H60: 468.75 | I60: 500.25 | J60: 506.70 | K60: 516.00 | L60: 497.4 | M60: 481.65 | N60: 2588328 | O60: -1.08%
A61: 51 | B61: Capital_Goods | C61: CUMMINSIND | D61: 679.75 | E61: 680.87 | F61: 668.93 | G61: 658.12 | H61: 646.18 | I61: 691.68 | J61: 703.62 | K61: 714.43 | L61: 692.8 | M61: 670.05 | N61: 1865500 | O61: -3.02%
A62: 52 | B62: FMCG | C62: DABUR | D62: 426.05 | E62: 425.42 | F62: 423.43 | G62: 420.82 | H62: 418.83 | I62: 428.03 | J62: 430.02 | K62: 432.63 | L62: 427.4 | M62: 422.8 | N62: 13141250 | O62: 1.40%
A63: 53 | B63: Banking | C63: DCBBANK | D63: 172.80 | E63: 173.90 | F63: 171.10 | G63: 169.40 | H63: 166.60 | I63: 175.60 | J63: 178.40 | K63: 180.10 | L63: 176.7 | M63: 172.2 | N63: 3973500 | O63: 9.28%
A64: 54 | B64: Finance | C64: DHFL | D64: 130.85 | E64: 130.17 | F64: 128.48 | G64: 126.12 | H64: 124.43 | I64: 132.53 | J64: 134.22 | K64: 136.58 | L64: 131.85 | M64: 127.8 | N64: 20223000 | O64: 0.22%
A65: 55 | B65: Media | C65: DISHTV | D65: 34.65 | E65: 34.50 | F65: 33.80 | G65: 32.95 | H65: 32.25 | I65: 35.35 | J65: 36.05 | K65: 36.90 | L65: 35.2 | M65: 33.65 | N65: 59400000 | O65: 0.56%
A66: 56 | B66: Pharma | C66: DIVISLAB | D66: 1566.45 | E66: 1574.65 | F66: 1550.55 | G66: 1534.65 | H66: 1510.55 | I66: 1590.55 | J66: 1614.65 | K66: 1630.55 | L66: 1598.75 | M66: 1558.75 | N66: 3410400 | O66: 1.15%
A67: 57 | B67: Realty | C67: DLF | D67: 163.60 | E67: 163.02 | F67: 159.98 | G67: 156.37 | H67: 153.33 | I67: 166.63 | J67: 169.67 | K67: 173.28 | L67: 166.05 | M67: 159.4 | N67: 23015200 | O67: -2.30%
A68: 58 | B68: Pharma | C68: DRREDDY | D68: 2536.00 | E68: 2547.02 | F68: 2505.08 | G68: 2474.17 | H68: 2432.23 | I68: 2577.93 | J68: 2619.87 | K68: 2650.78 | L68: 2588.95 | M68: 2516.1 | N68: 4693500 | O68: 1.22%
A69: 59 | B69: Automobile | C69: EICHERMOT | D69: 20510.60 | E69: 20513.95 | F69: 20360.50 | G69: 20210.40 | H69: 20056.95 | I69: 20664.05 | J69: 20817.50 | K69: 20967.60 | L69: 20667.4 | M69: 20363.85 | N69: 385350 | O69: 1.17%
A70: 60 | B70: Infrastructure | C70: ENGINERSIN | D70: 106.35 | E70: 106.35 | F70: 104.90 | G70: 103.45 | H70: 102.00 | I70: 107.80 | J70: 109.25 | K70: 110.70 | L70: 107.8 | M70: 104.9 | N70: 15821900 | O70: -0.05%
A71: 61 | B71: Finance | C71: EQUITAS | D71: 111.40 | E71: 112.13 | F71: 109.87 | G71: 108.33 | H71: 106.07 | I71: 113.67 | J71: 115.93 | K71: 117.47 | L71: 114.4 | M71: 110.6 | N71: 12028000 | O71: 2.31%
A72: 62 | B72: Automobile | C72: ESCORTS | D72: 658.25 | E72: 653.62 | F72: 646.63 | G72: 635.02 | H72: 628.03 | I72: 665.23 | J72: 672.22 | K72: 683.83 | L72: 660.6 | M72: 642 | N72: 3608000 | O72: -8.07%
A73: 63 | B73: Automobile | C73: EXIDEIND | D73: 206.90 | E73: 203.25 | F73: 198.15 | G73: 189.40 | H73: 184.30 | I73: 212.00 | J73: 217.10 | K73: 225.85 | L73: 208.35 | M73: 194.5 | N73: 11310000 | O73: 16.91%
A74: 64 | B74: Banking | C74: FEDERALBNK | D74: 80.00 | E74: 80.00 | F74: 79.35 | G74: 78.70 | H74: 78.05 | I74: 80.65 | J74: 81.30 | K74: 81.95 | L74: 80.65 | M74: 79.35 | N74: 48265000 | O74: 1.25%
A75: 65 | B75: Oil_Gas | C75: GAIL | D75: 330.15 | E75: 327.67 | F75: 322.33 | G75: 314.52 | H75: 309.18 | I75: 335.48 | J75: 340.82 | K75: 348.63 | L75: 333 | M75: 319.85 | N75: 14991207 | O75: 2.46%
A76: 66 | B76: Pharma | C76: GLENMARK | D76: 588.00 | E76: 586.70 | F76: 582.10 | G76: 576.20 | H76: 571.60 | I76: 592.60 | J76: 597.20 | K76: 603.10 | L76: 591.3 | M76: 580.8 | N76: 4342000 | O76: -1.61%
A77: 67 | B77: Infrastructure | C77: GMRINFRA | D77: 15.60 | E77: 15.60 | F77: 15.40 | G77: 15.20 | H77: 15.00 | I77: 15.80 | J77: 16.00 | K77: 16.20 | L77: 15.8 | M77: 15.4 | N77: 171000000 | O77: -0.86%
A78: 68 | B78: Others | C78: GODFRYPHLP | D78: 876.50 | E78: 876.25 | F78: 865.60 | G78: 854.70 | H78: 844.05 | I78: 887.15 | J78: 897.80 | K78: 908.70 | L78: 886.9 | M78: 865.35 | N78: 468300 | O78: 0.90%
A79: 69 | B79: FMCG | C79: GODREJCP | D79: 677.05 | E79: 675.22 | F79: 671.18 | G79: 665.32 | H79: 661.28 | I79: 681.08 | J79: 685.12 | K79: 690.98 | L79: 679.25 | M79: 669.35 | N79: 5618400 | O79: -1.96%
A80: 70 | B80: FMCG | C80: GODREJIND | D80: 483.85 | E80: 481.40 | F80: 475.60 | G80: 467.35 | H80: 461.55 | I80: 489.65 | J80: 495.45 | K80: 503.70 | L80: 487.2 | M80: 473.15 | N80: 1339500 | O80: -3.46%
A81: 71 | B81: Cement | C81: GRASIM | D81: 734.10 | E81: 731.35 | F81: 725.90 | G81: 717.70 | H81: 712.25 | I81: 739.55 | J81: 745.00 | K81: 753.20 | L81: 736.8 | M81: 723.15 | N81: 11799000 | O81: 0.38%
A82: 72 | B82: Others | C82: GSFC | D82: 90.15 | E82: 89.60 | F82: 88.55 | G82: 86.95 | H82: 85.90 | I82: 91.20 | J82: 92.25 | K82: 93.85 | L82: 90.65 | M82: 88 | N82: 12290500 | O82: 2.11%
A83: 73 | B83: Others | C83: HAVELLS | D83: 696.95 | E83: 690.55 | F83: 681.65 | G83: 666.35 | H83: 657.45 | I83: 705.85 | J83: 714.75 | K83: 730.05 | L83: 699.45 | M83: 675.25 | N83: 5213000 | O83: -0.06%
A84: 74 | B84: Technology | C84: HCLTECH | D84: 1059.65 | E84: 1051.30 | F84: 1038.65 | G84: 1017.65 | H84: 1005.00 | I84: 1072.30 | J84: 1084.95 | K84: 1105.95 | L84: 1063.95 | M84: 1030.3 | N84: 9656500 | O84: 1.14%
A85: 75 | B85: Finance | C85: HDFC | D85: 1877.40 | E85: 1873.98 | F85: 1866.27 | G85: 1855.13 | H85: 1847.42 | I85: 1885.12 | J85: 1892.83 | K85: 1903.97 | L85: 1881.7 | M85: 1862.85 | N85: 29680500 | O85: 0.33%
A86: 76 | B86: Banking | C86: HDFCBANK | D86: 2111.75 | E86: 2104.33 | F86: 2093.42 | G86: 2075.08 | H86: 2064.17 | I86: 2122.67 | J86: 2133.58 | K86: 2151.92 | L86: 2115.25 | M86: 2086 | N86: 10244750 | O86: 1.11%
A87: 77 | B87: Automobile | C87: HEROMOTOCO | D87: 2635.60 | E87: 2637.47 | F87: 2616.13 | G87: 2596.67 | H87: 2575.33 | I87: 2656.93 | J87: 2678.27 | K87: 2697.73 | L87: 2658.8 | M87: 2618 | N87: 2197000 | O87: 8.64%
A88: 78 | B88: Technology | C88: HEXAWARE | D88: 358.15 | E88: 357.02 | F88: 354.53 | G88: 350.92 | H88: 348.43 | I88: 360.63 | J88: 363.12 | K88: 366.73 | L88: 359.5 | M88: 353.4 | N88: 3481500 | O88: 0.52%
A89: 79 | B89: Metals | C89: HINDALCO | D89: 193.50 | E89: 191.95 | F89: 189.65 | G89: 185.80 | H89: 183.50 | I89: 195.80 | J89: 198.10 | K89: 201.95 | L89: 194.25 | M89: 188.1 | N89: 39546500 | O89: -4.46%
A90: 80 | B90: Oil_Gas | C90: HINDPETRO | D90: 221.40 | E90: 219.72 | F90: 217.18 | G90: 212.97 | H90: 210.43 | I90: 223.93 | J90: 226.47 | K90: 230.68 | L90: 222.25 | M90: 215.5 | N90: 12891900 | O90: -1.90%
A91: 81 | B91: FMCG | C91: HINDUNILVR | D91: 1740.70 | E91: 1739.53 | F91: 1729.22 | G91: 1717.73 | H91: 1707.42 | I91: 1751.02 | J91: 1761.33 | K91: 1772.82 | L91: 1749.85 | M91: 1728.05 | N91: 11240400 | O91: 2.70%
A92: 82 | B92: Metals | C92: HINDZINC | D92: 253.75 | E92: 252.47 | F92: 250.13 | G92: 246.52 | H92: 244.18 | I92: 256.08 | J92: 258.42 | K92: 262.03 | L92: 254.8 | M92: 248.85 | N92: 4835200 | O92: -2.26%
A93: 83 | B93: Finance | C93: IBULHSGFIN | D93: 648.35 | E93: 640.43 | F93: 626.47 | G93: 604.58 | H93: 590.62 | I93: 662.32 | J93: 676.28 | K93: 698.17 | L93: 654.4 | M93: 618.55 | N93: 14987000 | O93: -1.46%
A94: 84 | B94: Banking | C94: ICICIBANK | D94: 346.55 | E94: 346.05 | F94: 343.90 | G94: 341.25 | H94: 339.10 | I94: 348.70 | J94: 350.85 | K94: 353.50 | L94: 348.2 | M94: 343.4 | N94: 98067750 | O94: 1.15%
A95: 85 | B95: Others | C95: ICICIPRULI | D95: 304.10 | E95: 303.68 | F95: 301.57 | G95: 299.03 | H95: 296.92 | I95: 306.22 | J95: 308.33 | K95: 310.87 | L95: 305.8 | M95: 301.15 | N95: 6112500 | O95: -0.54%
A96: 86 | B96: Banking | C96: IDBI | D96: 43.95 | E96: 43.35 | F96: 42.45 | G96: 40.95 | H96: 40.05 | I96: 44.85 | J96: 45.75 | K96: 47.25 | L96: 44.25 | M96: 41.85 | N96: 28620000 | O96: -1.75%
A97: 87 | B97: Telecom | C97: IDEA | D97: 30.65 | E97: 30.43 | F97: 29.97 | G97: 29.28 | H97: 28.82 | I97: 31.12 | J97: 31.58 | K97: 32.27 | L97: 30.9 | M97: 29.75 | N97: 198180000 | O97: 1.91%
A98: 88 | B98: Finance | C98: IDFC | D98: 35.85 | E98: 35.70 | F98: 35.25 | G98: 34.65 | H98: 34.20 | I98: 36.30 | J98: 36.75 | K98: 37.35 | L98: 36.15 | M98: 35.1 | N98: 112068000 | O98: 1.32%
A99: 89 | B99: Banking | C99: IDFCFIRSTB | D99: 44.90 | E99: 44.57 | F99: 44.08 | G99: 43.27 | H99: 42.78 | I99: 45.38 | J99: 45.87 | K99: 46.68 | L99: 45.05 | M99: 43.75 | N99: 136596000 | O99: 0.99%
A100: 90 | B100: Finance | C100: IFCI | D100: 12.15 | E100: 12.12 | F100: 12.03 | G100: 11.92 | H100: 11.83 | I100: 12.23 | J100: 12.32 | K100: 12.43 | L100: 12.2 | M100: 12 | N100: 51100000 | O100: 1.18%
A101: 91 | B101: Oil_Gas | C101: IGL | D101: 284.70 | E101: 283.90 | F101: 282.20 | G101: 279.70 | H101: 278.00 | I101: 286.40 | J101: 288.10 | K101: 290.60 | L101: 285.6 | M101: 281.4 | N101: 5777750 | O101: -0.38%
A102: 92 | B102: Cement | C102: INDIACEM | D102: 86.25 | E102: 85.42 | F102: 84.38 | G102: 82.52 | H102: 81.48 | I102: 87.28 | J102: 88.32 | K102: 90.18 | L102: 86.45 | M102: 83.55 | N102: 22896000 | O102: 1.74%
A103: 93 | B103: Banking | C103: INDIANB | D103: 221.35 | E103: 218.98 | F103: 215.97 | G103: 210.58 | H103: 207.57 | I103: 224.37 | J103: 227.38 | K103: 232.77 | L103: 222 | M103: 213.6 | N103: 5070000 | O103: -0.59%
A104: 94 | B104: Others | C104: INDIGO | D104: 1140.15 | E104: 1124.55 | F104: 1102.10 | G104: 1064.05 | H104: 1041.60 | I104: 1162.60 | J104: 1185.05 | K104: 1223.10 | L104: 1147 | M104: 1086.5 | N104: 2827200 | O104: 5.91%
A105: 95 | B105: Banking | C105: INDUSINDBK | D105: 1486.80 | E105: 1487.38 | F105: 1477.82 | G105: 1468.83 | H105: 1459.27 | I105: 1496.37 | J105: 1505.93 | K105: 1514.92 | L105: 1496.95 | M105: 1478.4 | N105: 8241900 | O105: 0.08%
A106: 96 | B106: Technology | C106: INFIBEAM | D106: 37.75 | E106: 37.53 | F106: 36.42 | G106: 35.08 | H106: 33.97 | I106: 38.87 | J106: 39.98 | K106: 41.32 | L106: 38.65 | M106: 36.2 | N106: 18720000 | O106: -1.39%
A107: 97 | B107: Telecom | C107: INFRATEL | D107: 318.65 | E107: 317.98 | F107: 314.12 | G107: 309.58 | H107: 305.72 | I107: 322.52 | J107: 326.38 | K107: 330.92 | L107: 321.85 | M107: 313.45 | N107: 8434000 | O107: 2.18%
A108: 98 | B108: Technology | C108: INFY | D108: 741.75 | E108: 737.12 | F108: 730.63 | G108: 719.52 | H108: 713.03 | I108: 748.23 | J108: 754.72 | K108: 765.83 | L108: 743.6 | M108: 726 | N108: 43777200 | O108: 2.15%
A109: 99 | B109: Oil_Gas | C109: IOC | D109: 129.25 | E109: 128.48 | F109: 126.77 | G109: 124.28 | H109: 122.57 | I109: 130.97 | J109: 132.68 | K109: 135.17 | L109: 130.2 | M109: 126 | N109: 37348500 | O109: 3.29%
A110: 100 | B110: Infrastructure | C110: IRB | D110: 118.15 | E110: 118.03 | F110: 113.87 | G110: 109.58 | H110: 105.42 | I110: 122.32 | J110: 126.48 | K110: 130.77 | L110: 122.2 | M110: 113.75 | N110: 8828800 | O110: 3.37%
A111: 101 | B111: FMCG | C111: ITC | D111: 276.00 | E111: 275.78 | F111: 274.57 | G111: 273.13 | H111: 271.92 | I111: 277.22 | J111: 278.43 | K111: 279.87 | L111: 277 | M111: 274.35 | N111: 81259200 | O111: 2.25%
A112: 102 | B112: Others | C112: JETAIRWAYS | D112: 228.65 | E112: 226.13 | F112: 219.67 | G112: 210.68 | H112: 204.22 | I112: 235.12 | J112: 241.58 | K112: 250.57 | L112: 232.6 | M112: 217.15 | N112: 6540600 | O112: -0.50%
A113: 103 | B113: Metals | C113: JINDALSTEL | D113: 150.40 | E113: 148.07 | F113: 144.38 | G113: 138.37 | H113: 134.68 | I113: 154.08 | J113: 157.77 | K113: 163.78 | L113: 151.75 | M113: 142.05 | N113: 29261250 | O113: 10.83%
A114: 104 | B114: Others | C114: JISLJALEQS | D114: 56.15 | E114: 56.05 | F114: 55.10 | G114: 54.05 | H114: 53.10 | I114: 57.10 | J114: 58.05 | K114: 59.10 | L114: 57 | M114: 55 | N114: 35676000 | O114: 1.28%
A115: 105 | B115: Realty | C115: JPASSOCIAT | D115: 5.25 | E115: 5.20 | F115: 5.10 | G115: 4.95 | H115: 4.85 | I115: 5.35 | J115: 5.45 | K115: 5.60 | L115: 5.3 | M115: 5.05 | N115: 90365000 | O115: 0.43%
A116: 106 | B116: Metals | C116: JSWSTEEL | D116: 275.45 | E116: 273.78 | F116: 270.17 | G116: 264.88 | H116: 261.27 | I116: 279.07 | J116: 282.68 | K116: 287.97 | L116: 277.4 | M116: 268.5 | N116: 62829000 | O116: 2.88%
A117: 107 | B117: Others | C117: JUBLFOOD | D117: 1284.90 | E117: 1302.98 | F117: 1261.92 | G117: 1238.93 | H117: 1197.87 | I117: 1325.97 | J117: 1367.03 | K117: 1390.02 | L117: 1344.05 | M117: 1280 | N117: 3569000 | O117: 25.23%
A118: 108 | B118: Others | C118: JUSTDIAL | D118: 476.20 | E118: 471.65 | F118: 465.65 | G118: 455.10 | H118: 449.10 | I118: 482.20 | J118: 488.20 | K118: 498.75 | L118: 477.65 | M118: 461.1 | N118: 2030000 | O118: 5.69%
A119: 109 | B119: Others | C119: KAJARIACER | D119: 522.35 | E119: 519.43 | F119: 513.97 | G119: 505.58 | H119: 500.12 | I119: 527.82 | J119: 533.28 | K119: 541.67 | L119: 524.9 | M119: 511.05 | N119: 2520700 | O119: -2.61%
A120: 110 | B120: Banking | C120: KOTAKBANK | D120: 1294.80 | E120: 1291.03 | F120: 1285.12 | G120: 1275.43 | H120: 1269.52 | I120: 1300.72 | J120: 1306.63 | K120: 1316.32 | L120: 1296.95 | M120: 1281.35 | N120: 8832000 | O120: 2.18%
A121: 111 | B121: Technology | C121: KPIT | D121: 108.85 | E121: 106.32 | F121: 102.28 | G121: 95.72 | H121: 91.68 | I121: 112.88 | J121: 116.92 | K121: 123.48 | L121: 110.35 | M121: 99.75 | N121: 4081500 | O121: 8.95%
A122: 112 | B122: Others | C122: KSCL | D122: 412.50 | E122: 401.75 | F122: 379.20 | G122: 345.90 | H122: 323.35 | I122: 435.05 | J122: 457.60 | K122: 490.90 | L122: 424.3 | M122: 368.45 | N122: 2256000 | O122: -2.84%
A123: 113 | B123: Banking | C123: KTKBANK | D123: 113.90 | E123: 113.60 | F123: 112.80 | G123: 111.70 | H123: 110.90 | I123: 114.70 | J123: 115.50 | K123: 116.60 | L123: 114.4 | M123: 112.5 | N123: 12064900 | O123: 0.67%
A124: 114 | B124: Finance | C124: L&TFH | D124: 124.75 | E124: 124.32 | F124: 123.48 | G124: 122.22 | H124: 121.38 | I124: 125.58 | J124: 126.42 | K124: 127.68 | L124: 125.15 | M124: 123.05 | N124: 26541000 | O124: 2.95%
A125: 115 | B125: Finance | C125: LICHSGFIN | D125: 452.90 | E125: 452.13 | F125: 445.82 | G125: 438.73 | H125: 432.42 | I125: 459.22 | J125: 465.53 | K125: 472.62 | L125: 458.45 | M125: 445.05 | N125: 10149700 | O125: -0.43%
A126: 116 | B126: Capital_Goods | C126: LT | D126: 1274.20 | E126: 1270.62 | F126: 1262.63 | G126: 1251.07 | H126: 1243.08 | I126: 1282.18 | J126: 1290.17 | K126: 1301.73 | L126: 1278.6 | M126: 1259.05 | N126: 11320500 | O126: 1.36%
A127: 117 | B127: Pharma | C127: LUPIN | D127: 765.65 | E127: 764.12 | F127: 757.28 | G127: 748.92 | H127: 742.08 | I127: 772.48 | J127: 779.32 | K127: 787.68 | L127: 770.95 | M127: 755.75 | N127: 10049200 | O127: 0.86%
A128: 118 | B128: Automobile | C128: M&M | D128: 636.15 | E128: 634.87 | F128: 631.58 | G128: 627.02 | H128: 623.73 | I128: 639.43 | J128: 642.72 | K128: 647.28 | L128: 638.15 | M128: 630.3 | N128: 23489000 | O128: 1.27%
A129: 119 | B129: Finance | C129: M&MFIN | D129: 383.15 | E129: 380.85 | F129: 376.80 | G129: 370.45 | H129: 366.40 | I129: 387.20 | J129: 391.25 | K129: 397.60 | L129: 384.9 | M129: 374.5 | N129: 13027500 | O129: -0.27%
A130: 120 | B130: Others | C130: MANAPPURAM | D130: 109.65 | E130: 109.10 | F130: 108.15 | G130: 106.65 | H130: 105.70 | I130: 110.60 | J130: 111.55 | K130: 113.05 | L130: 110.05 | M130: 107.6 | N130: 10110000 | O130: 3.95%
A131: 121 | B131: FMCG | C131: MARICO | D131: 334.70 | E131: 335.60 | F131: 331.80 | G131: 328.90 | H131: 325.10 | I131: 338.50 | J131: 342.30 | K131: 345.20 | L131: 339.4 | M131: 332.7 | N131: 7298200 | O131: 8.29%
A132: 122 | B132: Automobile | C132: MARUTI | D132: 6877.90 | E132: 6869.32 | F132: 6828.63 | G132: 6779.37 | H132: 6738.68 | I132: 6918.58 | J132: 6959.27 | K132: 7008.53 | L132: 6910 | M132: 6820.05 | N132: 2598825 | O132: 2.17%
A133: 123 | B133: FMCG | C133: MCDOWELL-N | D133: 529.85 | E133: 529.17 | F133: 520.73 | G133: 511.62 | H133: 503.18 | I133: 538.28 | J133: 546.72 | K133: 555.83 | L133: 537.6 | M133: 520.05 | N133: 12743750 | O133: -0.59%
A134: 124 | B134: Others | C134: MCX | D134: 673.10 | E134: 670.37 | F134: 664.73 | G134: 656.37 | H134: 650.73 | I134: 678.73 | J134: 684.37 | K134: 692.73 | L134: 676 | M134: 662 | N134: 2139200 | O134: -0.03%
A135: 125 | B135: Finance | C135: MFSL | D135: 396.10 | E135: 393.12 | F135: 387.98 | G135: 379.87 | H135: 374.73 | I135: 401.23 | J135: 406.37 | K135: 414.48 | L135: 398.25 | M135: 385 | N135: 1900800 | O135: -1.06%
A136: 126 | B136: Others | C136: MGL | D136: 868.35 | E136: 871.95 | F136: 858.40 | G136: 848.45 | H136: 834.90 | I136: 881.90 | J136: 895.45 | K136: 905.40 | L136: 885.5 | M136: 862 | N136: 1014000 | O136: 1.68%
A137: 127 | B137: Technology | C137: MINDTREE | D137: 907.05 | E137: 899.83 | F137: 889.67 | G137: 872.28 | H137: 862.12 | I137: 917.22 | J137: 927.38 | K137: 944.77 | L137: 910 | M137: 882.45 | N137: 2816400 | O137: -2.92%
A138: 128 | B138: Automobile | C138: MOTHERSUMI | D138: 134.70 | E138: 134.37 | F138: 132.43 | G138: 130.17 | H138: 128.23 | I138: 136.63 | J138: 138.57 | K138: 140.83 | L138: 136.3 | M138: 132.1 | N138: 28941750 | O138: -2.30%
A139: 129 | B139: Automobile | C139: MRF | D139: 55026.80 | E139: 54845.47 | F139: 54531.43 | G139: 54036.07 | H139: 53722.03 | I139: 55340.83 | J139: 55654.87 | K139: 56150.23 | L139: 55159.5 | M139: 54350.1 | N139: 39270 | O139: 0.82%
A140: 130 | B140: Others | C140: MRPL | D140: 64.05 | E140: 63.92 | F140: 63.53 | G140: 63.02 | H140: 62.63 | I140: 64.43 | J140: 64.82 | K140: 65.33 | L140: 64.3 | M140: 63.4 | N140: 5327000 | O140: 2.42%
A141: 131 | B141: Finance | C141: MUTHOOTFIN | D141: 519.75 | E141: 518.57 | F141: 515.43 | G141: 511.12 | H141: 507.98 | I141: 522.88 | J141: 526.02 | K141: 530.33 | L141: 521.7 | M141: 514.25 | N141: 1914000 | O141: 1.84%
A142: 132 | B142: Others | C142: NATIONALUM | D142: 48.00 | E142: 47.98 | F142: 47.02 | G142: 46.03 | H142: 45.07 | I142: 48.97 | J142: 49.93 | K142: 50.92 | L142: 48.95 | M142: 47 | N142: 78640000 | O142: 6.52%
A143: 133 | B143: Others | C143: NBCC | D143: 51.20 | E143: 50.90 | F143: 50.45 | G143: 49.70 | H143: 49.25 | I143: 51.65 | J143: 52.10 | K143: 52.85 | L143: 51.35 | M143: 50.15 | N143: 34368000 | O143: 0.21%
A144: 134 | B144: Infrastructure | C144: NCC | D144: 84.55 | E144: 84.20 | F144: 83.50 | G144: 82.45 | H144: 81.75 | I144: 85.25 | J144: 85.95 | K144: 87.00 | L144: 84.9 | M144: 83.15 | N144: 49752000 | O144: -1.69%
A145: 135 | B145: Others | C145: NESTLEIND | D145: 10533.45 | E145: 10533.93 | F145: 10405.52 | G145: 10277.58 | H145: 10149.17 | I145: 10661.87 | J145: 10790.28 | K145: 10918.22 | L145: 10662.35 | M145: 10406 | N145: 324500 | O145: -5.41%
A146: 136 | B146: Power | C146: NHPC | D146: 23.25 | E146: 23.20 | F146: 22.95 | G146: 22.65 | H146: 22.40 | I146: 23.50 | J146: 23.75 | K146: 24.05 | L146: 23.45 | M146: 22.9 | N146: 40743000 | O146: 2.37%
A147: 137 | B147: Technology | C147: NIITTECH | D147: 1296.20 | E147: 1287.85 | F147: 1277.40 | G147: 1258.60 | H147: 1248.15 | I147: 1306.65 | J147: 1317.10 | K147: 1335.90 | L147: 1298.3 | M147: 1269.05 | N147: 1596000 | O147: -5.25%
A148: 138 | B148: Metals | C148: NMDC | D148: 94.15 | E148: 94.02 | F148: 93.38 | G148: 92.62 | H148: 91.98 | I148: 94.78 | J148: 95.42 | K148: 96.18 | L148: 94.65 | M148: 93.25 | N148: 20454000 | O148: -5.31%
A149: 139 | B149: Power | C149: NTPC | D149: 136.95 | E149: 135.57 | F149: 133.53 | G149: 130.12 | H149: 128.08 | I149: 138.98 | J149: 141.02 | K149: 144.43 | L149: 137.6 | M149: 132.15 | N149: 70168000 | O149: 1.85%
A150: 140 | B150: Technology | C150: OFSS | D150: 3502.65 | E150: 3496.25 | F150: 3468.60 | G150: 3434.55 | H150: 3406.90 | I150: 3530.30 | J150: 3557.95 | K150: 3592.00 | L150: 3523.9 | M150: 3462.2 | N150: 153750 | O150: 4.27%
A151: 141 | B151: Oil_Gas | C151: OIL | D151: 180.25 | E151: 179.27 | F151: 177.53 | G151: 174.82 | H151: 173.08 | I151: 181.98 | J151: 183.72 | K151: 186.43 | L151: 181 | M151: 176.55 | N151: 7029132 | O151: 4.76%
A152: 142 | B152: Oil_Gas | C152: ONGC | D152: 138.80 | E152: 137.78 | F152: 135.62 | G152: 132.43 | H152: 130.27 | I152: 140.97 | J152: 143.13 | K152: 146.32 | L152: 139.95 | M152: 134.6 | N152: 46278750 | O152: -5.71%
A153: 143 | B153: Banking | C153: ORIENTBANK | D153: 81.55 | E153: 81.65 | F153: 80.45 | G153: 79.35 | H153: 78.15 | I153: 82.75 | J153: 83.95 | K153: 85.05 | L153: 82.85 | M153: 80.55 | N153: 12418000 | O153: 0.28%
A154: 144 | B154: Textile | C154: PAGEIND | D154: 20524.15 | E154: 20843.07 | F154: 19936.63 | G154: 19349.12 | H154: 18442.68 | I154: 21430.58 | J154: 22337.02 | K154: 22924.53 | L154: 21749.5 | M154: 20255.55 | N154: 195175 | O154: 0.30%
A155: 145 | B155: Others | C155: PCJEWELLER | D155: 67.20 | E155: 67.27 | F155: 66.33 | G155: 65.47 | H155: 64.53 | I155: 68.13 | J155: 69.07 | K155: 69.93 | L155: 68.2 | M155: 66.4 | N155: 14053000 | O155: -1.32%
A156: 146 | B156: Pharma | C156: PEL | D156: 2201.10 | E156: 2198.82 | F156: 2178.63 | G156: 2156.17 | H156: 2135.98 | I156: 2221.28 | J156: 2241.47 | K156: 2263.93 | L156: 2219 | M156: 2176.35 | N156: 3927510 | O156: -3.04%
A157: 147 | B157: Oil_Gas | C157: PETRONET | D157: 213.10 | E157: 214.47 | F157: 210.63 | G157: 208.17 | H157: 204.33 | I157: 216.93 | J157: 220.77 | K157: 223.23 | L157: 218.3 | M157: 212 | N157: 12450000 | O157: 9.30%
A158: 148 | B158: Finance | C158: PFC | D158: 109.00 | E158: 108.63 | F158: 107.52 | G158: 106.03 | H158: 104.92 | I158: 110.12 | J158: 111.23 | K158: 112.72 | L158: 109.75 | M158: 107.15 | N158: 31328600 | O158: 3.91%
A159: 149 | B159: FMCG | C159: PIDILITIND | D159: 1081.40 | E159: 1075.77 | F159: 1064.63 | G159: 1047.87 | H159: 1036.73 | I159: 1092.53 | J159: 1103.67 | K159: 1120.43 | L159: 1086.9 | M159: 1059 | N159: 2547500 | O159: -0.95%
A160: 150 | B160: Banking | C160: PNB | D160: 71.40 | E160: 71.15 | F160: 70.60 | G160: 69.80 | H160: 69.25 | I160: 71.95 | J160: 72.50 | K160: 73.30 | L160: 71.7 | M160: 70.35 | N160: 115913000 | O160: 1.12%
A161: 151 | B161: Power | C161: POWERGRID | D161: 181.90 | E161: 180.98 | F161: 179.52 | G161: 177.13 | H161: 175.67 | I161: 183.37 | J161: 184.83 | K161: 187.22 | L161: 182.45 | M161: 178.6 | N161: 23952000 | O161: 1.32%
A162: 152 | B162: Others | C162: PVR | D162: 1475.60 | E162: 1487.30 | F162: 1453.60 | G162: 1431.60 | H162: 1397.90 | I162: 1509.30 | J162: 1543.00 | K162: 1565.00 | L162: 1521 | M162: 1465.3 | N162: 1502400 | O162: -0.90%
A163: 153 | B163: Cement | C163: RAMCOCEM | D163: 624.25 | E163: 619.80 | F163: 612.45 | G163: 600.65 | H163: 593.30 | I163: 631.60 | J163: 638.95 | K163: 650.75 | L163: 627.15 | M163: 608 | N163: 734400 | O163: 0.22%
A164: 154 | B164: Others | C164: RAYMOND | D164: 690.55 | E164: 687.90 | F164: 682.85 | G164: 675.15 | H164: 670.10 | I164: 695.60 | J164: 700.65 | K164: 708.35 | L164: 692.95 | M164: 680.2 | N164: 3867200 | O164: 0.10%
A165: 155 | B165: Banking | C165: RBLBANK | D165: 556.35 | E165: 553.98 | F165: 550.37 | G165: 544.38 | H165: 540.77 | I165: 559.97 | J165: 563.58 | K165: 569.57 | L165: 557.6 | M165: 548 | N165: 5149200 | O165: 0.78%
A166: 156 | B166: Telecom | C166: RCOM | D166: 5.90 | E166: 5.82 | F166: 5.48 | G166: 5.07 | H166: 4.73 | I166: 6.23 | J166: 6.57 | K166: 6.98 | L166: 6.15 | M166: 5.4 | N166: 66402000 | O166: 1.45%
A167: 157 | B167: Power | C167: RECLTD | D167: 127.75 | E167: 126.95 | F167: 125.25 | G167: 122.75 | H167: 121.05 | I167: 129.45 | J167: 131.15 | K167: 133.65 | L167: 128.65 | M167: 124.45 | N167: 33900000 | O167: 2.13%
A168: 158 | B168: Finance | C168: RELCAPITAL | D168: 145.20 | E168: 143.83 | F168: 135.07 | G168: 124.93 | H168: 116.17 | I168: 153.97 | J168: 162.73 | K168: 172.87 | L168: 152.6 | M168: 133.7 | N168: 9282000 | O168: 6.09%
A169: 159 | B169: Oil_Gas | C169: RELIANCE | D169: 1238.20 | E169: 1234.48 | F169: 1225.97 | G169: 1213.73 | H169: 1205.22 | I169: 1246.72 | J169: 1255.23 | K169: 1267.47 | L169: 1243 | M169: 1222.25 | N169: 56645000 | O169: 0.82%
A170: 160 | B170: Power | C170: RELINFRA | D170: 120.05 | E170: 118.55 | F170: 112.85 | G170: 105.65 | H170: 99.95 | I170: 125.75 | J170: 131.45 | K170: 138.65 | L170: 124.25 | M170: 111.35 | N170: 9839700 | O170: -6.28%
A171: 161 | B171: Others | C171: REPCOHOME | D171: 314.50 | E171: 314.67 | F171: 309.43 | G171: 304.37 | H171: 299.13 | I171: 319.73 | J171: 324.97 | K171: 330.03 | L171: 319.9 | M171: 309.6 | N171: 1039500 | O171: -0.42%
A172: 162 | B172: Power | C172: RPOWER | D172: 10.80 | E172: 10.73 | F172: 10.37 | G172: 9.93 | H172: 9.57 | I172: 11.17 | J172: 11.53 | K172: 11.97 | L172: 11.1 | M172: 10.3 | N172: 78096000 | O172: -1.51%
A173: 163 | B173: Metals | C173: SAIL | D173: 48.15 | E173: 47.75 | F173: 46.80 | G173: 45.45 | H173: 44.50 | I173: 49.10 | J173: 50.05 | K173: 51.40 | L173: 48.7 | M173: 46.4 | N173: 93384000 | O173: 1.74%
A174: 164 | B174: Banking | C174: SBIN | D174: 267.90 | E174: 267.03 | F174: 265.67 | G174: 263.43 | H174: 262.07 | I174: 269.27 | J174: 270.63 | K174: 272.87 | L174: 268.4 | M174: 264.8 | N174: 84048000 | O174: -0.93%
A175: 165 | B175: Cement | C175: SHREECEM | D175: 15771.50 | E175: 15697.78 | F175: 15562.57 | G175: 15353.63 | H175: 15218.42 | I175: 15906.72 | J175: 16041.93 | K175: 16250.87 | L175: 15833 | M175: 15488.85 | N175: 98700 | O175: 0.87%
A176: 166 | B176: Capital_Goods | C176: SIEMENS | D176: 969.60 | E176: 963.98 | F176: 955.62 | G176: 941.63 | H176: 933.27 | I176: 977.97 | J176: 986.33 | K176: 1000.32 | L176: 972.35 | M176: 950 | N176: 2145000 | O176: -2.21%
A177: 167 | B177: Banking | C177: SOUTHBANK | D177: 13.15 | E177: 13.10 | F177: 13.00 | G177: 12.85 | H177: 12.75 | I177: 13.25 | J177: 13.35 | K177: 13.50 | L177: 13.2 | M177: 12.95 | N177: 144030786 | O177: -2.53%
A178: 168 | B178: Others | C178: SREINFRA | D178: 26.20 | E178: 26.02 | F178: 25.63 | G178: 25.07 | H178: 24.68 | I178: 26.58 | J178: 26.97 | K178: 27.53 | L178: 26.4 | M178: 25.45 | N178: 7440000 | O178: -6.20%
A179: 169 | B179: Textile | C179: SRF | D179: 2214.00 | E179: 2206.07 | F179: 2193.38 | G179: 2172.77 | H179: 2160.08 | I179: 2226.68 | J179: 2239.37 | K179: 2259.98 | L179: 2218.75 | M179: 2185.45 | N179: 864000 | O179: 3.04%
A180: 170 | B180: Finance | C180: SRTRANSFIN | D180: 1054.45 | E180: 1042.48 | F180: 1024.92 | G180: 995.38 | H180: 977.82 | I180: 1072.02 | J180: 1089.58 | K180: 1119.12 | L180: 1060.05 | M180: 1012.95 | N180: 4927200 | O180: -2.44%
A181: 171 | B181: Pharma | C181: STAR | D181: 410.75 | E181: 409.30 | F181: 405.45 | G181: 400.15 | H181: 396.30 | I181: 414.60 | J181: 418.45 | K181: 423.75 | L181: 413.15 | M181: 404 | N181: 4687100 | O181: 0.78%
A182: 172 | B182: Pharma | C182: SUNPHARMA | D182: 424.00 | E182: 422.37 | F182: 418.73 | G182: 413.47 | H182: 409.83 | I182: 427.63 | J182: 431.27 | K182: 436.53 | L182: 426 | M182: 417.1 | N182: 54947200 | O182: -1.55%
A183: 173 | B183: Media | C183: SUNTV | D183: 568.95 | E183: 566.00 | F183: 560.10 | G183: 551.25 | H183: 545.35 | I183: 574.85 | J183: 580.75 | K183: 589.60 | L183: 571.9 | M183: 557.15 | N183: 6890000 | O183: -2.52%
A184: 174 | B184: Power | C184: SUZLON | D184: 3.70 | E184: 3.67 | F184: 3.58 | G184: 3.47 | H184: 3.38 | I184: 3.78 | J184: 3.87 | K184: 3.98 | L184: 3.75 | M184: 3.55 | N184: 255892000 | O184: 0.66%
A185: 175 | B185: Banking | C185: SYNDIBANK | D185: 32.25 | E185: 32.07 | F185: 31.78 | G185: 31.32 | H185: 31.03 | I185: 32.53 | J185: 32.82 | K185: 33.28 | L185: 32.35 | M185: 31.6 | N185: 28305000 | O185: -1.82%
A186: 176 | B186: Fertilisers | C186: TATACHEM | D186: 567.30 | E186: 568.37 | F186: 562.93 | G186: 558.57 | H186: 553.13 | I186: 572.73 | J186: 578.17 | K186: 582.53 | L186: 573.8 | M186: 564 | N186: 2650500 | O186: 0.94%
A187: 177 | B187: Telecom | C187: TATACOMM | D187: 520.35 | E187: 515.82 | F187: 508.68 | G187: 497.02 | H187: 489.88 | I187: 527.48 | J187: 534.62 | K187: 546.28 | L187: 522.95 | M187: 504.15 | N187: 2843000 | O187: -0.59%
A188: 178 | B188: Technology | C188: TATAELXSI | D188: 892.90 | E188: 882.60 | F188: 865.30 | G188: 837.70 | H188: 820.40 | I188: 910.20 | J188: 927.50 | K188: 955.10 | L188: 899.9 | M188: 855 | N188: 1587200 | O188: -2.96%
A189: 179 | B189: FMCG | C189: TATAGLOBAL | D189: 189.45 | E189: 188.32 | F189: 186.73 | G189: 184.02 | H189: 182.43 | I189: 191.03 | J189: 192.62 | K189: 195.33 | L189: 189.9 | M189: 185.6 | N189: 10307250 | O189: -0.69%
A190: 180 | B190: Automobile | C190: TATAMOTORS | D190: 165.35 | E190: 165.50 | F190: 163.90 | G190: 162.45 | H190: 160.85 | I190: 166.95 | J190: 168.55 | K190: 170.00 | L190: 167.1 | M190: 164.05 | N190: 55186000 | O190: -0.88%
A191: 181 | B191: Automobile | C191: TATAMTRDVR | D191: 86.15 | E191: 86.05 | F191: 85.40 | G191: 84.65 | H191: 84.00 | I191: 86.80 | J191: 87.45 | K191: 88.20 | L191: 86.7 | M191: 85.3 | N191: 29845200 | O191: 0.34%
A192: 182 | B192: Power | C192: TATAPOWER | D192: 67.40 | E192: 67.27 | F192: 66.23 | G192: 65.07 | H192: 64.03 | I192: 68.43 | J192: 69.47 | K192: 70.63 | L192: 68.3 | M192: 66.1 | N192: 49842000 | O192: 3.81%
A193: 183 | B193: Metals | C193: TATASTEEL | D193: 492.40 | E193: 487.15 | F193: 479.30 | G193: 466.20 | H193: 458.35 | I193: 500.25 | J193: 508.10 | K193: 521.20 | L193: 495 | M193: 474.05 | N193: 37005558 | O193: 0.24%
A194: 184 | B194: Technology | C194: TCS | D194: 1922.25 | E194: 1916.90 | F194: 1893.75 | G194: 1865.25 | H194: 1842.10 | I194: 1945.40 | J194: 1968.55 | K194: 1997.05 | L194: 1940.05 | M194: 1888.4 | N194: 15409500 | O194: 3.97%
A195: 185 | B195: Technology | C195: TECHM | D195: 813.70 | E195: 806.45 | F195: 795.50 | G195: 777.30 | H195: 766.35 | I195: 824.65 | J195: 835.60 | K195: 853.80 | L195: 817.4 | M195: 788.25 | N195: 16538400 | O195: 0.84%
A196: 186 | B196: FMCG | C196: TITAN | D196: 1035.55 | E196: 1036.83 | F196: 1027.67 | G196: 1019.78 | H196: 1010.62 | I196: 1044.72 | J196: 1053.88 | K196: 1061.77 | L196: 1046 | M196: 1028.95 | N196: 13083750 | O196: 0.03%
A197: 187 | B197: Pharma | C197: TORNTPHARM | D197: 1774.90 | E197: 1766.92 | F197: 1755.98 | G197: 1737.07 | H197: 1726.13 | I197: 1785.83 | J197: 1796.77 | K197: 1815.68 | L197: 1777.85 | M197: 1748 | N197: 419500 | O197: -7.29%
A198: 188 | B198: Power | C198: TORNTPOWER | D198: 240.00 | E198: 239.00 | F198: 236.40 | G198: 232.80 | H198: 230.20 | I198: 242.60 | J198: 245.20 | K198: 248.80 | L198: 241.6 | M198: 235.4 | N198: 2010000 | O198: 7.03%
A199: 189 | B199: Media | C199: TV18BRDCST | D199: 32.50 | E199: 32.37 | F199: 32.03 | G199: 31.57 | H199: 31.23 | I199: 32.83 | J199: 33.17 | K199: 33.63 | L199: 32.7 | M199: 31.9 | N199: 61425000 | O199: 2.47%
A200: 190 | B200: Automobile | C200: TVSMOTOR | D200: 465.10 | E200: 469.63 | F200: 458.57 | G200: 452.03 | H200: 440.97 | I200: 476.17 | J200: 487.23 | K200: 493.77 | L200: 480.7 | M200: 463.1 | N200: 6353000 | O200: 10.37%
A201: 191 | B201: FMCG | C201: UBL | D201: 1361.50 | E201: 1363.00 | F201: 1346.00 | G201: 1330.50 | H201: 1313.50 | I201: 1378.50 | J201: 1395.50 | K201: 1411.00 | L201: 1380 | M201: 1347.5 | N201: 3021200 | O201: -4.11%
A202: 192 | B202: Finance | C202: UJJIVAN | D202: 274.25 | E202: 273.25 | F202: 270.00 | G202: 265.75 | H202: 262.50 | I202: 277.50 | J202: 280.75 | K202: 285.00 | L202: 276.5 | M202: 269 | N202: 4432000 | O202: 0.98%
A203: 193 | B203: Cement | C203: ULTRACEMCO | D203: 3582.05 | E203: 3554.45 | F203: 3511.80 | G203: 3441.55 | H203: 3398.90 | I203: 3624.70 | J203: 3667.35 | K203: 3737.60 | L203: 3597.1 | M203: 3484.2 | N203: 2224400 | O203: -0.53%
A204: 194 | B204: Banking | C204: UNIONBANK | D204: 69.95 | E204: 69.63 | F204: 68.97 | G204: 67.98 | H204: 67.32 | I204: 70.62 | J204: 71.28 | K204: 72.27 | L204: 70.3 | M204: 68.65 | N204: 35609000 | O204: 3.16%
A205: 195 | B205: Fertilisers | C205: UPL | D205: 826.75 | E205: 824.22 | F205: 817.53 | G205: 808.32 | H205: 801.63 | I205: 833.43 | J205: 840.12 | K205: 849.33 | L205: 830.9 | M205: 815 | N205: 16102800 | O205: 0.89%
A206: 196 | B206: Metals | C206: VEDL | D206: 160.55 | E206: 158.75 | F206: 156.35 | G206: 152.15 | H206: 149.75 | I206: 162.95 | J206: 165.35 | K206: 169.55 | L206: 161.15 | M206: 154.55 | N206: 47865300 | O206: -2.71%
... 21 more rows

Sheet Cash Intra
M5: Back to Main Page
A6: FOR INTRA DAY TRADING | K6: =Main!B10 -> 2019-02-21
A8: Sr.no | B8: Scrip | C8: CLOSE RATE | D8: Pivot Point | E8: Supports | H8: Resistances
C9: Point | E9: S1 | F9: S2 | G9: S3 | H9: R1 | I9: R2 | J9: R3 | K9: HIGH | L9: LOW | M9: Total Trade Quanity in Lakhs
A10: 1 | B10: Nifty 50 | C10: 10735.45 | D10: 10711.52 | E10: 10670.33 | F10: 10605.22 | G10: 10564.03 | H10: 10776.63 | I10: 10817.82 | J10: 10882.93 | K10: 10752.7 | L10: 10646.4
A11: 2 | B11: Nifty Bank | C11: 26955.5 | D11: 26891.22 | E11: 26796.93 | F11: 26638.37 | G11: 26544.08 | H11: 27049.78 | I11: 27144.07 | J11: 27302.63 | K11: 26985.5 | L11: 26732.65
A12: 3 | B12: Nifty CPSE | C12: 1944.1 | D12: 1936.43 | E12: 1916.37 | F12: 1888.63 | G12: 1868.57 | H12: 1964.17 | I12: 1984.23 | J12: 2011.97 | K12: 1956.5 | L12: 1908.7
A13: 4 | B13: Nifty Infra | C13: 2900.8 | D13: 2891.62 | E13: 2875.48 | F13: 2850.17 | G13: 2834.03 | H13: 2916.93 | I13: 2933.07 | J13: 2958.38 | K13: 2907.75 | L13: 2866.3
A14: 5 | B14: Nifty IT | C14: 15609.45 | D14: 15530.65 | E14: 15409.60 | F14: 15209.75 | G14: 15088.70 | H14: 15730.50 | I14: 15851.55 | J14: 16051.40 | K14: 15651.7 | L14: 15330.8
A15: 6 | B15: Nifty PSE | C15: 3130.15 | D15: 3119.58 | E15: 3094.37 | F15: 3058.58 | G15: 3033.37 | H15: 3155.37 | I15: 3180.58 | J15: 3216.37 | K15: 3144.8 | L15: 3083.8
A16: 7 | B16: Nifty Midcap 50 | C16: 4468.05 | D16: 4458.00 | E16: 4442.75 | F16: 4417.45 | G16: 4402.20 | H16: 4483.30 | I16: 4498.55 | J16: 4523.85 | K16: 4473.25 | L16: 4432.7
A17: 8 | B17: ABB | C17: 1250.5 | D17: 1256.85 | E17: 1239.20 | F17: 1227.90 | G17: 1210.25 | H17: 1268.15 | I17: 1285.80 | J17: 1297.10 | K17: 1274.5 | L17: 1245.55 | M17: 0.63952
A18: 9 | B18: ACC | C18: 1382.5 | D18: 1378.17 | E18: 1364.33 | F18: 1346.17 | G18: 1332.33 | H18: 1396.33 | I18: 1410.17 | J18: 1428.33 | K18: 1392 | L18: 1360 | M18: 7.06935
A19: 10 | B19: AIAENG | C19: 1615.2 | D19: 1624.45 | E19: 1600.80 | F19: 1586.40 | G19: 1562.75 | H19: 1638.85 | I19: 1662.50 | J19: 1676.90 | K19: 1648.1 | L19: 1610.05 | M19: 0.09284
A20: 11 | B20: AUBANK | C20: 564.4 | D20: 564.97 | E20: 557.43 | F20: 550.47 | G20: 542.93 | H20: 571.93 | I20: 579.47 | J20: 586.43 | K20: 572.5 | L20: 558 | M20: 1.34989
A21: 12 | B21: ADANIENT | C21: 120.05 | D21: 119.12 | E21: 117.13 | F21: 114.22 | G21: 112.23 | H21: 122.03 | I21: 124.02 | J21: 126.93 | K21: 121.1 | L21: 116.2 | M21: 37.39081
A22: 13 | B22: ADANIPORTS | C22: 354.75 | D22: 350.68 | E22: 345.02 | F22: 335.28 | G22: 329.62 | H22: 360.42 | I22: 366.08 | J22: 375.82 | K22: 356.35 | L22: 340.95 | M22: 48.85571
A23: 14 | B23: ADANIPOWER | C23: 39.55 | D23: 39.17 | E23: 37.23 | F23: 34.92 | G23: 32.98 | H23: 41.48 | I23: 43.42 | J23: 45.73 | K23: 41.1 | L23: 36.85 | M23: 116.57825
A24: 15 | B24: ABFRL | C24: 218.45 | D24: 217.15 | E24: 213.30 | F24: 208.15 | G24: 204.30 | H24: 222.30 | I24: 226.15 | J24: 231.30 | K24: 221 | L24: 212 | M24: 4.14526
A25: 16 | B25: AJANTPHARM | C25: 970.65 | D25: 965.85 | E25: 954.80 | F25: 938.95 | G25: 927.90 | H25: 981.70 | I25: 992.75 | J25: 1008.60 | K25: 976.9 | L25: 950 | M25: 3.10199
A26: 17 | B26: ALKEM | C26: 1835.8 | D26: 1839.70 | E26: 1824.10 | F26: 1812.40 | G26: 1796.80 | H26: 1851.40 | I26: 1867.00 | J26: 1878.70 | K26: 1855.3 | L26: 1828 | M26: 0.11486
A27: 18 | B27: AMARAJABAT | C27: 724.3 | D27: 729.02 | E27: 709.03 | F27: 693.77 | G27: 673.78 | H27: 744.28 | I27: 764.27 | J27: 779.53 | K27: 749 | L27: 713.75 | M27: 13.81382
A28: 19 | B28: AMBUJACEM | C28: 206.8 | D28: 204.73 | E28: 201.67 | F28: 196.53 | G28: 193.47 | H28: 209.87 | I28: 212.93 | J28: 218.07 | K28: 207.8 | L28: 199.6 | M28: 35.28149
A29: 20 | B29: APOLLOHOSP | C29: 1129.6 | D29: 1131.00 | E29: 1118.60 | F29: 1107.60 | G29: 1095.20 | H29: 1142.00 | I29: 1154.40 | J29: 1165.40 | K29: 1143.4 | L29: 1120 | M29: 11.88434
A30: 21 | B30: APOLLOTYRE | C30: 209.1 | D30: 207.73 | E30: 204.57 | F30: 200.03 | G30: 196.87 | H30: 212.27 | I30: 215.43 | J30: 219.97 | K30: 210.9 | L30: 203.2 | M30: 36.26848
A31: 22 | B31: ARVIND | C31: 76.65 | D31: 76.65 | E31: 76.15 | F31: 75.65 | G31: 75.15 | H31: 77.15 | I31: 77.65 | J31: 78.15 | K31: 77.15 | L31: 76.15 | M31: 8.81511
A32: 23 | B32: ASHOKLEY | C32: 80.95 | D32: 80.75 | E32: 80.00 | F32: 79.05 | G32: 78.30 | H32: 81.70 | I32: 82.45 | J32: 83.40 | K32: 81.5 | L32: 79.8 | M32: 255.43536
A33: 24 | B33: ASIANPAINT | C33: 1396.9 | D33: 1390.57 | E33: 1382.33 | F33: 1367.77 | G33: 1359.53 | H33: 1405.13 | I33: 1413.37 | J33: 1427.93 | K33: 1398.8 | L33: 1376 | M33: 8.43469
A34: 25 | B34: AUROPHARMA | C34: 722.8 | D34: 718.72 | E34: 712.63 | F34: 702.47 | G34: 696.38 | H34: 728.88 | I34: 734.97 | J34: 745.13 | K34: 724.8 | L34: 708.55 | M34: 22.07544
A35: 26 | B35: DMART | C35: 1472.95 | D35: 1468.22 | E35: 1442.73 | F35: 1412.52 | G35: 1387.03 | H35: 1498.43 | I35: 1523.92 | J35: 1554.13 | K35: 1493.7 | L35: 1438 | M35: 8.4021
A36: 27 | B36: AXISBANK | C36: 700.35 | D36: 699.55 | E36: 696.10 | F36: 691.85 | G36: 688.40 | H36: 703.80 | I36: 707.25 | J36: 711.50 | K36: 703 | L36: 695.3 | M36: 57.72687
A37: 28 | B37: BAJAJ-AUTO | C37: 2774.7 | D37: 2769.98 | E37: 2741.97 | F37: 2709.23 | G37: 2681.22 | H37: 2802.72 | I37: 2830.73 | J37: 2863.47 | K37: 2798 | L37: 2737.25 | M37: 4.28139
A38: 29 | B38: BAJFINANCE | C38: 2606.15 | D38: 2597.32 | E38: 2579.83 | F38: 2553.52 | G38: 2536.03 | H38: 2623.63 | I38: 2641.12 | J38: 2667.43 | K38: 2614.8 | L38: 2571 | M38: 10.38127
A39: 30 | B39: BAJAJFINSV | C39: 5998.45 | D39: 5991.88 | E39: 5938.77 | F39: 5879.08 | G39: 5825.97 | H39: 6051.57 | I39: 6104.68 | J39: 6164.37 | K39: 6045 | L39: 5932.2 | M39: 1.61713
A40: 31 | B40: BALKRISIND | C40: 827.05 | D40: 827.60 | E40: 820.50 | F40: 813.95 | G40: 806.85 | H40: 834.15 | I40: 841.25 | J40: 847.80 | K40: 834.7 | L40: 821.05 | M40: 4.60273
A41: 32 | B41: BANKBARODA | C41: 102.95 | D41: 103.05 | E41: 101.90 | F41: 100.85 | G41: 99.70 | H41: 104.10 | I41: 105.25 | J41: 106.30 | K41: 104.2 | L41: 102 | M41: 110.9731
A42: 33 | B42: BANKINDIA | C42: 81.85 | D42: 81.83 | E42: 80.77 | F42: 79.68 | G42: 78.62 | H42: 82.92 | I42: 83.98 | J42: 85.07 | K42: 82.9 | L42: 80.75 | M42: 69.05288
A43: 34 | B43: BATAINDIA | C43: 1269.2 | D43: 1266.25 | E43: 1258.50 | F43: 1247.80 | G43: 1240.05 | H43: 1276.95 | I43: 1284.70 | J43: 1295.40 | K43: 1274 | L43: 1255.55 | M43: 6.58587
A44: 35 | B44: BERGEPAINT | C44: 294.75 | D44: 293.22 | E44: 290.13 | F44: 285.52 | G44: 282.43 | H44: 297.83 | I44: 300.92 | J44: 305.53 | K44: 296.3 | L44: 288.6 | M44: 6.42981
A45: 36 | B45: BEL | C45: 77.5 | D45: 77.52 | E45: 76.28 | F45: 75.07 | G45: 73.83 | H45: 78.73 | I45: 79.97 | J45: 81.18 | K45: 78.75 | L45: 76.3 | M45: 125.25521
A46: 37 | B46: BHARATFIN | C46: 933 | D46: 929.40 | E46: 923.60 | F46: 914.20 | G46: 908.40 | H46: 938.80 | I46: 944.60 | J46: 954.00 | K46: 935.2 | L46: 920 | M46: 4.80374
A47: 38 | B47: BHARATFORG | C47: 473.55 | D47: 470.30 | E47: 462.65 | F47: 451.75 | G47: 444.10 | H47: 481.20 | I47: 488.85 | J47: 499.75 | K47: 477.95 | L47: 459.4 | M47: 14.94861
A48: 39 | B48: BHEL | C48: 62.75 | D48: 62.63 | E48: 62.12 | F48: 61.48 | G48: 60.97 | H48: 63.27 | I48: 63.78 | J48: 64.42 | K48: 63.15 | L48: 62 | M48: 50.89826
A49: 40 | B49: BPCL | C49: 341.1 | D49: 340.65 | E49: 336.55 | F49: 332.00 | G49: 327.90 | H49: 345.20 | I49: 349.30 | J49: 353.85 | K49: 344.75 | L49: 336.1 | M49: 62.82741
A50: 41 | B50: BHARTIARTL | C50: 309 | D50: 308.27 | E50: 305.68 | F50: 302.37 | G50: 299.78 | H50: 311.58 | I50: 314.17 | J50: 317.48 | K50: 310.85 | L50: 304.95 | M50: 56.03086
A51: 42 | B51: INFRATEL | C51: 318.2 | D51: 318.25 | E51: 313.60 | F51: 309.00 | G51: 304.35 | H51: 322.85 | I51: 327.50 | J51: 332.10 | K51: 322.9 | L51: 313.65 | M51: 24.786
A52: 43 | B52: BIOCON | C52: 619.4 | D52: 617.20 | E52: 613.40 | F52: 607.40 | G52: 603.60 | H52: 623.20 | I52: 627.00 | J52: 633.00 | K52: 621 | L52: 611.2 | M52: 10.46992
A53: 44 | B53: BOSCHLTD | C53: 18175.65 | D53: 18051.87 | E53: 17878.78 | F53: 17581.92 | G53: 17408.83 | H53: 18348.73 | I53: 18521.82 | J53: 18818.68 | K53: 18224.95 | L53: 17755 | M53: 0.10625
A54: 45 | B54: BRITANNIA | C54: 2922.3 | D54: 2912.10 | E54: 2894.20 | F54: 2866.10 | G54: 2848.20 | H54: 2940.20 | I54: 2958.10 | J54: 2986.20 | K54: 2930 | L54: 2884 | M54: 2.71061
A55: 46 | B55: CRISIL | C55: 1564.35 | D55: 1562.63 | E55: 1545.27 | F55: 1526.18 | G55: 1508.82 | H55: 1581.72 | I55: 1599.08 | J55: 1618.17 | K55: 1580 | L55: 1543.55 | M55: 0.0567
A56: 47 | B56: CADILAHC | C56: 313.2 | D56: 312.65 | E56: 310.55 | F56: 307.90 | G56: 305.80 | H56: 315.30 | I56: 317.40 | J56: 320.05 | K56: 314.75 | L56: 310 | M56: 6.43033
A57: 48 | B57: CANBK | C57: 218.55 | D57: 218.03 | E57: 216.27 | F57: 213.98 | G57: 212.22 | H57: 220.32 | I57: 222.08 | J57: 224.37 | K57: 219.8 | L57: 215.75 | M57: 36.44838
A58: 49 | B58: CASTROLIND | C58: 150.2 | D58: 149.65 | E58: 148.35 | F58: 146.50 | G58: 145.20 | H58: 151.50 | I58: 152.80 | J58: 154.65 | K58: 150.95 | L58: 147.8 | M58: 14.04441
A59: 50 | B59: CENTRALBK | C59: 29.75 | D59: 30.27 | E59: 28.53 | F59: 27.32 | G59: 25.58 | H59: 31.48 | I59: 33.22 | J59: 34.43 | K59: 32 | L59: 29.05 | M59: 12.36519
A60: 51 | B60: CENTURYTEX | C60: 741.05 | D60: 733.60 | E60: 723.45 | F60: 705.85 | G60: 695.70 | H60: 751.20 | I60: 761.35 | J60: 778.95 | K60: 743.75 | L60: 716 | M60: 6.49595
A61: 52 | B61: CHOLAFIN | C61: 1183.25 | D61: 1179.25 | E61: 1164.00 | F61: 1144.75 | G61: 1129.50 | H61: 1198.50 | I61: 1213.75 | J61: 1233.00 | K61: 1194.5 | L61: 1160 | M61: 2.84108
A62: 53 | B62: CIPLA | C62: 541.1 | D62: 540.98 | E62: 538.77 | F62: 536.43 | G62: 534.22 | H62: 543.32 | I62: 545.53 | J62: 547.87 | K62: 543.2 | L62: 538.65 | M62: 12.0893
A63: 54 | B63: COALINDIA | C63: 214.95 | D63: 214.97 | E63: 213.53 | F63: 212.12 | G63: 210.68 | H63: 216.38 | I63: 217.82 | J63: 219.23 | K63: 216.4 | L63: 213.55 | M63: 66.37981
A64: 55 | B64: COLPAL | C64: 1245.15 | D64: 1250.63 | E64: 1233.27 | F64: 1221.38 | G64: 1204.02 | H64: 1262.52 | I64: 1279.88 | J64: 1291.77 | K64: 1268 | L64: 1238.75 | M64: 4.82015
A65: 56 | B65: CONCOR | C65: 491.9 | D65: 489.47 | E65: 482.43 | F65: 472.97 | G65: 465.93 | H65: 498.93 | I65: 505.97 | J65: 515.43 | K65: 496.5 | L65: 480 | M65: 6.69634
A66: 57 | B66: COROMANDEL | C66: 446.9 | D66: 446.45 | E66: 442.60 | F66: 438.30 | G66: 434.45 | H66: 450.75 | I66: 454.60 | J66: 458.90 | K66: 450.3 | L66: 442.15 | M66: 1.0332
A67: 58 | B67: CROMPTON | C67: 200.65 | D67: 200.05 | E67: 195.10 | F67: 189.55 | G67: 184.60 | H67: 205.60 | I67: 210.55 | J67: 216.10 | K67: 205 | L67: 194.5 | M67: 6.70239
A68: 59 | B68: CUMMINSIND | C68: 676.45 | D68: 678.15 | E68: 664.30 | F68: 652.15 | G68: 638.30 | H68: 690.30 | I68: 704.15 | J68: 716.30 | K68: 692 | L68: 666 | M68: 9.63583
A69: 60 | B69: DLF | C69: 163 | D69: 162.43 | E69: 159.57 | F69: 156.13 | G69: 153.27 | H69: 165.87 | I69: 168.73 | J69: 172.17 | K69: 165.3 | L69: 159 | M69: 93.59061
A70: 61 | B70: DABUR | C70: 424.7 | D70: 424.00 | E70: 422.00 | F70: 419.30 | G70: 417.30 | H70: 426.70 | I70: 428.70 | J70: 431.40 | K70: 426 | L70: 421.3 | M70: 9.12999
A71: 62 | B71: DHFL | C71: 130.35 | D71: 129.47 | E71: 127.63 | F71: 124.92 | G71: 123.08 | H71: 132.18 | I71: 134.02 | J71: 136.73 | K71: 131.3 | L71: 126.75 | M71: 93.80032
A72: 63 | B72: DISHTV | C72: 34.55 | D72: 34.52 | E72: 33.73 | F72: 32.92 | G72: 32.13 | H72: 35.33 | I72: 36.12 | J72: 36.93 | K72: 35.3 | L72: 33.7 | M72: 126.48116
A73: 64 | B73: DIVISLAB | C73: 1560.55 | D73: 1569.63 | E73: 1544.37 | F73: 1528.18 | G73: 1502.92 | H73: 1585.82 | I73: 1611.08 | J73: 1627.27 | K73: 1594.9 | L73: 1553.45 | M73: 7.75963
A74: 65 | B74: LALPATHLAB | C74: 1034.05 | D74: 1031.00 | E74: 1018.05 | F74: 1002.05 | G74: 989.10 | H74: 1047.00 | I74: 1059.95 | J74: 1075.95 | K74: 1043.95 | L74: 1015 | M74: 0.32931
A75: 66 | B75: DRREDDY | C75: 2525.15 | D75: 2539.23 | E75: 2494.47 | F75: 2463.78 | G75: 2419.02 | H75: 2569.92 | I75: 2614.68 | J75: 2645.37 | K75: 2584 | L75: 2508.55 | M75: 15.59722
A76: 67 | B76: EDELWEISS | C76: 148.55 | D76: 147.05 | E76: 144.70 | F76: 140.85 | G76: 138.50 | H76: 150.90 | I76: 153.25 | J76: 157.10 | K76: 149.4 | L76: 143.2 | M76: 24.20479
A77: 68 | B77: EICHERMOT | C77: 20528.55 | D77: 20519.52 | E77: 20389.03 | F77: 20249.52 | G77: 20119.03 | H77: 20659.03 | I77: 20789.52 | J77: 20929.03 | K77: 20650 | L77: 20380 | M77: 0.69858
A78: 69 | B78: EMAMILTD | C78: 395.15 | D78: 399.38 | E78: 386.77 | F78: 378.38 | G78: 365.77 | H78: 407.77 | I78: 420.38 | J78: 428.77 | K78: 412 | L78: 391 | M78: 17.01426
A79: 70 | B79: ENDURANCE | C79: 1298.75 | D79: 1304.05 | E79: 1249.10 | F79: 1199.45 | G79: 1144.50 | H79: 1353.70 | I79: 1408.65 | J79: 1458.30 | K79: 1359 | L79: 1254.4 | M79: 1.42984
A80: 71 | B80: ENGINERSIN | C80: 106.2 | D80: 106.85 | E80: 104.90 | F80: 103.60 | G80: 101.65 | H80: 108.15 | I80: 110.10 | J80: 111.40 | K80: 108.8 | L80: 105.55 | M80: 30.62758
A81: 72 | B81: EXIDEIND | C81: 206.4 | D81: 202.87 | E81: 197.83 | F81: 189.27 | G81: 184.23 | H81: 211.43 | I81: 216.47 | J81: 225.03 | K81: 207.9 | L81: 194.3 | M81: 80.7636
A82: 73 | B82: FEDERALBNK | C82: 79.65 | D82: 79.68 | E82: 78.97 | F82: 78.28 | G82: 77.57 | H82: 80.37 | I82: 81.08 | J82: 81.77 | K82: 80.4 | L82: 79 | M82: 91.02119
A83: 74 | B83: GAIL | C83: 329.7 | D83: 327.25 | E83: 321.90 | F83: 314.10 | G83: 308.75 | H83: 335.05 | I83: 340.40 | J83: 348.20 | K83: 332.6 | L83: 319.45 | M83: 45.40823
A84: 75 | B84: GMRINFRA | C84: 15.65 | D84: 15.63 | E84: 15.47 | F84: 15.28 | G84: 15.12 | H84: 15.82 | I84: 15.98 | J84: 16.17 | K84: 15.8 | L84: 15.45 | M84: 187.44378
A85: 76 | B85: GSKCONS | C85: 7209.6 | D85: 7245.22 | E85: 7165.43 | F85: 7121.27 | G85: 7041.48 | H85: 7289.38 | I85: 7369.17 | J85: 7413.33 | K85: 7325 | L85: 7201.05 | M85: 0.25454
A86: 77 | B86: GLAXO | C86: 1335.9 | D86: 1337.95 | E86: 1322.95 | F86: 1310.00 | G86: 1295.00 | H86: 1350.90 | I86: 1365.90 | J86: 1378.85 | K86: 1352.95 | L86: 1325 | M86: 0.18314
A87: 78 | B87: GLENMARK | C87: 586.95 | D87: 585.52 | E87: 580.63 | F87: 574.32 | G87: 569.43 | H87: 591.83 | I87: 596.72 | J87: 603.03 | K87: 590.4 | L87: 579.2 | M87: 4.35907
A88: 79 | B88: GODREJCP | C88: 676.35 | D88: 674.27 | E88: 670.53 | F88: 664.72 | G88: 660.98 | H88: 680.08 | I88: 683.82 | J88: 689.63 | K88: 678 | L88: 668.45 | M88: 4.57829
A89: 80 | B89: GODREJIND | C89: 482.7 | D89: 479.82 | E89: 473.43 | F89: 464.17 | G89: 457.78 | H89: 489.08 | I89: 495.47 | J89: 504.73 | K89: 486.2 | L89: 470.55 | M89: 4.06323
A90: 81 | B90: GRUH | C90: 241.85 | D90: 242.85 | E90: 239.70 | F90: 237.55 | G90: 234.40 | H90: 245.00 | I90: 248.15 | J90: 250.30 | K90: 246 | L90: 240.7 | M90: 5.20524
A91: 82 | B91: GPPL | C91: 80 | D91: 79.68 | E91: 78.32 | F91: 76.63 | G91: 75.27 | H91: 81.37 | I91: 82.73 | J91: 84.42 | K91: 81.05 | L91: 78 | M91: 3.19424
A92: 83 | B92: GSPL | C92: 152.45 | D92: 153.03 | E92: 150.72 | F92: 148.98 | G92: 146.67 | H92: 154.77 | I92: 157.08 | J92: 158.82 | K92: 155.35 | L92: 151.3 | M92: 2.65086
A93: 84 | B93: HCLTECH | C93: 1057.95 | D93: 1048.48 | E93: 1035.47 | F93: 1012.98 | G93: 999.97 | H93: 1070.97 | I93: 1083.98 | J93: 1106.47 | K93: 1061.5 | L93: 1026 | M93: 12.79177
A94: 85 | B94: HDFCBANK | C94: 2108.35 | D94: 2100.42 | E94: 2089.83 | F94: 2071.32 | G94: 2060.73 | H94: 2118.93 | I94: 2129.52 | J94: 2148.03 | K94: 2111 | L94: 2081.9 | M94: 12.23125
A95: 86 | B95: HAVELLS | C95: 695.15 | D95: 689.38 | E95: 679.77 | F95: 664.38 | G95: 654.77 | H95: 704.77 | I95: 714.38 | J95: 729.77 | K95: 699 | L95: 674 | M95: 10.43449
A96: 87 | B96: HEROMOTOCO | C96: 2623.75 | D96: 2630.70 | E96: 2599.65 | F96: 2575.55 | G96: 2544.50 | H96: 2654.80 | I96: 2685.85 | J96: 2709.95 | K96: 2661.75 | L96: 2606.6 | M96: 6.0583
A97: 88 | B97: HEXAWARE | C97: 356.6 | D97: 356.05 | E97: 353.10 | F97: 349.60 | G97: 346.65 | H97: 359.55 | I97: 362.50 | J97: 366.00 | K97: 359 | L97: 352.55 | M97: 8.3372
A98: 89 | B98: HINDALCO | C98: 193 | D98: 191.48 | E98: 189.07 | F98: 185.13 | G98: 182.72 | H98: 195.42 | I98: 197.83 | J98: 201.77 | K98: 193.9 | L98: 187.55 | M98: 75.95081
A99: 90 | B99: HINDPETRO | C99: 220.95 | D99: 219.33 | E99: 216.77 | F99: 212.58 | G99: 210.02 | H99: 223.52 | I99: 226.08 | J99: 230.27 | K99: 221.9 | L99: 215.15 | M99: 38.30318
A100: 91 | B100: HINDUNILVR | C100: 1733.5 | D100: 1733.82 | E100: 1721.68 | F100: 1709.87 | G100: 1697.73 | H100: 1745.63 | I100: 1757.77 | J100: 1769.58 | K100: 1745.95 | L100: 1722 | M100: 14.30235
A101: 92 | B101: HINDZINC | C101: 253.9 | D101: 252.80 | E101: 250.45 | F101: 247.00 | G101: 244.65 | H101: 256.25 | I101: 258.60 | J101: 262.05 | K101: 255.15 | L101: 249.35 | M101: 9.60908
A102: 93 | B102: HUDCO | C102: 38.5 | D102: 38.48 | E102: 38.12 | F102: 37.73 | G102: 37.37 | H102: 38.87 | I102: 39.23 | J102: 39.62 | K102: 38.85 | L102: 38.1 | M102: 4.57506
A103: 94 | B103: HDFC | C103: 1870.5 | D103: 1867.82 | E103: 1860.68 | F103: 1850.87 | G103: 1843.73 | H103: 1877.63 | I103: 1884.77 | J103: 1894.58 | K103: 1874.95 | L103: 1858 | M103: 26.45051
A104: 95 | B104: ITC | C104: 275.85 | D104: 275.87 | E104: 274.23 | F104: 272.62 | G104: 270.98 | H104: 277.48 | I104: 279.12 | J104: 280.73 | K104: 277.5 | L104: 274.25 | M104: 59.7788
A105: 96 | B105: ICICIBANK | C105: 345.2 | D105: 345.05 | E105: 342.50 | F105: 339.80 | G105: 337.25 | H105: 347.75 | I105: 350.30 | J105: 353.00 | K105: 347.6 | L105: 342.35 | M105: 94.74758
A106: 97 | B106: ICICIPRULI | C106: 302.9 | D106: 302.90 | E106: 300.10 | F106: 297.30 | G106: 294.50 | H106: 305.70 | I106: 308.50 | J106: 311.30 | K106: 305.7 | L106: 300.1 | M106: 4.52836
A107: 98 | B107: IDBI | C107: 43.75 | D107: 43.47 | E107: 42.93 | F107: 42.12 | G107: 41.58 | H107: 44.28 | I107: 44.82 | J107: 45.63 | K107: 44 | L107: 42.65 | M107: 69.49312
A108: 99 | B108: IDFCFIRSTB | C108: 44.75 | D108: 44.45 | E108: 43.90 | F108: 43.05 | G108: 42.50 | H108: 45.30 | I108: 45.85 | J108: 46.70 | K108: 45 | L108: 43.6 | M108: 116.52714
A109: 100 | B109: IDFC | C109: 35.65 | D109: 35.43 | E109: 34.77 | F109: 33.88 | G109: 33.22 | H109: 36.32 | I109: 36.98 | J109: 37.87 | K109: 36.1 | L109: 34.55 | M109: 63.71919
A110: 101 | B110: IRB | C110: 117.5 | D110: 117.42 | E110: 113.08 | F110: 108.67 | G110: 104.33 | H110: 121.83 | I110: 126.17 | J110: 130.58 | K110: 121.75 | L110: 113 | M110: 63.50945
A111: 102 | B111: IDEA | C111: 30.6 | D111: 30.48 | E111: 30.07 | F111: 29.53 | G111: 29.12 | H111: 31.02 | I111: 31.43 | J111: 31.97 | K111: 30.9 | L111: 29.95 | M111: 200.88894
A112: 103 | B112: IBULHSGFIN | C112: 645.2 | D112: 639.07 | E112: 626.13 | F112: 607.07 | G112: 594.13 | H112: 658.13 | I112: 671.07 | J112: 690.13 | K112: 652 | L112: 620 | M112: 84.25366
A113: 104 | B113: INDIANB | C113: 221.35 | D113: 219.82 | E113: 216.63 | F113: 211.92 | G113: 208.73 | H113: 224.53 | I113: 227.72 | J113: 232.43 | K113: 223 | L113: 215.1 | M113: 24.58984
A114: 105 | B114: INDHOTEL | C114: 138.8 | D114: 139.93 | E114: 136.42 | F114: 134.03 | G114: 130.52 | H114: 142.32 | I114: 145.83 | J114: 148.22 | K114: 143.45 | L114: 137.55 | M114: 18.67358
A115: 106 | B115: IOC | C115: 129.3 | D115: 128.63 | E115: 126.57 | F115: 123.83 | G115: 121.77 | H115: 131.37 | I115: 133.43 | J115: 136.17 | K115: 130.7 | L115: 125.9 | M115: 79.62818
A116: 107 | B116: IGL | C116: 284.7 | D116: 284.02 | E116: 281.98 | F116: 279.27 | G116: 277.23 | H116: 286.73 | I116: 288.77 | J116: 291.48 | K116: 286.05 | L116: 281.3 | M116: 14.69834
A117: 108 | B117: INDUSINDBK | C117: 1480.8 | D117: 1482.83 | E117: 1472.07 | F117: 1463.33 | G117: 1452.57 | H117: 1491.57 | I117: 1502.33 | J117: 1511.07 | K117: 1493.6 | L117: 1474.1 | M117: 16.88403
A118: 109 | B118: NAUKRI | C118: 1710.05 | D118: 1700.33 | E118: 1621.87 | F118: 1533.68 | G118: 1455.22 | H118: 1788.52 | I118: 1866.98 | J118: 1955.17 | K118: 1778.8 | L118: 1612.15 | M118: 2.55592
A119: 110 | B119: INFY | C119: 740.7 | D119: 736.58 | E119: 730.17 | F119: 719.63 | G119: 713.22 | H119: 747.12 | I119: 753.53 | J119: 764.07 | K119: 743 | L119: 726.05 | M119: 52.10675
A120: 111 | B120: INDIGO | C120: 1140 | D120: 1125.33 | E120: 1101.17 | F120: 1062.33 | G120: 1038.17 | H120: 1164.17 | I120: 1188.33 | J120: 1227.17 | K120: 1149.5 | L120: 1086.5 | M120: 16.43034
A121: 112 | B121: IPCALAB | C121: 799.05 | D121: 802.35 | E121: 789.70 | F121: 780.35 | G121: 767.70 | H121: 811.70 | I121: 824.35 | J121: 833.70 | K121: 815 | L121: 793 | M121: 1.54199
A122: 113 | B122: JSWENERGY | C122: 65.4 | D122: 65.82 | E122: 64.68 | F122: 63.97 | G122: 62.83 | H122: 66.53 | I122: 67.67 | J122: 68.38 | K122: 66.95 | L122: 65.1 | M122: 4.22772
A123: 114 | B123: JSWSTEEL | C123: 274.05 | D123: 272.58 | E123: 268.97 | F123: 263.88 | G123: 260.27 | H123: 277.67 | I123: 281.28 | J123: 286.37 | K123: 276.2 | L123: 267.5 | M123: 103.02096
A124: 115 | B124: JINDALSTEL | C124: 149.8 | D124: 147.57 | E124: 143.88 | F124: 137.97 | G124: 134.28 | H124: 153.48 | I124: 157.17 | J124: 163.08 | K124: 151.25 | L124: 141.65 | M124: 214.46463
A125: 116 | B125: JUBLFOOD | C125: 1292.5 | D125: 1309.43 | E125: 1268.27 | F125: 1244.03 | G125: 1202.87 | H125: 1333.67 | I125: 1374.83 | J125: 1399.07 | K125: 1350.6 | L125: 1285.2 | M125: 27.97395
A126: 117 | B126: JUBILANT | C126: 751.4 | D126: 751.90 | E126: 739.80 | F126: 728.20 | G126: 716.10 | H126: 763.50 | I126: 775.60 | J126: 787.20 | K126: 764 | L126: 740.3 | M126: 4.38769
A127: 118 | B127: KARURVYSYA | C127: 66.65 | D127: 66.63 | E127: 66.27 | F127: 65.88 | G127: 65.52 | H127: 67.02 | I127: 67.38 | J127: 67.77 | K127: 67 | L127: 66.25 | M127: 5.96201
A128: 119 | B128: KOTAKBANK | C128: 1289.75 | D128: 1286.98 | E128: 1281.97 | F128: 1274.18 | G128: 1269.17 | H128: 1294.77 | I128: 1299.78 | J128: 1307.57 | K128: 1292 | L128: 1279.2 | M128: 13.50202
A129: 120 | B129: L&TFH | C129: 124.2 | D129: 123.80 | E129: 122.95 | F129: 121.70 | G129: 120.85 | H129: 125.05 | I129: 125.90 | J129: 127.15 | K129: 124.65 | L129: 122.55 | M129: 41.60431
A130: 121 | B130: LICHSGFIN | C130: 451.9 | D130: 451.25 | E130: 445.15 | F130: 438.40 | G130: 432.30 | H130: 458.00 | I130: 464.10 | J130: 470.85 | K130: 457.35 | L130: 444.5 | M130: 35.72025
A131: 122 | B131: LT | C131: 1276.55 | D131: 1274.47 | E131: 1266.28 | F131: 1256.02 | G131: 1247.83 | H131: 1284.73 | I131: 1292.92 | J131: 1303.18 | K131: 1282.65 | L131: 1264.2 | M131: 24.33082
A132: 123 | B132: LUPIN | C132: 762.65 | D132: 761.23 | E132: 754.02 | F132: 745.38 | G132: 738.17 | H132: 769.87 | I132: 777.08 | J132: 785.72 | K132: 768.45 | L132: 752.6 | M132: 14.5262
A133: 124 | B133: MRF | C133: 54793.2 | D133: 54629.40 | E133: 54288.80 | F133: 53784.40 | G133: 53443.80 | H133: 55133.80 | I133: 55474.40 | J133: 55978.80 | K133: 54970 | L133: 54125 | M133: 0.06031
A134: 125 | B134: MGL | C134: 864.75 | D134: 870.02 | E134: 855.93 | F134: 847.12 | G134: 833.03 | H134: 878.83 | I134: 892.92 | J134: 901.73 | K134: 884.1 | L134: 861.2 | M134: 2.20857
A135: 126 | B135: M&MFIN | C135: 382.35 | D135: 379.88 | E135: 375.77 | F135: 369.18 | G135: 365.07 | H135: 386.47 | I135: 390.58 | J135: 397.17 | K135: 384 | L135: 373.3 | M135: 8.18156
A136: 127 | B136: M&M | C136: 633.55 | D136: 633.00 | E136: 628.70 | F136: 623.85 | G136: 619.55 | H136: 637.85 | I136: 642.15 | J136: 647.00 | K136: 637.3 | L136: 628.15 | M136: 23.69483
A137: 128 | B137: MANAPPURAM | C137: 109.3 | D137: 108.73 | E137: 107.57 | F137: 105.83 | G137: 104.67 | H137: 110.47 | I137: 111.63 | J137: 113.37 | K137: 109.9 | L137: 107 | M137: 31.50642
A138: 129 | B138: MRPL | C138: 63.65 | D138: 63.67 | E138: 63.08 | F138: 62.52 | G138: 61.93 | H138: 64.23 | I138: 64.82 | J138: 65.38 | K138: 64.25 | L138: 63.1 | M138: 9.58658
A139: 130 | B139: MARICO | C139: 333.05 | D139: 334.42 | E139: 329.83 | F139: 326.62 | G139: 322.03 | H139: 337.63 | I139: 342.22 | J139: 345.43 | K139: 339 | L139: 331.2 | M139: 18.992
A140: 131 | B140: MARUTI | C140: 6849.9 | D140: 6847.43 | E140: 6806.87 | F140: 6763.83 | G140: 6723.27 | H140: 6890.47 | I140: 6931.03 | J140: 6974.07 | K140: 6888 | L140: 6804.4 | M140: 5.34284
A141: 132 | B141: MFSL | C141: 395.8 | D141: 393.38 | E141: 386.77 | F141: 377.73 | G141: 371.12 | H141: 402.42 | I141: 409.03 | J141: 418.07 | K141: 400 | L141: 384.35 | M141: 3.29028
A142: 133 | B142: MINDTREE | C142: 903.95 | D142: 896.65 | E142: 886.30 | F142: 868.65 | G142: 858.30 | H142: 914.30 | I142: 924.65 | J142: 942.30 | K142: 907 | L142: 879 | M142: 13.32001
A143: 134 | B143: MOTHERSUMI | C143: 134.45 | D143: 134.23 | E143: 132.22 | F143: 129.98 | G143: 127.97 | H143: 136.47 | I143: 138.48 | J143: 140.72 | K143: 136.25 | L143: 132 | M143: 56.90518
A144: 135 | B144: MPHASIS | C144: 1041.25 | D144: 1039.38 | E144: 1031.97 | F144: 1022.68 | G144: 1015.27 | H144: 1048.67 | I144: 1056.08 | J144: 1065.37 | K144: 1046.8 | L144: 1030.1 | M144: 3.7868
A145: 136 | B145: MUTHOOTFIN | C145: 519.2 | D145: 520.00 | E145: 515.00 | F145: 510.80 | G145: 505.80 | H145: 524.20 | I145: 529.20 | J145: 533.40 | K145: 525 | L145: 515.8 | M145: 5.04918
A146: 137 | B146: NATCOPHARM | C146: 575.8 | D146: 574.97 | E146: 570.93 | F146: 566.07 | G146: 562.03 | H146: 579.83 | I146: 583.87 | J146: 588.73 | K146: 579 | L146: 570.1 | M146: 1.71271
A147: 138 | B147: NBCC | C147: 51.35 | D147: 51.07 | E147: 50.53 | F147: 49.72 | G147: 49.18 | H147: 51.88 | I147: 52.42 | J147: 53.23 | K147: 51.6 | L147: 50.25 | M147: 59.85253
A148: 139 | B148: NHPC | C148: 23.6 | D148: 23.60 | E148: 23.40 | F148: 23.20 | G148: 23.00 | H148: 23.80 | I148: 24.00 | J148: 24.20 | K148: 23.8 | L148: 23.4 | M148: 21.02686
A149: 140 | B149: NMDC | C149: 93.85 | D149: 93.65 | E149: 93.00 | F149: 92.15 | G149: 91.50 | H149: 94.50 | I149: 95.15 | J149: 96.00 | K149: 94.3 | L149: 92.8 | M149: 28.89936
A150: 141 | B150: NTPC | C150: 137.2 | D150: 136.13 | E150: 133.37 | F150: 129.53 | G150: 126.77 | H150: 139.97 | I150: 142.73 | J150: 146.57 | K150: 138.9 | L150: 132.3 | M150: 124.62775
A151: 142 | B151: NATIONALUM | C151: 49.85 | D151: 50.02 | E151: 48.73 | F151: 47.62 | G151: 46.33 | H151: 51.13 | I151: 52.42 | J151: 53.53 | K151: 51.3 | L151: 48.9 | M151: 118.7766
A152: 143 | B152: OBEROIRLTY | C152: 481 | D152: 482.17 | E152: 471.38 | F152: 461.77 | G152: 450.98 | H152: 491.78 | I152: 502.57 | J152: 512.18 | K152: 492.95 | L152: 472.55 | M152: 5.3892
A153: 144 | B153: ONGC | C153: 144.05 | D153: 143.13 | E153: 140.92 | F153: 137.78 | G153: 135.57 | H153: 146.27 | I153: 148.48 | J153: 151.62 | K153: 145.35 | L153: 140 | M153: 142.36359
A154: 145 | B154: OIL | C154: 180.25 | D154: 179.27 | E154: 177.53 | F154: 174.82 | G154: 173.08 | H154: 181.98 | I154: 183.72 | J154: 186.43 | K154: 181 | L154: 176.55 | M154: 47.5925
A155: 146 | B155: OFSS | C155: 3484.15 | D155: 3483.77 | E155: 3453.03 | F155: 3421.92 | G155: 3391.18 | H155: 3514.88 | I155: 3545.62 | J155: 3576.73 | K155: 3514.5 | L155: 3452.65 | M155: 0.16347
A156: 147 | B156: PCJEWELLER | C156: 67.5 | D156: 67.70 | E156: 66.85 | F156: 66.20 | G156: 65.35 | H156: 68.35 | I156: 69.20 | J156: 69.85 | K156: 68.55 | L156: 67.05 | M156: 65.19795
A157: 148 | B157: PIIND | C157: 900.4 | D157: 891.62 | E157: 880.23 | F157: 860.07 | G157: 848.68 | H157: 911.78 | I157: 923.17 | J157: 943.33 | K157: 903 | L157: 871.45 | M157: 1.01536
A158: 149 | B158: PNBHOUSING | C158: 869.8 | D158: 871.45 | E158: 855.20 | F158: 840.60 | G158: 824.35 | H158: 886.05 | I158: 902.30 | J158: 916.90 | K158: 887.7 | L158: 856.85 | M158: 0.70515
A159: 150 | B159: PAGEIND | C159: 20566.1 | D159: 20901.37 | E159: 19964.73 | F159: 19363.37 | G159: 18426.73 | H159: 21502.73 | I159: 22439.37 | J159: 23040.73 | K159: 21838 | L159: 20300 | M159: 1.30582
A160: 151 | B160: PETRONET | C160: 211.85 | D160: 213.57 | E160: 209.48 | F160: 207.12 | G160: 203.03 | H160: 215.93 | I160: 220.02 | J160: 222.38 | K160: 217.65 | L160: 211.2 | M160: 54.00774
A161: 152 | B161: PIDILITIND | C161: 1074.95 | D161: 1072.05 | E161: 1059.40 | F161: 1043.85 | G161: 1031.20 | H161: 1087.60 | I161: 1100.25 | J161: 1115.80 | K161: 1084.7 | L161: 1056.5 | M161: 3.85171
A162: 153 | B162: PEL | C162: 2197.45 | D162: 2198.35 | E162: 2177.70 | F162: 2157.95 | G162: 2137.30 | H162: 2218.10 | I162: 2238.75 | J162: 2258.50 | K162: 2219 | L162: 2178.6 | M162: 5.04402
A163: 154 | B163: PFC | C163: 108.8 | D163: 108.57 | E163: 107.38 | F163: 105.97 | G163: 104.78 | H163: 109.98 | I163: 111.17 | J163: 112.58 | K163: 109.75 | L163: 107.15 | M163: 78.47205
A164: 155 | B164: POWERGRID | C164: 181.8 | D164: 181.00 | E164: 179.40 | F164: 177.00 | G164: 175.40 | H164: 183.40 | I164: 185.00 | J164: 187.40 | K164: 182.6 | L164: 178.6 | M164: 54.3273
A165: 156 | B165: PRESTIGE | C165: 212.25 | D165: 213.35 | E165: 207.90 | F165: 203.55 | G165: 198.10 | H165: 217.70 | I165: 223.15 | J165: 227.50 | K165: 218.8 | L165: 209 | M165: 4.5731
A166: 157 | B166: PGHH | C166: 9988.6 | D166: 9957.87 | E166: 9865.73 | F166: 9742.87 | G166: 9650.73 | H166: 10080.73 | I166: 10172.87 | J166: 10295.73 | K166: 10050 | L166: 9835 | M166: 0.01659
A167: 158 | B167: PNB | C167: 71.1 | D167: 70.93 | E167: 70.42 | F167: 69.73 | G167: 69.22 | H167: 71.62 | I167: 72.13 | J167: 72.82 | K167: 71.45 | L167: 70.25 | M167: 146.46666
A168: 159 | B168: RBLBANK | C168: 554.75 | D168: 552.57 | E168: 548.83 | F168: 542.92 | G168: 539.18 | H168: 558.48 | I168: 562.22 | J168: 568.13 | K168: 556.3 | L168: 546.65 | M168: 7.59871
A169: 160 | B169: RAJESHEXPO | C169: 565.5 | D169: 571.92 | E169: 552.63 | F169: 539.77 | G169: 520.48 | H169: 584.78 | I169: 604.07 | J169: 616.93 | K169: 591.2 | L169: 559.05 | M169: 7.94817
A170: 161 | B170: RELCAPITAL | C170: 144.95 | D170: 144.18 | E170: 135.87 | F170: 126.78 | G170: 118.47 | H170: 153.27 | I170: 161.58 | J170: 170.67 | K170: 152.5 | L170: 135.1 | M170: 304.29253
A171: 162 | B171: RCOM | C171: 5.75 | D171: 5.78 | E171: 5.42 | F171: 5.08 | G171: 4.72 | H171: 6.12 | I171: 6.48 | J171: 6.82 | K171: 6.15 | L171: 5.45 | M171: 1344.64383
A172: 163 | B172: RELIANCE | C172: 1234.35 | D172: 1231.12 | E172: 1222.23 | F172: 1210.12 | G172: 1201.23 | H172: 1243.23 | I172: 1252.12 | J172: 1264.23 | K172: 1240 | L172: 1219 | M172: 62.98179
A173: 164 | B173: RELINFRA | C173: 119.6 | D173: 118.45 | E173: 112.70 | F173: 105.80 | G173: 100.05 | H173: 125.35 | I173: 131.10 | J173: 138.00 | K173: 124.2 | L173: 111.55 | M173: 268.45895
A174: 165 | B174: RPOWER | C174: 10.75 | D174: 10.72 | E174: 10.28 | F174: 9.82 | G174: 9.38 | H174: 11.18 | I174: 11.62 | J174: 12.08 | K174: 11.15 | L174: 10.25 | M174: 604.3467
A175: 166 | B175: RECLTD | C175: 127.75 | D175: 127.05 | E175: 125.20 | F175: 122.65 | G175: 120.80 | H175: 129.60 | I175: 131.45 | J175: 134.00 | K175: 128.9 | L175: 124.5 | M175: 77.07975
A176: 167 | B176: SRF | C176: 2208.6 | D176: 2201.33 | E176: 2187.57 | F176: 2166.53 | G176: 2152.77 | H176: 2222.37 | I176: 2236.13 | J176: 2257.17 | K176: 2215.1 | L176: 2180.3 | M176: 2.04543
A177: 168 | B177: SHREECEM | C177: 15706.2 | D177: 15633.40 | E177: 15422.80 | F177: 15139.40 | G177: 14928.80 | H177: 15916.80 | I177: 16127.40 | J177: 16410.80 | K177: 15844 | L177: 15350 | M177: 0.2895
A178: 169 | B178: SRTRANSFIN | C178: 1051 | D178: 1039.53 | E178: 1019.52 | F178: 988.03 | G178: 968.02 | H178: 1071.02 | I178: 1091.03 | J178: 1122.52 | K178: 1059.55 | L178: 1008.05 | M178: 19.36192
A179: 170 | B179: SIEMENS | C179: 966.6 | D179: 961.07 | E179: 952.43 | F179: 938.27 | G179: 929.63 | H179: 975.23 | I179: 983.87 | J179: 998.03 | K179: 969.7 | L179: 946.9 | M179: 5.00969
A180: 171 | B180: SBIN | C180: 267.7 | D180: 266.77 | E180: 265.23 | F180: 262.77 | G180: 261.23 | H180: 269.23 | I180: 270.77 | J180: 273.23 | K180: 268.3 | L180: 264.3 | M180: 155.14595
A181: 172 | B181: SAIL | C181: 47.9 | D181: 47.53 | E181: 46.57 | F181: 45.23 | G181: 44.27 | H181: 48.87 | I181: 49.83 | J181: 51.17 | K181: 48.5 | L181: 46.2 | M181: 260.58078
A182: 173 | B182: SPARC | C182: 160.85 | D182: 159.93 | E182: 157.97 | F182: 155.08 | G182: 153.12 | H182: 162.82 | I182: 164.78 | J182: 167.67 | K182: 161.9 | L182: 157.05 | M182: 3.012
A183: 174 | B183: SUNPHARMA | C183: 422.35 | D183: 420.95 | E183: 417.45 | F183: 412.55 | G183: 409.05 | H183: 425.85 | I183: 429.35 | J183: 434.25 | K183: 424.45 | L183: 416.05 | M183: 43.8535
A184: 175 | B184: SUNTV | C184: 567.25 | D184: 565.28 | E184: 558.17 | F184: 549.08 | G184: 541.97 | H184: 574.37 | I184: 581.48 | J184: 590.57 | K184: 572.4 | L184: 556.2 | M184: 25.87436
A185: 176 | B185: SUZLON | C185: 3.7 | D185: 3.67 | E185: 3.58 | F185: 3.47 | G185: 3.38 | H185: 3.78 | I185: 3.87 | J185: 3.98 | K185: 3.75 | L185: 3.55 | M185: 137.20587
A186: 177 | B186: SYNDIBANK | C186: 32.1 | D186: 31.95 | E186: 31.60 | F186: 31.10 | G186: 30.75 | H186: 32.45 | I186: 32.80 | J186: 33.30 | K186: 32.3 | L186: 31.45 | M186: 30.01919
A187: 178 | B187: SYNGENE | C187: 590.85 | D187: 594.48 | E187: 581.37 | F187: 571.88 | G187: 558.77 | H187: 603.97 | I187: 617.08 | J187: 626.57 | K187: 607.6 | L187: 585 | M187: 1.66606
A188: 179 | B188: TV18BRDCST | C188: 32.4 | D188: 32.22 | E188: 31.83 | F188: 31.27 | G188: 30.88 | H188: 32.78 | I188: 33.17 | J188: 33.73 | K188: 32.6 | L188: 31.65 | M188: 21.73883
A189: 180 | B189: TVSMOTOR | C189: 466.3 | D189: 470.07 | E189: 460.48 | F189: 454.67 | G189: 445.08 | H189: 475.88 | I189: 485.47 | J189: 491.28 | K189: 479.65 | L189: 464.25 | M189: 10.2951
A190: 181 | B190: TATACHEM | C190: 565.05 | D190: 566.47 | E190: 560.93 | F190: 556.82 | G190: 551.28 | H190: 570.58 | I190: 576.12 | J190: 580.23 | K190: 572 | L190: 562.35 | M190: 2.73104
A191: 182 | B191: TATACOMM | C191: 519.05 | D191: 513.50 | E191: 505.55 | F191: 492.05 | G191: 484.10 | H191: 527.00 | I191: 534.95 | J191: 548.45 | K191: 521.45 | L191: 500 | M191: 4.29415
A192: 183 | B192: TCS | C192: 1914.75 | D192: 1909.95 | E192: 1886.10 | F192: 1857.45 | G192: 1833.60 | H192: 1938.60 | I192: 1962.45 | J192: 1991.10 | K192: 1933.8 | L192: 1881.3 | M192: 46.45778
A193: 184 | B193: TATAGLOBAL | C193: 188.7 | D193: 187.50 | E193: 185.70 | F193: 182.70 | G193: 180.90 | H193: 190.50 | I193: 192.30 | J193: 195.30 | K193: 189.3 | L193: 184.5 | M193: 9.9317
A194: 185 | B194: TATAMTRDVR | C194: 85.8 | D194: 85.78 | E194: 85.12 | F194: 84.43 | G194: 83.77 | H194: 86.47 | I194: 87.13 | J194: 87.82 | K194: 86.45 | L194: 85.1 | M194: 8.66993
A195: 186 | B195: TATAMOTORS | C195: 164.8 | D195: 165.08 | E195: 163.47 | F195: 162.13 | G195: 160.52 | H195: 166.42 | I195: 168.03 | J195: 169.37 | K195: 166.7 | L195: 163.75 | M195: 116.10728
A196: 187 | B196: TATAPOWER | C196: 66.9 | D196: 66.88 | E196: 65.82 | F196: 64.73 | G196: 63.67 | H196: 67.97 | I196: 69.03 | J196: 70.12 | K196: 67.95 | L196: 65.8 | M196: 59.50455
A197: 188 | B197: TATASTEEL | C197: 491.15 | D197: 485.83 | E197: 477.82 | F197: 464.48 | G197: 456.47 | H197: 499.17 | I197: 507.18 | J197: 520.52 | K197: 493.85 | L197: 472.5 | M197: 154.87251
A198: 189 | B198: TECHM | C198: 812.4 | D198: 804.63 | E198: 793.02 | F198: 773.63 | G198: 762.02 | H198: 824.02 | I198: 835.63 | J198: 855.02 | K198: 816.25 | L198: 785.25 | M198: 33.4024
A199: 190 | B199: RAMCOCEM | C199: 622.75 | D199: 617.22 | E199: 608.33 | F199: 593.92 | G199: 585.03 | H199: 631.63 | I199: 640.52 | J199: 654.93 | K199: 626.1 | L199: 602.8 | M199: 2.57911
A200: 191 | B200: TITAN | C200: 1032.75 | D200: 1034.88 | E200: 1025.37 | F200: 1017.98 | G200: 1008.47 | H200: 1042.27 | I200: 1051.78 | J200: 1059.17 | K200: 1044.4 | L200: 1027.5 | M200: 15.06583
A201: 192 | B201: TORNTPHARM | C201: 1768.75 | D201: 1760.95 | E201: 1750.90 | F201: 1733.05 | G201: 1723.00 | H201: 1778.80 | I201: 1788.85 | J201: 1806.70 | K201: 1771 | L201: 1743.1 | M201: 0.99807
A202: 193 | B202: TORNTPOWER | C202: 239.05 | D202: 238.18 | E202: 235.57 | F202: 232.08 | G202: 229.47 | H202: 241.67 | I202: 244.28 | J202: 247.77 | K202: 240.8 | L202: 234.7 | M202: 17.11771
A203: 194 | B203: UPL | C203: 822.75 | D203: 821.85 | E203: 814.70 | F203: 806.65 | G203: 799.50 | H203: 829.90 | I203: 837.05 | J203: 845.10 | K203: 829 | L203: 813.8 | M203: 14.95943
A204: 195 | B204: ULTRACEMCO | C204: 3573.35 | D204: 3547.15 | E204: 3497.30 | F204: 3421.25 | G204: 3371.40 | H204: 3623.20 | I204: 3673.05 | J204: 3749.10 | K204: 3597 | L204: 3471.1 | M204: 2.43815
A205: 196 | B205: UNIONBANK | C205: 69.65 | D205: 69.42 | E205: 68.73 | F205: 67.82 | G205: 67.13 | H205: 70.33 | I205: 71.02 | J205: 71.93 | K205: 70.1 | L205: 68.5 | M205: 64.24383
... 29 more rows

Sheet MidCap Intra
L5: Back To Main Page
A6: FOR INTRA DAY TRADING | K6: =Main!B10 -> 2019-02-21
A9: Sr.no | B9: Scrip | C9: CLOSE RATE | D9: Pivot Point | E9: Supports | H9: Resistances
C10: Point | E10: S1 | F10: S2 | G10: S3 | H10: R1 | I10: R2 | J10: R3 | K10: HIGH | L10: LOW | M10: Total Trade Quanity in Lakhs
A11: 1 | B11: 3MINDIA | C11: 21971.9 | D11: 21899.30 | E11: 21685.60 | F11: 21399.30 | G11: 21185.60 | H11: 22185.60 | I11: 22399.30 | J11: 22685.60 | K11: 22113 | L11: 21613 | M11: 0.02185
A12: 2 | B12: 8KMILES | C12: 111.15 | D12: 110.53 | E12: 108.12 | F12: 105.08 | G12: 102.67 | H12: 113.57 | I12: 115.98 | J12: 119.02 | K12: 112.95 | L12: 107.5 | M12: 2.5361
A13: 3 | B13: AARTIIND | C13: 1308.65 | D13: 1325.80 | E13: 1282.85 | F13: 1257.05 | G13: 1214.10 | H13: 1351.60 | I13: 1394.55 | J13: 1420.35 | K13: 1368.75 | L13: 1300 | M13: 4.20513
A14: 4 | B14: ABAN | C14: 52.95 | D14: 53.33 | E14: 51.87 | F14: 50.78 | G14: 49.32 | H14: 54.42 | I14: 55.88 | J14: 56.97 | K14: 54.8 | L14: 52.25 | M14: 7.29983
A15: 5 | B15: ABB | C15: 1250.5 | D15: 1256.85 | E15: 1239.20 | F15: 1227.90 | G15: 1210.25 | H15: 1268.15 | I15: 1285.80 | J15: 1297.10 | K15: 1274.5 | L15: 1245.55 | M15: 0.63952
A16: 6 | B16: ABCAPITAL | C16: 81.65 | D16: 81.57 | E16: 80.73 | F16: 79.82 | G16: 78.98 | H16: 82.48 | I16: 83.32 | J16: 84.23 | K16: 82.4 | L16: 80.65 | M16: 24.42672
A17: 7 | B17: ABFRL | C17: 218.45 | D17: 217.15 | E17: 213.30 | F17: 208.15 | G17: 204.30 | H17: 222.30 | I17: 226.15 | J17: 231.30 | K17: 221 | L17: 212 | M17: 4.14526
A18: 8 | B18: ACC | C18: 1382.5 | D18: 1378.17 | E18: 1364.33 | F18: 1346.17 | G18: 1332.33 | H18: 1396.33 | I18: 1410.17 | J18: 1428.33 | K18: 1392 | L18: 1360 | M18: 7.06935
A19: 9 | B19: ADANIPORTS | C19: 354.75 | D19: 350.68 | E19: 345.02 | F19: 335.28 | G19: 329.62 | H19: 360.42 | I19: 366.08 | J19: 375.82 | K19: 356.35 | L19: 340.95 | M19: 48.85571
A20: 10 | B20: ADANIPOWER | C20: 39.55 | D20: 39.17 | E20: 37.23 | F20: 34.92 | G20: 32.98 | H20: 41.48 | I20: 43.42 | J20: 45.73 | K20: 41.1 | L20: 36.85 | M20: 116.57825
A21: 11 | B21: ADANITRANS | C21: 216.8 | D21: 217.27 | E21: 214.68 | F21: 212.57 | G21: 209.98 | H21: 219.38 | I21: 221.97 | J21: 224.08 | K21: 219.85 | L21: 215.15 | M21: 1.08672
A22: 12 | B22: ADVENZYMES | C22: 157.85 | D22: 158.88 | E22: 155.27 | F22: 152.68 | G22: 149.07 | H22: 161.47 | I22: 165.08 | J22: 167.67 | K22: 162.5 | L22: 156.3 | M22: 1.32746
A23: 13 | B23: AEGISCHEM | C23: 185.5 | D23: 183.63 | E23: 177.37 | F23: 169.23 | G23: 162.97 | H23: 191.77 | I23: 198.03 | J23: 206.17 | K23: 189.9 | L23: 175.5 | M23: 0.61019
A24: 14 | B24: AIAENG | C24: 1615.2 | D24: 1624.45 | E24: 1600.80 | F24: 1586.40 | G24: 1562.75 | H24: 1638.85 | I24: 1662.50 | J24: 1676.90 | K24: 1648.1 | L24: 1610.05 | M24: 0.09284
A25: 15 | B25: AJANTPHARM | C25: 970.65 | D25: 965.85 | E25: 954.80 | F25: 938.95 | G25: 927.90 | H25: 981.70 | I25: 992.75 | J25: 1008.60 | K25: 976.9 | L25: 950 | M25: 3.10199
A26: 16 | B26: AKZOINDIA | C26: 1683.55 | D26: 1673.85 | E26: 1647.80 | F26: 1612.05 | G26: 1586.00 | H26: 1709.60 | I26: 1735.65 | J26: 1771.40 | K26: 1699.9 | L26: 1638.1 | M26: 0.03802
A27: 17 | B27: ALBK | C27: 44.2 | D27: 43.50 | E27: 42.00 | F27: 39.80 | G27: 38.30 | H27: 45.70 | I27: 47.20 | J27: 49.40 | K27: 45 | L27: 41.3 | M27: 60.23961
A28: 18 | B28: ALKEM | C28: 1835.8 | D28: 1839.70 | E28: 1824.10 | F28: 1812.40 | G28: 1796.80 | H28: 1851.40 | I28: 1867.00 | J28: 1878.70 | K28: 1855.3 | L28: 1828 | M28: 0.11486
A29: 19 | B29: ALLCARGO | C29: 101.15 | D29: 100.95 | E29: 100.20 | F29: 99.25 | G29: 98.50 | H29: 101.90 | I29: 102.65 | J29: 103.60 | K29: 101.7 | L29: 100 | M29: 0.37524
A30: 20 | B30: AMARAJABAT | C30: 724.3 | D30: 729.02 | E30: 709.03 | F30: 693.77 | G30: 673.78 | H30: 744.28 | I30: 764.27 | J30: 779.53 | K30: 749 | L30: 713.75 | M30: 13.81382
A31: 21 | B31: AMBUJACEM | C31: 206.8 | D31: 204.73 | E31: 201.67 | F31: 196.53 | G31: 193.47 | H31: 209.87 | I31: 212.93 | J31: 218.07 | K31: 207.8 | L31: 199.6 | M31: 35.28149
A32: 22 | B32: ANDHRABANK | C32: 24 | D32: 23.82 | E32: 23.48 | F32: 22.97 | G32: 22.63 | H32: 24.33 | I32: 24.67 | J32: 25.18 | K32: 24.15 | L32: 23.3 | M32: 10.94622
A33: 23 | B33: APLAPOLLO | C33: 1086.55 | D33: 1101.85 | E33: 1064.70 | F33: 1042.85 | G33: 1005.70 | H33: 1123.70 | I33: 1160.85 | J33: 1182.70 | K33: 1139 | L33: 1080 | M33: 0.1372
A34: 24 | B34: APLLTD | C34: 528.35 | D34: 533.27 | E34: 521.08 | F34: 513.82 | G34: 501.63 | H34: 540.53 | I34: 552.72 | J34: 559.98 | K34: 545.45 | L34: 526 | M34: 0.27537
A35: 25 | B35: APOLLOHOSP | C35: 1129.6 | D35: 1131.00 | E35: 1118.60 | F35: 1107.60 | G35: 1095.20 | H35: 1142.00 | I35: 1154.40 | J35: 1165.40 | K35: 1143.4 | L35: 1120 | M35: 11.88434
A36: 26 | B36: APOLLOTYRE | C36: 209.1 | D36: 207.73 | E36: 204.57 | F36: 200.03 | G36: 196.87 | H36: 212.27 | I36: 215.43 | J36: 219.97 | K36: 210.9 | L36: 203.2 | M36: 36.26848
A37: 27 | B37: ARVIND | C37: 76.65 | D37: 76.65 | E37: 76.15 | F37: 75.65 | G37: 75.15 | H37: 77.15 | I37: 77.65 | J37: 78.15 | K37: 77.15 | L37: 76.15 | M37: 8.81511
A38: 28 | B38: ASAHIINDIA | C38: 250.35 | D38: 251.25 | E38: 249.10 | F38: 247.85 | G38: 245.70 | H38: 252.50 | I38: 254.65 | J38: 255.90 | K38: 253.4 | L38: 250 | M38: 0.10448
A39: 29 | B39: ASHOKA | C39: 111.95 | D39: 110.83 | E39: 108.77 | F39: 105.58 | G39: 103.52 | H39: 114.02 | I39: 116.08 | J39: 119.27 | K39: 112.9 | L39: 107.65 | M39: 0.7858
A40: 30 | B40: ASHOKLEY | C40: 80.95 | D40: 80.75 | E40: 80.00 | F40: 79.05 | G40: 78.30 | H40: 81.70 | I40: 82.45 | J40: 83.40 | K40: 81.5 | L40: 79.8 | M40: 255.43536
A41: 31 | B41: ASIANPAINT | C41: 1396.9 | D41: 1390.57 | E41: 1382.33 | F41: 1367.77 | G41: 1359.53 | H41: 1405.13 | I41: 1413.37 | J41: 1427.93 | K41: 1398.8 | L41: 1376 | M41: 8.43469
A42: 32 | B42: ASTRAL | C42: 1098.4 | D42: 1101.32 | E42: 1076.13 | F42: 1053.87 | G42: 1028.68 | H42: 1123.58 | I42: 1148.77 | J42: 1171.03 | K42: 1126.5 | L42: 1079.05 | M42: 2.12366
A43: 33 | B43: ATUL | C43: 3399.1 | D43: 3416.37 | E43: 3352.73 | F43: 3306.37 | G43: 3242.73 | H43: 3462.73 | I43: 3526.37 | J43: 3572.73 | K43: 3480 | L43: 3370 | M43: 0.16052
A44: 34 | B44: AUBANK | C44: 564.4 | D44: 564.97 | E44: 557.43 | F44: 550.47 | G44: 542.93 | H44: 571.93 | I44: 579.47 | J44: 586.43 | K44: 572.5 | L44: 558 | M44: 1.34989
A45: 35 | B45: AUROPHARMA | C45: 722.8 | D45: 718.72 | E45: 712.63 | F45: 702.47 | G45: 696.38 | H45: 728.88 | I45: 734.97 | J45: 745.13 | K45: 724.8 | L45: 708.55 | M45: 22.07544
A46: 36 | B46: AVANTIFEED | C46: 323.85 | D46: 324.35 | E46: 321.70 | F46: 319.55 | G46: 316.90 | H46: 326.50 | I46: 329.15 | J46: 331.30 | K46: 327 | L46: 322.2 | M46: 0.79887
A47: 37 | B47: AXISBANK | C47: 700.35 | D47: 699.55 | E47: 696.10 | F47: 691.85 | G47: 688.40 | H47: 703.80 | I47: 707.25 | J47: 711.50 | K47: 703 | L47: 695.3 | M47: 57.72687
A48: 38 | B48: BAJAJ-AUTO | C48: 2774.7 | D48: 2769.98 | E48: 2741.97 | F48: 2709.23 | G48: 2681.22 | H48: 2802.72 | I48: 2830.73 | J48: 2863.47 | K48: 2798 | L48: 2737.25 | M48: 4.28139
A49: 39 | B49: BAJAJCON | C49: 350.85 | D49: 350.18 | E49: 347.67 | F49: 344.48 | G49: 341.97 | H49: 353.37 | I49: 355.88 | J49: 359.07 | K49: 352.7 | L49: 347 | M49: 0.25253
A50: 40 | B50: BAJAJELEC | C50: 436.85 | D50: 439.40 | E50: 431.50 | F50: 426.15 | G50: 418.25 | H50: 444.75 | I50: 452.65 | J50: 458.00 | K50: 447.3 | L50: 434.05 | M50: 2.03459
A51: 41 | B51: BAJAJFINSV | C51: 5998.45 | D51: 5991.88 | E51: 5938.77 | F51: 5879.08 | G51: 5825.97 | H51: 6051.57 | I51: 6104.68 | J51: 6164.37 | K51: 6045 | L51: 5932.2 | M51: 1.61713
A52: 42 | B52: BAJAJHIND | C52: 7.8 | D52: 7.78 | E52: 7.67 | F52: 7.53 | G52: 7.42 | H52: 7.92 | I52: 8.03 | J52: 8.17 | K52: 7.9 | L52: 7.65 | M52: 12.86536
A53: 43 | B53: BAJAJHLDNG | C53: 3159.2 | D53: 3130.53 | E53: 3068.17 | F53: 2977.13 | G53: 2914.77 | H53: 3221.57 | I53: 3283.93 | J53: 3374.97 | K53: 3192.9 | L53: 3039.5 | M53: 0.94549
A54: 44 | B54: BAJFINANCE | C54: 2606.15 | D54: 2597.32 | E54: 2579.83 | F54: 2553.52 | G54: 2536.03 | H54: 2623.63 | I54: 2641.12 | J54: 2667.43 | K54: 2614.8 | L54: 2571 | M54: 10.38127
A55: 45 | B55: BALKRISIND | C55: 827.05 | D55: 827.60 | E55: 820.50 | F55: 813.95 | G55: 806.85 | H55: 834.15 | I55: 841.25 | J55: 847.80 | K55: 834.7 | L55: 821.05 | M55: 4.60273
A56: 46 | B56: BALLARPUR | C56: 3.55 | D56: 3.53 | E56: 3.42 | F56: 3.28 | G56: 3.17 | H56: 3.67 | I56: 3.78 | J56: 3.92 | K56: 3.65 | L56: 3.4 | M56: 2.72152
A57: 47 | B57: BALMLAWRIE | C57: 169.05 | D57: 168.33 | E57: 165.72 | F57: 162.38 | G57: 159.77 | H57: 171.67 | I57: 174.28 | J57: 177.62 | K57: 170.95 | L57: 165 | M57: 0.31754
A58: 48 | B58: BALRAMCHIN | C58: 123.7 | D58: 124.67 | E58: 121.13 | F58: 118.57 | G58: 115.03 | H58: 127.23 | I58: 130.77 | J58: 133.33 | K58: 128.2 | L58: 122.1 | M58: 37.3434
A59: 49 | B59: BANKBARODA | C59: 102.95 | D59: 103.05 | E59: 101.90 | F59: 100.85 | G59: 99.70 | H59: 104.10 | I59: 105.25 | J59: 106.30 | K59: 104.2 | L59: 102 | M59: 110.9731
A60: 50 | B60: BANKINDIA | C60: 81.85 | D60: 81.83 | E60: 80.77 | F60: 79.68 | G60: 78.62 | H60: 82.92 | I60: 83.98 | J60: 85.07 | K60: 82.9 | L60: 80.75 | M60: 69.05288
A61: 51 | B61: BASF | C61: 1199.65 | D61: 1200.20 | E61: 1175.50 | F61: 1151.35 | G61: 1126.65 | H61: 1224.35 | I61: 1249.05 | J61: 1273.20 | K61: 1224.9 | L61: 1176.05 | M61: 0.11453
A62: 52 | B62: BATAINDIA | C62: 1269.2 | D62: 1266.25 | E62: 1258.50 | F62: 1247.80 | G62: 1240.05 | H62: 1276.95 | I62: 1284.70 | J62: 1295.40 | K62: 1274 | L62: 1255.55 | M62: 6.58587
A63: 53 | B63: BBTC | C63: 1216.65 | D63: 1218.32 | E63: 1194.38 | F63: 1172.12 | G63: 1148.18 | H63: 1240.58 | I63: 1264.52 | J63: 1286.78 | K63: 1242.25 | L63: 1196.05 | M63: 0.83187
A64: 54 | B64: BEL | C64: 77.5 | D64: 77.52 | E64: 76.28 | F64: 75.07 | G64: 73.83 | H64: 78.73 | I64: 79.97 | J64: 81.18 | K64: 78.75 | L64: 76.3 | M64: 125.25521
A65: 55 | B65: BEML | C65: 773.9 | D65: 769.48 | E65: 760.97 | F65: 748.03 | G65: 739.52 | H65: 782.42 | I65: 790.93 | J65: 803.87 | K65: 778 | L65: 756.55 | M65: 14.10493
A66: 56 | B66: BERGEPAINT | C66: 294.75 | D66: 293.22 | E66: 290.13 | F66: 285.52 | G66: 282.43 | H66: 297.83 | I66: 300.92 | J66: 305.53 | K66: 296.3 | L66: 288.6 | M66: 6.42981
A67: 57 | B67: BFUTILITIE | C67: 154.6 | D67: 153.78 | E67: 151.67 | F67: 148.73 | G67: 146.62 | H67: 156.72 | I67: 158.83 | J67: 161.77 | K67: 155.9 | L67: 150.85 | M67: 3.2222
A68: 58 | B68: BGRENERGY | C68: 49.5 | D68: 49.93 | E68: 48.87 | F68: 48.23 | G68: 47.17 | H68: 50.57 | I68: 51.63 | J68: 52.27 | K68: 51 | L68: 49.3 | M68: 0.65706
A69: 59 | B69: BHARATFIN | C69: 933 | D69: 929.40 | E69: 923.60 | F69: 914.20 | G69: 908.40 | H69: 938.80 | I69: 944.60 | J69: 954.00 | K69: 935.2 | L69: 920 | M69: 4.80374
A70: 60 | B70: BHARATFORG | C70: 473.55 | D70: 470.30 | E70: 462.65 | F70: 451.75 | G70: 444.10 | H70: 481.20 | I70: 488.85 | J70: 499.75 | K70: 477.95 | L70: 459.4 | M70: 14.94861
A71: 61 | B71: BHARTIARTL | C71: 309 | D71: 308.27 | E71: 305.68 | F71: 302.37 | G71: 299.78 | H71: 311.58 | I71: 314.17 | J71: 317.48 | K71: 310.85 | L71: 304.95 | M71: 56.03086
A72: 62 | B72: BHEL | C72: 62.75 | D72: 62.63 | E72: 62.12 | F72: 61.48 | G72: 60.97 | H72: 63.27 | I72: 63.78 | J72: 64.42 | K72: 63.15 | L72: 62 | M72: 50.89826
A73: 63 | B73: BIOCON | C73: 619.4 | D73: 617.20 | E73: 613.40 | F73: 607.40 | G73: 603.60 | H73: 623.20 | I73: 627.00 | J73: 633.00 | K73: 621 | L73: 611.2 | M73: 10.46992
A74: 64 | B74: BIRLACORPN | C74: 459.4 | D74: 455.15 | E74: 450.30 | F74: 441.20 | G74: 436.35 | H74: 464.25 | I74: 469.10 | J74: 478.20 | K74: 460 | L74: 446.05 | M74: 0.34413
A75: 65 | B75: BLISSGVS | C75: 153 | D75: 152.97 | E75: 150.88 | F75: 148.77 | G75: 146.68 | H75: 155.08 | I75: 157.17 | J75: 159.28 | K75: 155.05 | L75: 150.85 | M75: 19.66716
A76: 66 | B76: BLUEDART | C76: 2996.05 | D76: 3003.48 | E76: 2972.57 | F76: 2949.08 | G76: 2918.17 | H76: 3026.97 | I76: 3057.88 | J76: 3081.37 | K76: 3034.4 | L76: 2980 | M76: 0.00541
A77: 67 | B77: BLUESTARCO | C77: 586.6 | D77: 581.87 | E77: 568.73 | F77: 550.87 | G77: 537.73 | H77: 599.73 | I77: 612.87 | J77: 630.73 | K77: 595 | L77: 564 | M77: 0.09351
A78: 68 | B78: BOMDYEING | C78: 107.45 | D78: 107.58 | E78: 105.87 | F78: 104.28 | G78: 102.57 | H78: 109.17 | I78: 110.88 | J78: 112.47 | K78: 109.3 | L78: 106 | M78: 7.41575
A79: 69 | B79: BOSCHLTD | C79: 18175.65 | D79: 18051.87 | E79: 17878.78 | F79: 17581.92 | G79: 17408.83 | H79: 18348.73 | I79: 18521.82 | J79: 18818.68 | K79: 18224.95 | L79: 17755 | M79: 0.10625
A80: 70 | B80: BPCL | C80: 341.1 | D80: 340.65 | E80: 336.55 | F80: 332.00 | G80: 327.90 | H80: 345.20 | I80: 349.30 | J80: 353.85 | K80: 344.75 | L80: 336.1 | M80: 62.82741
A81: 71 | B81: BRFL | C81: 8.05 | D81: 8.00 | E81: 7.95 | F81: 7.85 | G81: 7.80 | H81: 8.10 | I81: 8.15 | J81: 8.25 | K81: 8.05 | L81: 7.9 | M81: 1.07451
A82: 72 | B82: BRIGADE | C82: 199.25 | D82: 199.27 | E82: 196.53 | F82: 193.82 | G82: 191.08 | H82: 201.98 | I82: 204.72 | J82: 207.43 | K82: 202 | L82: 196.55 | M82: 0.7205
A83: 73 | B83: BRITANNIA | C83: 2922.3 | D83: 2912.10 | E83: 2894.20 | F83: 2866.10 | G83: 2848.20 | H83: 2940.20 | I83: 2958.10 | J83: 2986.20 | K83: 2930 | L83: 2884 | M83: 2.71061
A84: 74 | B84: BSE | C84: 558.9 | D84: 560.63 | E84: 553.27 | F84: 547.63 | G84: 540.27 | H84: 566.27 | I84: 573.63 | J84: 579.27 | K84: 568 | L84: 555 | M84: 1.6073
A85: 75 | B85: CADILAHC | C85: 313.2 | D85: 312.65 | E85: 310.55 | F85: 307.90 | G85: 305.80 | H85: 315.30 | I85: 317.40 | J85: 320.05 | K85: 314.75 | L85: 310 | M85: 6.43033
A86: 77 | B86: CANBK | C86: 218.55 | D86: 218.03 | E86: 216.27 | F86: 213.98 | G86: 212.22 | H86: 220.32 | I86: 222.08 | J86: 224.37 | K86: 219.8 | L86: 215.75 | M86: 36.44838
A87: 78 | B87: CANFINHOME | C87: 253.3 | D87: 250.52 | E87: 246.33 | F87: 239.37 | G87: 235.18 | H87: 257.48 | I87: 261.67 | J87: 268.63 | K87: 254.7 | L87: 243.55 | M87: 10.4199
A88: 79 | B88: CAPLIPOINT | C88: 331.35 | D88: 328.98 | E88: 323.47 | F88: 315.58 | G88: 310.07 | H88: 336.87 | I88: 342.38 | J88: 350.27 | K88: 334.5 | L88: 321.1 | M88: 0.29344
A89: 80 | B89: CARBORUNIV | C89: 345.15 | D89: 346.55 | E89: 343.60 | F89: 342.05 | G89: 339.10 | H89: 348.10 | I89: 351.05 | J89: 352.60 | K89: 349.5 | L89: 345 | M89: 0.09344
A90: 81 | B90: CARERATING | C90: 954.8 | D90: 954.93 | E90: 949.87 | F90: 944.93 | G90: 939.87 | H90: 959.87 | I90: 964.93 | J90: 969.87 | K90: 960 | L90: 950 | M90: 0.11444
A91: 82 | B91: CASTROLIND | C91: 150.2 | D91: 149.65 | E91: 148.35 | F91: 146.50 | G91: 145.20 | H91: 151.50 | I91: 152.80 | J91: 154.65 | K91: 150.95 | L91: 147.8 | M91: 14.04441
A92: 83 | B92: CCL | C92: 264.3 | D92: 263.47 | E92: 260.98 | F92: 257.67 | G92: 255.18 | H92: 266.78 | I92: 269.27 | J92: 272.58 | K92: 265.95 | L92: 260.15 | M92: 1.02036
A93: 84 | B93: CDSL | C93: 210.8 | D93: 210.47 | E93: 209.38 | F93: 207.97 | G93: 206.88 | H93: 211.88 | I93: 212.97 | J93: 214.38 | K93: 211.55 | L93: 209.05 | M93: 0.39684
A94: 85 | B94: CEATLTD | C94: 1057.6 | D94: 1057.65 | E94: 1048.35 | F94: 1039.10 | G94: 1029.80 | H94: 1066.90 | I94: 1076.20 | J94: 1085.45 | K94: 1066.95 | L94: 1048.4 | M94: 3.92118
A95: 86 | B95: CENTRALBK | C95: 29.75 | D95: 30.27 | E95: 28.53 | F95: 27.32 | G95: 25.58 | H95: 31.48 | I95: 33.22 | J95: 34.43 | K95: 32 | L95: 29.05 | M95: 12.36519
A96: 87 | B96: CENTURYPLY | C96: 160.55 | D96: 160.85 | E96: 159.75 | F96: 158.95 | G96: 157.85 | H96: 161.65 | I96: 162.75 | J96: 163.55 | K96: 161.95 | L96: 160.05 | M96: 0.31322
A97: 88 | B97: CENTURYTEX | C97: 741.05 | D97: 733.60 | E97: 723.45 | F97: 705.85 | G97: 695.70 | H97: 751.20 | I97: 761.35 | J97: 778.95 | K97: 743.75 | L97: 716 | M97: 6.49595
A98: 89 | B98: CERA | C98: 2201.6 | D98: 2189.47 | E98: 2172.13 | F98: 2142.67 | G98: 2125.33 | H98: 2218.93 | I98: 2236.27 | J98: 2265.73 | K98: 2206.8 | L98: 2160 | M98: 0.01636
A99: 90 | B99: CGPOWER | C99: 30.25 | D99: 29.95 | E99: 29.00 | F99: 27.75 | G99: 26.80 | H99: 31.20 | I99: 32.15 | J99: 33.40 | K99: 30.9 | L99: 28.7 | M99: 374.44429
A100: 91 | B100: CHAMBLFERT | C100: 160.45 | D100: 160.23 | E100: 158.87 | F100: 157.28 | G100: 155.92 | H100: 161.82 | I100: 163.18 | J100: 164.77 | K100: 161.6 | L100: 158.65 | M100: 1.08897
A101: 92 | B101: CHENNPETRO | C101: 206.6 | D101: 206.72 | E101: 203.88 | F101: 201.17 | G101: 198.33 | H101: 209.43 | I101: 212.27 | J101: 214.98 | K101: 209.55 | L101: 204 | M101: 6.9714
A102: 93 | B102: CHOLAFIN | C102: 1183.25 | D102: 1179.25 | E102: 1164.00 | F102: 1144.75 | G102: 1129.50 | H102: 1198.50 | I102: 1213.75 | J102: 1233.00 | K102: 1194.5 | L102: 1160 | M102: 2.84108
A103: 94 | B103: CIPLA | C103: 541.1 | D103: 540.98 | E103: 538.77 | F103: 536.43 | G103: 534.22 | H103: 543.32 | I103: 545.53 | J103: 547.87 | K103: 543.2 | L103: 538.65 | M103: 12.0893
A104: 95 | B104: COALINDIA | C104: 214.95 | D104: 214.97 | E104: 213.53 | F104: 212.12 | G104: 210.68 | H104: 216.38 | I104: 217.82 | J104: 219.23 | K104: 216.4 | L104: 213.55 | M104: 66.37981
A105: 96 | B105: COCHINSHIP | C105: 340.65 | D105: 339.80 | E105: 338.10 | F105: 335.55 | G105: 333.85 | H105: 342.35 | I105: 344.05 | J105: 346.60 | K105: 341.5 | L105: 337.25 | M105: 0.2891
A106: 97 | B106: COFFEEDAY | C106: 276.8 | D106: 277.60 | E106: 272.30 | F106: 267.80 | G106: 262.50 | H106: 282.10 | I106: 287.40 | J106: 291.90 | K106: 282.9 | L106: 273.1 | M106: 1.62837
A107: 98 | B107: COLPAL | C107: 1245.15 | D107: 1250.63 | E107: 1233.27 | F107: 1221.38 | G107: 1204.02 | H107: 1262.52 | I107: 1279.88 | J107: 1291.77 | K107: 1268 | L107: 1238.75 | M107: 4.82015
A108: 99 | B108: CONCOR | C108: 491.9 | D108: 489.47 | E108: 482.43 | F108: 472.97 | G108: 465.93 | H108: 498.93 | I108: 505.97 | J108: 515.43 | K108: 496.5 | L108: 480 | M108: 6.69634
A109: 100 | B109: COROMANDEL | C109: 446.9 | D109: 446.45 | E109: 442.60 | F109: 438.30 | G109: 434.45 | H109: 450.75 | I109: 454.60 | J109: 458.90 | K109: 450.3 | L109: 442.15 | M109: 1.0332
A110: 101 | B110: COX&KINGS | C110: 141.5 | D110: 141.52 | E110: 140.03 | F110: 138.57 | G110: 137.08 | H110: 142.98 | I110: 144.47 | J110: 145.93 | K110: 143 | L110: 140.05 | M110: 0.27718
A111: 102 | B111: CRISIL | C111: 1564.35 | D111: 1562.63 | E111: 1545.27 | F111: 1526.18 | G111: 1508.82 | H111: 1581.72 | I111: 1599.08 | J111: 1618.17 | K111: 1580 | L111: 1543.55 | M111: 0.0567
A112: 103 | B112: CROMPTON | C112: 200.65 | D112: 200.05 | E112: 195.10 | F112: 189.55 | G112: 184.60 | H112: 205.60 | I112: 210.55 | J112: 216.10 | K112: 205 | L112: 194.5 | M112: 6.70239
A113: 104 | B113: CUB | C113: 176.9 | D113: 177.80 | E113: 175.65 | F113: 174.40 | G113: 172.25 | H113: 179.05 | I113: 181.20 | J113: 182.45 | K113: 179.95 | L113: 176.55 | M113: 2.20002
A114: 105 | B114: CUMMINSIND | C114: 676.45 | D114: 678.15 | E114: 664.30 | F114: 652.15 | G114: 638.30 | H114: 690.30 | I114: 704.15 | J114: 716.30 | K114: 692 | L114: 666 | M114: 9.63583
A115: 106 | B115: CYIENT | C115: 603.4 | D115: 605.82 | E115: 597.78 | F115: 592.17 | G115: 584.13 | H115: 611.43 | I115: 619.47 | J115: 625.08 | K115: 613.85 | L115: 600.2 | M115: 2.52235
A116: 107 | B116: DABUR | C116: 424.7 | D116: 424.00 | E116: 422.00 | F116: 419.30 | G116: 417.30 | H116: 426.70 | I116: 428.70 | J116: 431.40 | K116: 426 | L116: 421.3 | M116: 9.12999
A117: 108 | B117: DBCORP | C117: 180 | D117: 179.42 | E117: 177.83 | F117: 175.67 | G117: 174.08 | H117: 181.58 | I117: 183.17 | J117: 185.33 | K117: 181 | L117: 177.25 | M117: 5.65985
A118: 109 | B118: DBL | C118: 449.65 | D118: 455.20 | E118: 438.75 | F118: 427.85 | G118: 411.40 | H118: 466.10 | I118: 482.55 | J118: 493.45 | K118: 471.65 | L118: 444.3 | M118: 5.36935
A119: 110 | B119: DBREALTY | C119: 21.25 | D119: 21.62 | E119: 20.73 | F119: 20.22 | G119: 19.33 | H119: 22.13 | I119: 23.02 | J119: 23.53 | K119: 22.5 | L119: 21.1 | M119: 0.87145
A120: 111 | B120: DCAL | C120: 186.6 | D120: 186.85 | E120: 184.00 | F120: 181.40 | G120: 178.55 | H120: 189.45 | I120: 192.30 | J120: 194.90 | K120: 189.7 | L120: 184.25 | M120: 0.30323
A121: 112 | B121: DCBBANK | C121: 173 | D121: 173.90 | E121: 171.35 | F121: 169.70 | G121: 167.15 | H121: 175.55 | I121: 178.10 | J121: 179.75 | K121: 176.45 | L121: 172.25 | M121: 9.4564
A122: 113 | B122: DCMSHRIRAM | C122: 363.1 | D122: 358.70 | E122: 352.40 | F122: 341.70 | G122: 335.40 | H122: 369.40 | I122: 375.70 | J122: 386.40 | K122: 365 | L122: 348 | M122: 0.81633
A123: 114 | B123: DEEPAKFERT | C123: 125.65 | D123: 124.37 | E123: 120.73 | F123: 115.82 | G123: 112.18 | H123: 129.28 | I123: 132.92 | J123: 137.83 | K123: 128 | L123: 119.45 | M123: 3.72753
A124: 115 | B124: DELTACORP | C124: 230.05 | D124: 230.42 | E124: 226.13 | F124: 222.22 | G124: 217.93 | H124: 234.33 | I124: 238.62 | J124: 242.53 | K124: 234.7 | L124: 226.5 | M124: 8.52741
A125: 116 | B125: DEN | C125: 72 | D125: 71.98 | E125: 71.97 | F125: 71.93 | G125: 71.92 | H125: 72.02 | I125: 72.03 | J125: 72.07 | K125: 72 | L125: 71.95 | M125: 1.00585
A126: 117 | B126: DENABANK | C126: 10.9 | D126: 10.93 | E126: 10.77 | F126: 10.63 | G126: 10.47 | H126: 11.07 | I126: 11.23 | J126: 11.37 | K126: 11.1 | L126: 10.8 | M126: 22.39054
A127: 118 | B127: DHFL | C127: 130.35 | D127: 129.47 | E127: 127.63 | F127: 124.92 | G127: 123.08 | H127: 132.18 | I127: 134.02 | J127: 136.73 | K127: 131.3 | L127: 126.75 | M127: 93.80032
A128: 119 | B128: DISHTV | C128: 34.55 | D128: 34.52 | E128: 33.73 | F128: 32.92 | G128: 32.13 | H128: 35.33 | I128: 36.12 | J128: 36.93 | K128: 35.3 | L128: 33.7 | M128: 126.48116
A129: 120 | B129: DIVISLAB | C129: 1560.55 | D129: 1569.63 | E129: 1544.37 | F129: 1528.18 | G129: 1502.92 | H129: 1585.82 | I129: 1611.08 | J129: 1627.27 | K129: 1594.9 | L129: 1553.45 | M129: 7.75963
A130: 121 | B130: DIXON | C130: 2245.55 | D130: 2250.50 | E130: 2217.05 | F130: 2188.55 | G130: 2155.10 | H130: 2279.00 | I130: 2312.45 | J130: 2340.95 | K130: 2283.95 | L130: 2222 | M130: 0.12266
A131: 122 | B131: DLF | C131: 163 | D131: 162.43 | E131: 159.57 | F131: 156.13 | G131: 153.27 | H131: 165.87 | I131: 168.73 | J131: 172.17 | K131: 165.3 | L131: 159 | M131: 93.59061
A132: 123 | B132: DMART | C132: 1472.95 | D132: 1468.22 | E132: 1442.73 | F132: 1412.52 | G132: 1387.03 | H132: 1498.43 | I132: 1523.92 | J132: 1554.13 | K132: 1493.7 | L132: 1438 | M132: 8.4021
A133: 124 | B133: DREDGECORP | C133: 344.15 | D133: 345.43 | E133: 338.97 | F133: 333.78 | G133: 327.32 | H133: 350.62 | I133: 357.08 | J133: 362.27 | K133: 351.9 | L133: 340.25 | M133: 1.77421
A134: 125 | B134: DRREDDY | C134: 2525.15 | D134: 2539.23 | E134: 2494.47 | F134: 2463.78 | G134: 2419.02 | H134: 2569.92 | I134: 2614.68 | J134: 2645.37 | K134: 2584 | L134: 2508.55 | M134: 15.59722
A135: 126 | B135: ECLERX | C135: 980.65 | D135: 985.48 | E135: 975.22 | F135: 969.78 | G135: 959.52 | H135: 990.92 | I135: 1001.18 | J135: 1006.62 | K135: 995.75 | L135: 980.05 | M135: 0.03923
A136: 127 | B136: EDELWEISS | C136: 148.55 | D136: 147.05 | E136: 144.70 | F136: 140.85 | G136: 138.50 | H136: 150.90 | I136: 153.25 | J136: 157.10 | K136: 149.4 | L136: 143.2 | M136: 24.20479
A137: 128 | B137: EICHERMOT | C137: 20528.55 | D137: 20519.52 | E137: 20389.03 | F137: 20249.52 | G137: 20119.03 | H137: 20659.03 | I137: 20789.52 | J137: 20929.03 | K137: 20650 | L137: 20380 | M137: 0.69858
A138: 129 | B138: EIDPARRY | C138: 185.2 | D138: 185.40 | E138: 183.80 | F138: 182.40 | G138: 180.80 | H138: 186.80 | I138: 188.40 | J138: 189.80 | K138: 187 | L138: 184 | M138: 0.77131
A139: 130 | B139: EIHOTEL | C139: 185.25 | D139: 184.87 | E139: 183.53 | F139: 181.82 | G139: 180.48 | H139: 186.58 | I139: 187.92 | J139: 189.63 | K139: 186.2 | L139: 183.15 | M139: 2.14816
A140: 131 | B140: EMAMILTD | C140: 395.15 | D140: 399.38 | E140: 386.77 | F140: 378.38 | G140: 365.77 | H140: 407.77 | I140: 420.38 | J140: 428.77 | K140: 412 | L140: 391 | M140: 17.01426
A141: 132 | B141: ENDURANCE | C141: 1298.75 | D141: 1304.05 | E141: 1249.10 | F141: 1199.45 | G141: 1144.50 | H141: 1353.70 | I141: 1408.65 | J141: 1458.30 | K141: 1359 | L141: 1254.4 | M141: 1.42984
A142: 133 | B142: ENGINERSIN | C142: 106.2 | D142: 106.85 | E142: 104.90 | F142: 103.60 | G142: 101.65 | H142: 108.15 | I142: 110.10 | J142: 111.40 | K142: 108.8 | L142: 105.55 | M142: 30.62758
A143: 134 | B143: EQUITAS | C143: 111.25 | D143: 111.85 | E143: 109.80 | F143: 108.35 | G143: 106.30 | H143: 113.30 | I143: 115.35 | J143: 116.80 | K143: 113.9 | L143: 110.4 | M143: 13.591
A144: 135 | B144: ERIS | C144: 624.7 | D144: 620.57 | E144: 607.18 | F144: 589.67 | G144: 576.28 | H144: 638.08 | I144: 651.47 | J144: 668.98 | K144: 633.95 | L144: 603.05 | M144: 0.17266
A145: 136 | B145: EROSMEDIA | C145: 76.4 | D145: 75.48 | E145: 73.27 | F145: 70.13 | G145: 67.92 | H145: 78.62 | I145: 80.83 | J145: 83.97 | K145: 77.7 | L145: 72.35 | M145: 7.64548
A146: 137 | B146: ESCORTS | C146: 658.95 | D146: 653.70 | E146: 645.40 | F146: 631.85 | G146: 623.55 | H146: 667.25 | I146: 675.55 | J146: 689.10 | K146: 662 | L146: 640.15 | M146: 21.727
A147: 138 | B147: EVEREADY | C147: 199.9 | D147: 199.97 | E147: 198.28 | F147: 196.67 | G147: 194.98 | H147: 201.58 | I147: 203.27 | J147: 204.88 | K147: 201.65 | L147: 198.35 | M147: 0.50012
A148: 139 | B148: EXIDEIND | C148: 206.4 | D148: 202.87 | E148: 197.83 | F148: 189.27 | G148: 184.23 | H148: 211.43 | I148: 216.47 | J148: 225.03 | K148: 207.9 | L148: 194.3 | M148: 80.7636
A149: 140 | B149: FCONSUMER | C149: 45.3 | D149: 45.03 | E149: 44.57 | F149: 43.83 | G149: 43.37 | H149: 45.77 | I149: 46.23 | J149: 46.97 | K149: 45.5 | L149: 44.3 | M149: 30.47205
A150: 141 | B150: FEDERALBNK | C150: 79.65 | D150: 79.68 | E150: 78.97 | F150: 78.28 | G150: 77.57 | H150: 80.37 | I150: 81.08 | J150: 81.77 | K150: 80.4 | L150: 79 | M150: 91.02119
A151: 142 | B151: FINCABLES | C151: 372.7 | D151: 369.95 | E151: 363.20 | F151: 353.70 | G151: 346.95 | H151: 379.45 | I151: 386.20 | J151: 395.70 | K151: 376.7 | L151: 360.45 | M151: 6.71984
A152: 143 | B152: FINPIPE | C152: 447 | D152: 445.63 | E152: 438.37 | F152: 429.73 | G152: 422.47 | H152: 454.27 | I152: 461.53 | J152: 470.17 | K152: 452.9 | L152: 437 | M152: 3.26391
A153: 144 | B153: FLFL | C153: 424.6 | D153: 425.33 | E153: 421.72 | F153: 418.83 | G153: 415.22 | H153: 428.22 | I153: 431.83 | J153: 434.72 | K153: 428.95 | L153: 422.45 | M153: 1.12299
A154: 145 | B154: FSL | C154: 39.7 | D154: 40.40 | E154: 38.65 | F154: 37.60 | G154: 35.85 | H154: 41.45 | I154: 43.20 | J154: 44.25 | K154: 42.15 | L154: 39.35 | M154: 32.61548
A155: 146 | B155: GAIL | C155: 329.7 | D155: 327.25 | E155: 321.90 | F155: 314.10 | G155: 308.75 | H155: 335.05 | I155: 340.40 | J155: 348.20 | K155: 332.6 | L155: 319.45 | M155: 45.40823
A156: 147 | B156: GATI | C156: 72 | D156: 71.68 | E156: 70.87 | F156: 69.73 | G156: 68.92 | H156: 72.82 | I156: 73.63 | J156: 74.77 | K156: 72.5 | L156: 70.55 | M156: 2.02031
A157: 148 | B157: GDL | C157: 99.5 | D157: 99.43 | E157: 97.87 | F157: 96.23 | G157: 94.67 | H157: 101.07 | I157: 102.63 | J157: 104.27 | K157: 101 | L157: 97.8 | M157: 0.53785
A158: 149 | B158: GEPIL | C158: 750 | D158: 747.32 | E158: 740.68 | F158: 731.37 | G158: 724.73 | H158: 756.63 | I158: 763.27 | J158: 772.58 | K158: 753.95 | L158: 738 | M158: 0.10174
A159: 150 | B159: GESHIP | C159: 273.9 | D159: 271.30 | E159: 265.70 | F159: 257.50 | G159: 251.90 | H159: 279.50 | I159: 285.10 | J159: 293.30 | K159: 276.9 | L159: 263.1 | M159: 4.7416
A160: 151 | B160: GET&D | C160: 274.85 | D160: 275.67 | E160: 271.78 | F160: 268.72 | G160: 264.83 | H160: 278.73 | I160: 282.62 | J160: 285.68 | K160: 279.55 | L160: 272.6 | M160: 0.08071
A161: 152 | B161: GHCL | C161: 217 | D161: 217.32 | E161: 214.68 | F161: 212.37 | G161: 209.73 | H161: 219.63 | I161: 222.27 | J161: 224.58 | K161: 219.95 | L161: 215 | M161: 0.6664
A162: 153 | B162: GICRE | C162: 219.3 | D162: 219.60 | E162: 217.00 | F162: 214.70 | G162: 212.10 | H162: 221.90 | I162: 224.50 | J162: 226.80 | K162: 222.2 | L162: 217.3 | M162: 0.35309
A163: 154 | B163: GILLETTE | C163: 6508.3 | D163: 6469.17 | E163: 6424.38 | F163: 6340.47 | G163: 6295.68 | H163: 6553.08 | I163: 6597.87 | J163: 6681.78 | K163: 6513.95 | L163: 6385.25 | M163: 0.05324
A164: 155 | B164: GLAXO | C164: 1335.9 | D164: 1337.95 | E164: 1322.95 | F164: 1310.00 | G164: 1295.00 | H164: 1350.90 | I164: 1365.90 | J164: 1378.85 | K164: 1352.95 | L164: 1325 | M164: 0.18314
A165: 156 | B165: GLENMARK | C165: 586.95 | D165: 585.52 | E165: 580.63 | F165: 574.32 | G165: 569.43 | H165: 591.83 | I165: 596.72 | J165: 603.03 | K165: 590.4 | L165: 579.2 | M165: 4.35907
A166: 157 | B166: GMDCLTD | C166: 72.9 | D166: 73.45 | E166: 72.00 | F166: 71.10 | G166: 69.65 | H166: 74.35 | I166: 75.80 | J166: 76.70 | K166: 74.9 | L166: 72.55 | M166: 2.33635
A167: 158 | B167: GMRINFRA | C167: 15.65 | D167: 15.63 | E167: 15.47 | F167: 15.28 | G167: 15.12 | H167: 15.82 | I167: 15.98 | J167: 16.17 | K167: 15.8 | L167: 15.45 | M167: 187.44378
A168: 159 | B168: GNFC | C168: 246.95 | D168: 247.12 | E168: 244.98 | F168: 243.02 | G168: 240.88 | H168: 249.08 | I168: 251.22 | J168: 253.18 | K168: 249.25 | L168: 245.15 | M168: 3.46327
A169: 160 | B169: GODFRYPHLP | C169: 874.2 | D169: 877.20 | E169: 862.40 | F169: 850.60 | G169: 835.80 | H169: 889.00 | I169: 903.80 | J169: 915.60 | K169: 892 | L169: 865.4 | M169: 1.1364
A170: 161 | B170: GODREJAGRO | C170: 478.05 | D170: 479.05 | E170: 474.10 | F170: 470.15 | G170: 465.20 | H170: 483.00 | I170: 487.95 | J170: 491.90 | K170: 484 | L170: 475.1 | M170: 1.86642
A171: 162 | B171: GODREJCP | C171: 676.35 | D171: 674.27 | E171: 670.53 | F171: 664.72 | G171: 660.98 | H171: 680.08 | I171: 683.82 | J171: 689.63 | K171: 678 | L171: 668.45 | M171: 4.57829
A172: 163 | B172: GODREJIND | C172: 482.7 | D172: 479.82 | E172: 473.43 | F172: 464.17 | G172: 457.78 | H172: 489.08 | I172: 495.47 | J172: 504.73 | K172: 486.2 | L172: 470.55 | M172: 4.06323
A173: 164 | B173: GODREJPROP | C173: 714.15 | D173: 712.12 | E173: 705.33 | F173: 696.52 | G173: 689.73 | H173: 720.93 | I173: 727.72 | J173: 736.53 | K173: 718.9 | L173: 703.3 | M173: 3.07846
A174: 165 | B174: GPPL | C174: 80 | D174: 79.68 | E174: 78.32 | F174: 76.63 | G174: 75.27 | H174: 81.37 | I174: 82.73 | J174: 84.42 | K174: 81.05 | L174: 78 | M174: 3.19424
A175: 166 | B175: GRANULES | C175: 90.9 | D175: 90.17 | E175: 88.88 | F175: 86.87 | G175: 85.58 | H175: 92.18 | I175: 93.47 | J175: 95.48 | K175: 91.45 | L175: 88.15 | M175: 8.52054
A176: 167 | B176: GRAPHITE | C176: 411.4 | D176: 411.43 | E176: 405.07 | F176: 398.73 | G176: 392.37 | H176: 417.77 | I176: 424.13 | J176: 430.47 | K176: 417.8 | L176: 405.1 | M176: 14.6717
A177: 168 | B177: GRASIM | C177: 730.7 | D177: 728.50 | E177: 723.50 | F177: 716.30 | G177: 711.30 | H177: 735.70 | I177: 740.70 | J177: 747.90 | K177: 733.5 | L177: 721.3 | M177: 11.09901
A178: 169 | B178: GREAVESCOT | C178: 119.4 | D178: 119.17 | E178: 118.53 | F178: 117.67 | G178: 117.03 | H178: 120.03 | I178: 120.67 | J178: 121.53 | K178: 119.8 | L178: 118.3 | M178: 0.7958
A179: 170 | B179: GREENPLY | C179: 129.05 | D179: 129.15 | E179: 127.90 | F179: 126.75 | G179: 125.50 | H179: 130.30 | I179: 131.55 | J179: 132.70 | K179: 130.4 | L179: 128 | M179: 0.34704
A180: 171 | B180: GRUH | C180: 241.85 | D180: 242.85 | E180: 239.70 | F180: 237.55 | G180: 234.40 | H180: 245.00 | I180: 248.15 | J180: 250.30 | K180: 246 | L180: 240.7 | M180: 5.20524
A181: 172 | B181: GSFC | C181: 90 | D181: 89.20 | E181: 87.90 | F181: 85.80 | G181: 84.50 | H181: 91.30 | I181: 92.60 | J181: 94.70 | K181: 90.5 | L181: 87.1 | M181: 11.20349
A182: 173 | B182: GSKCONS | C182: 7209.6 | D182: 7245.22 | E182: 7165.43 | F182: 7121.27 | G182: 7041.48 | H182: 7289.38 | I182: 7369.17 | J182: 7413.33 | K182: 7325 | L182: 7201.05 | M182: 0.25454
A183: 174 | B183: GSPL | C183: 152.45 | D183: 153.03 | E183: 150.72 | F183: 148.98 | G183: 146.67 | H183: 154.77 | I183: 157.08 | J183: 158.82 | K183: 155.35 | L183: 151.3 | M183: 2.65086
A184: 175 | B184: GUJALKALI | C184: 432.8 | D184: 429.20 | E184: 423.70 | F184: 414.60 | G184: 409.10 | H184: 438.30 | I184: 443.80 | J184: 452.90 | K184: 434.7 | L184: 420.1 | M184: 0.44826
A185: 176 | B185: GUJFLUORO | C185: 855.4 | D185: 858.20 | E185: 848.30 | F185: 841.20 | G185: 831.30 | H185: 865.30 | I185: 875.20 | J185: 882.30 | K185: 868.1 | L185: 851.1 | M185: 0.13278
A186: 177 | B186: GUJGASLTD | C186: 118.35 | D186: 118.47 | E186: 117.28 | F186: 116.22 | G186: 115.03 | H186: 119.53 | I186: 120.72 | J186: 121.78 | K186: 119.65 | L186: 117.4 | M186: 0.81846
A187: 178 | B187: GULFOILLUB | C187: 868.55 | D187: 867.20 | E187: 863.40 | F187: 858.25 | G187: 854.45 | H187: 872.35 | I187: 876.15 | J187: 881.30 | K187: 871 | L187: 862.05 | M187: 0.08796
A188: 179 | B188: GVKPIL | C188: 5.65 | D188: 5.63 | E188: 5.52 | F188: 5.38 | G188: 5.27 | H188: 5.77 | I188: 5.88 | J188: 6.02 | K188: 5.75 | L188: 5.5 | M188: 9.5819
A189: 180 | B189: HATHWAY | C189: 25.2 | D189: 25.75 | E189: 24.45 | F189: 23.70 | G189: 22.40 | H189: 26.50 | I189: 27.80 | J189: 28.55 | K189: 27.05 | L189: 25 | M189: 3.18186
A190: 181 | B190: HATSUN | C190: 660.25 | D190: 661.38 | E190: 656.87 | F190: 653.48 | G190: 648.97 | H190: 664.77 | I190: 669.28 | J190: 672.67 | K190: 665.9 | L190: 658 | M190: 0.02611
A191: 182 | B191: HAVELLS | C191: 695.15 | D191: 689.38 | E191: 679.77 | F191: 664.38 | G191: 654.77 | H191: 704.77 | I191: 714.38 | J191: 729.77 | K191: 699 | L191: 674 | M191: 10.43449
A192: 183 | B192: HCC | C192: 12.45 | D192: 12.35 | E192: 12.15 | F192: 11.85 | G192: 11.65 | H192: 12.65 | I192: 12.85 | J192: 13.15 | K192: 12.55 | L192: 12.05 | M192: 24.03045
A193: 184 | B193: HCL-INSYS | C193: 17.85 | D193: 17.42 | E193: 16.83 | F193: 15.82 | G193: 15.23 | H193: 18.43 | I193: 19.02 | J193: 20.03 | K193: 18 | L193: 16.4 | M193: 6.97827
A194: 185 | B194: HCLTECH | C194: 1057.95 | D194: 1048.48 | E194: 1035.47 | F194: 1012.98 | G194: 999.97 | H194: 1070.97 | I194: 1083.98 | J194: 1106.47 | K194: 1061.5 | L194: 1026 | M194: 12.79177
A195: 186 | B195: HDFC | C195: 1870.5 | D195: 1867.82 | E195: 1860.68 | F195: 1850.87 | G195: 1843.73 | H195: 1877.63 | I195: 1884.77 | J195: 1894.58 | K195: 1874.95 | L195: 1858 | M195: 26.45051
A196: 187 | B196: HDFCBANK | C196: 2108.35 | D196: 2100.42 | E196: 2089.83 | F196: 2071.32 | G196: 2060.73 | H196: 2118.93 | I196: 2129.52 | J196: 2148.03 | K196: 2111 | L196: 2081.9 | M196: 12.23125
A197: 188 | B197: HDIL | C197: 22.3 | D197: 22.42 | E197: 21.88 | F197: 21.47 | G197: 20.93 | H197: 22.83 | I197: 23.37 | J197: 23.78 | K197: 22.95 | L197: 22 | M197: 31.01568
A198: 189 | B198: HEG | C198: 2135.8 | D198: 2144.60 | E198: 2101.20 | F198: 2066.60 | G198: 2023.20 | H198: 2179.20 | I198: 2222.60 | J198: 2257.20 | K198: 2188 | L198: 2110 | M198: 2.70588
A199: 190 | B199: HEIDELBERG | C199: 153.5 | D199: 153.78 | E199: 150.07 | F199: 146.63 | G199: 142.92 | H199: 157.22 | I199: 160.93 | J199: 164.37 | K199: 157.5 | L199: 150.35 | M199: 1.08838
A200: 191 | B200: HERITGFOOD | C200: 442.9 | D200: 441.12 | E200: 437.48 | F200: 432.07 | G200: 428.43 | H200: 446.53 | I200: 450.17 | J200: 455.58 | K200: 444.75 | L200: 435.7 | M200: 0.07438
A201: 192 | B201: HEROMOTOCO | C201: 2623.75 | D201: 2630.70 | E201: 2599.65 | F201: 2575.55 | G201: 2544.50 | H201: 2654.80 | I201: 2685.85 | J201: 2709.95 | K201: 2661.75 | L201: 2606.6 | M201: 6.0583
A202: 193 | B202: HEXAWARE | C202: 356.6 | D202: 356.05 | E202: 353.10 | F202: 349.60 | G202: 346.65 | H202: 359.55 | I202: 362.50 | J202: 366.00 | K202: 359 | L202: 352.55 | M202: 8.3372
A203: 194 | B203: HFCL | C203: 21.2 | D203: 21.20 | E203: 21.00 | F203: 20.80 | G203: 20.60 | H203: 21.40 | I203: 21.60 | J203: 21.80 | K203: 21.4 | L203: 21 | M203: 12.12379
A204: 195 | B204: HIMATSEIDE | C204: 165.8 | D204: 166.02 | E204: 164.28 | F204: 162.77 | G204: 161.03 | H204: 167.53 | I204: 169.27 | J204: 170.78 | K204: 167.75 | L204: 164.5 | M204: 0.69007
A205: 196 | B205: HINDALCO | C205: 193 | D205: 191.48 | E205: 189.07 | F205: 185.13 | G205: 182.72 | H205: 195.42 | I205: 197.83 | J205: 201.77 | K205: 193.9 | L205: 187.55 | M205: 75.95081
A206: 197 | B206: HINDCOPPER | C206: 44.55 | D206: 44.68 | E206: 44.17 | F206: 43.78 | G206: 43.27 | H206: 45.07 | I206: 45.58 | J206: 45.97 | K206: 45.2 | L206: 44.3 | M206: 3.91153
... 304 more rows

Sheet Bulk Deals
E6: Back To Main Page
A7: Subject : | B7: BULK DEAL | D7: =Main!B10 -> 2019-02-21
A9: Date | B9: Scrip code | C9: Scrip Name | D9: Client Name | E9: Buy / Sell | F9: Quantity Traded | G9: Trade Price / Wt.Avg.trade price | H9: Exchange
A10: 2019-02-20 | B10: 530043 | C10: ACKNIT | D10: ABHISHEK JAIN | E10: BUY | F10: 35,333 | G10: 103.02 | H10: BSE
A11: 2019-02-20 | B11: 530043 | C11: ACKNIT | D11: ABHISHEK JAIN | E11: SELL | F11: 35,333 | G11: 102.17 | H11: BSE
A12: 2019-02-20 | B12: 530245 | C12: ARYAMAN | D12: SHAH BABULAL VADILAL HUF | E12: BUY | F12: 59000 | G12: 47.3 | H12: BSE
A13: 2019-02-20 | B13: 530245 | C13: ARYAMAN | D13: SAJANKUMAR RAMESHWARLAL BAJAJ | E13: SELL | F13: 133150 | G13: 47.3 | H13: BSE
A14: 2019-02-20 | B14: 511144 | C14: ASYAINFO | D14: CHANDER PRAKASH KEWLANI | E14: BUY | F14: 90000 | G14: 4.72 | H14: BSE
A15: 2019-02-20 | B15: 511144 | C15: ASYAINFO | D15: ALPA RASHESH PAUN | E15: SELL | F15: 87600 | G15: 4.72 | H15: BSE
A16: 2019-02-20 | B16: 537766 | C16: BCP | D16: ACHINTYA COMMODITIES PRIVATE LIMITED | E16: BUY | F16: 664196 | G16: 39.68 | H16: BSE
A17: 2019-02-20 | B17: 537766 | C17: BCP | D17: ACHINTYA COMMODITIES PRIVATE LIMITED | E17: SELL | F17: 664196 | G17: 38.61 | H17: BSE
A18: 2019-02-20 | B18: 532813 | C18: CANDC | D18: ALPHA LEON ENTERPRISES LLP | E18: BUY | F18: 153514 | G18: 14 | H18: BSE
A19: 2019-02-20 | B19: 532813 | C19: CANDC | D19: ALPHA LEON ENTERPRISES LLP | E19: SELL | F19: 4514 | G19: 14.67 | H19: BSE
A20: 2019-02-20 | B20: 523232 | C20: CONTPTR | D20: DHEERAJ KUMAR LOHIA | E20: BUY | F20: 27517 | G20: 32.3 | H20: BSE
A21: 2019-02-20 | B21: 523232 | C21: CONTPTR | D21: DIPAK KANAYALAL SHAH | E21: SELL | F21: 28040 | G21: 32.3 | H21: BSE
A22: 2019-02-20 | B22: 540945 | C22: FSSPL | D22: ARUNKUMAR DASHRATHBHAI PRAJAPATI | E22: BUY | F22: 124000 | G22: 7.55 | H22: BSE
A23: 2019-02-20 | B23: 540945 | C23: FSSPL | D23: ARUNKUMAR DASHRATHBHAI PRAJAPATI | E23: SELL | F23: 32,000 | G23: 7.28 | H23: BSE
A24: 2019-02-20 | B24: 540945 | C24: FSSPL | D24: MAJESTIC MARKET RESEARCH SUPPORT SERVICES LIMITED . | E24: SELL | F24: 92,000 | G24: 7.58 | H24: BSE
A25: 2019-02-20 | B25: 540647 | C25: GANGESSEC | D25: RONSON TRADERS LTD | E25: BUY | F25: 52,030 | G25: 44.54 | H25: BSE
A26: 2019-02-20 | B26: 531199 | C26: GLANCE | D26: NIKHIL PRASHANT BHATIA | E26: SELL | F26: 15,795 | G26: 40 | H26: BSE
A27: 2019-02-20 | B27: 538765 | C27: JSHL | D27: VIVEK GUPTA | E27: SELL | F27: 95,000 | G27: 10.14 | H27: BSE
A28: 2019-02-20 | B28: 531212 | C28: NALINLEA | D28: SANJAYKUMAR SEVANTILAL SHAH | E28: BUY | F28: 1 | G28: 12.6 | H28: BSE
A29: 2019-02-20 | B29: 531212 | C29: NALINLEA | D29: SANJAYKUMAR SEVANTILAL SHAH | E29: SELL | F29: 24,552 | G29: 12.6 | H29: BSE
A30: 2019-02-20 | B30: 540243 | C30: NEWLIGHT | D30: MANISH NITIN THAKUR | E30: BUY | F30: 22,209 | G30: 43.93 | H30: BSE
A31: 2019-02-20 | B31: 540243 | C31: NEWLIGHT | D31: MANISH NITIN THAKUR | E31: SELL | F31: 10 | G31: 44.6 | H31: BSE
A32: 2019-02-20 | B32: 514330 | C32: OBRSESY | D32: SONAL SANDEEP SATAV | E32: SELL | F32: 50,000 | G32: 4.43 | H32: BSE
A33: 2019-02-20 | B33: 514330 | C33: OBRSESY | D33: HEMAL ARUNBHAI MEHTA | E33: BUY | F33: 100,000 | G33: 4.43 | H33: BSE
A34: 2019-02-20 | B34: 514330 | C34: OBRSESY | D34: ANSUYABEN KISHORBHAI MAHETA | E34: SELL | F34: 39,585 | G34: 4.43 | H34: BSE
A35: 2019-02-20 | B35: 514330 | C35: OBRSESY | D35: RESOURCE OPZIONE CONSULTANCY PRIVATE LIMITED | E35: SELL | F35: 73,739 | G35: 4.43 | H35: BSE
A36: 2019-02-20 | B36: 514330 | C36: OBRSESY | D36: VIJAY NANAJI DHAWANGALE | E36: BUY | F36: 80,000 | G36: 4.43 | H36: BSE
A37: 2019-02-20 | B37: 540404 | C37: PRIME | D37: SAMIR ROHITBHAI SHAH | E37: SELL | F37: 126000 | G37: 100 | H37: BSE
A38: 2019-02-20 | B38: 540404 | C38: PRIME | D38: SANGHVI ASSOCIATES | E38: BUY | F38: 124000 | G38: 100 | H38: BSE
A39: 2019-02-20 | B39: 539760 | C39: RELICAB | D39: AMAR MUKESHBHAI SHAH | E39: SELL | F39: 117000 | G39: 45 | H39: BSE
A40: 2019-02-20 | B40: 539760 | C40: RELICAB | D40: OVERSKUD MULTI ASSET MANAGEMENT PRIVATE LIMITED | E40: BUY | F40: 51000 | G40: 45 | H40: BSE
A41: 2019-02-20 | B41: 539760 | C41: RELICAB | D41: SAJANKUMAR RAMESHWARLAL BAJAJ | E41: BUY | F41: 102000 | G41: 44.91 | H41: BSE
A42: 2019-02-20 | B42: 539760 | C42: RELICAB | D42: SHAH MUKESHKUMAR BABULAL | E42: SELL | F42: 30000 | G42: 45 | H42: BSE
A43: 2019-02-20 | B43: 505509 | C43: RESPONIND | D43: STREAM VALUE FUND | E43: BUY | F43: 4285869 | G43: 90 | H43: BSE
A44: 2019-02-20 | B44: 505509 | C44: RESPONIND | D44: PASSAGE TO INDIA MASTER FUND LIMITED | E44: SELL | F44: 4285869 | G44: 90 | H44: BSE
A45: 2019-02-20 | B45: 531888 | C45: REXNORD | D45: KISHORECHAND KEWAL TALWAR | E45: BUY | F45: 240000 | G45: 31 | H45: BSE
A46: 2019-02-20 | B46: 531888 | C46: REXNORD | D46: NANDKISHORE MOTILAL SONI | E46: SELL | F46: 60000 | G46: 31 | H46: BSE
A47: 2019-02-20 | B47: 531888 | C47: REXNORD | D47: NAND KISHORE SONI HUF | E47: SELL | F47: 60000 | G47: 31 | H47: BSE
A48: 2019-02-20 | B48: 531888 | C48: REXNORD | D48: PURUSHOTTAM RAMAVTAR SONI | E48: SELL | F48: 60000 | G48: 31 | H48: BSE
A49: 2019-02-20 | B49: 531888 | C49: REXNORD | D49: PAWANKUMAR SONI HUF | E49: SELL | F49: 60000 | G49: 31 | H49: BSE
A50: 2019-02-20 | B50: 539660 | C50: SAHYOGMULT | D50: ANIL MUNJAL HUF | E50: BUY | F50: 44500 | G50: 21.46 | H50: BSE
A51: 2019-02-20 | B51: 539660 | C51: SAHYOGMULT | D51: REKHA DHAWAN | E51: BUY | F51: 60000 | G51: 21.46 | H51: BSE
A52: 2019-02-20 | B52: 539660 | C52: SAHYOGMULT | D52: DIWAKAR ALLWADHI | E52: BUY | F52: 75064 | G52: 21.46 | H52: BSE
A53: 2019-02-20 | B53: 539660 | C53: SAHYOGMULT | D53: VIKAS GARG | E53: SELL | F53: 177000 | G53: 21.46 | H53: BSE
A54: 2019-02-20 | B54: 539520 | C54: SHAILJA | D54: VIKAS JAGDISHCHANDRA SINGHANIA | E54: SELL | F54: 20000 | G54: 16.95 | H54: BSE
A55: 2019-02-20 | B55: 539520 | C55: SHAILJA | D55: YASH MANISH MEHTA | E55: BUY | F55: 42519 | G55: 16.98 | H55: BSE
A56: 2019-02-20 | B56: 539520 | C56: SHAILJA | D56: YASH MANISH MEHTA | E56: SELL | F56: 5447 | G56: 17.35 | H56: BSE
A57: 2019-02-20 | B57: 507998 | C57: SIMMOND | D57: SHIAMAK J MARSHALL | E57: BUY | F57: 77432 | G57: 77.87 | H57: BSE
A58: 2019-02-20 | B58: 507998 | C58: SIMMOND | D58: RIAZ RUTTON BATLIVALA | E58: SELL | F58: 73312 | G58: 77.88 | H58: BSE
A59: 2019-02-20 | B59: 511764 | C59: UPASAFN | D59: G SANTHOSH KAVAR | E59: BUY | F59: 46345 | G59: 46.38 | H59: BSE
A60: 2019-02-20 | B60: 511764 | C60: UPASAFN | D60: P GOUTAM CHAND BOKDIA | E60: BUY | F60: 47515 | G60: 46.12 | H60: BSE
A61: 2019-02-20 | B61: 511764 | C61: UPASAFN | D61: RATANCHAND LODHA | E61: SELL | F61: 35115 | G61: 45.2 | H61: BSE
A62: 2019-02-20 | B62: 511764 | C62: UPASAFN | D62: MADHU GUPTA | E62: BUY | F62: 23000 | G62: 53.89 | H62: BSE
A63: 2019-02-20 | B63: 539097 | C63: YOGYA | D63: HANSABEN DIPAKBHAI PUJARA | E63: BUY | F63: 80000 | G63: 20.3 | H63: BSE
A64: 2019-02-20 | B64: 539097 | C64: YOGYA | D64: VEER DHIREN MODI | E64: SELL | F64: 24000 | G64: 20.3 | H64: BSE
A65: 2019-02-20 | B65: 539097 | C65: YOGYA | D65: SHRENI SHARES PRIVATE LIMITED | E65: SELL | F65: 56000 | G65: 20.3 | H65: BSE
A66: 2019-02-20 | B66: CANDC | C66: C & C Constructions Limit | D66: ALPHA LEON ENTERPRISES LLP | E66: BUY | F66: 392865 | G66: 14.01 | H66: NSE
A67: 2019-02-20 | B67: CANDC | C67: C & C Constructions Limit | D67: CHIRAG BHARAT HUF | E67: BUY | F67: 293306 | G67: 14.21 | H67: NSE
A68: 2019-02-20 | B68: CANDC | C68: C & C Constructions Limit | D68: FAUNA & FLORA DEVELOPERS LIMITED LIABILITY PARTNERSHIO | E68: BUY | F68: 265000 | G68: 14.18 | H68: NSE
A69: 2019-02-20 | B69: CGPOWER | C69: CG Power & Ind. Sol. Ltd. | D69: DIVYA PORTFOLIO PRIVATE LIMITED | E69: BUY | F69: 3869311 | G69: 30.09 | H69: NSE
A70: 2019-02-20 | B70: CGPOWER | C70: CG Power & Ind. Sol. Ltd. | D70: TOWER RESEARCH CAPITAL MARKETS INDIA PRIVATE LIMITED | E70: BUY | F70: 3636804 | G70: 29.84 | H70: NSE
A71: 2019-02-20 | B71: KSCL | C71: Kaveri Seed Company Limit | D71: ALPHAGREP SECURITIES PRIVATE LIMITED | E71: BUY | F71: 745264 | G71: 401.22 | H71: NSE
A72: 2019-02-20 | B72: KSCL | C72: Kaveri Seed Company Limit | D72: CENTILLION RESEARCH INDIA LLP | E72: BUY | F72: 828221 | G72: 406.44 | H72: NSE
A73: 2019-02-20 | B73: KSCL | C73: Kaveri Seed Company Limit | D73: CROSSLAND TRADING CO | E73: BUY | F73: 967150 | G73: 399.64 | H73: NSE
A74: 2019-02-20 | B74: KSCL | C74: Kaveri Seed Company Limit | D74: GENUINE STOCK BROKERS PVT LTD | E74: BUY | F74: 493868 | G74: 399.31 | H74: NSE
A75: 2019-02-20 | B75: KSCL | C75: Kaveri Seed Company Limit | D75: GRAVITON RESEARCH CAPITAL LLP | E75: BUY | F75: 833010 | G75: 398.91 | H75: NSE
A76: 2019-02-20 | B76: KSCL | C76: Kaveri Seed Company Limit | D76: MAHAVEER COMSTOCK TRADIND LLP | E76: BUY | F76: 448266 | G76: 403.54 | H76: NSE
A77: 2019-02-20 | B77: KSCL | C77: Kaveri Seed Company Limit | D77: PURITY TRADEMAX LLP | E77: BUY | F77: 630673 | G77: 402.41 | H77: NSE
A78: 2019-02-20 | B78: KSCL | C78: Kaveri Seed Company Limit | D78: QE SECURITIES LLP | E78: BUY | F78: 372664 | G78: 397.73 | H78: NSE
A79: 2019-02-20 | B79: KSCL | C79: Kaveri Seed Company Limit | D79: SHARE INDIA SECURITIES LIMITED | E79: BUY | F79: 693570 | G79: 397.55 | H79: NSE
A80: 2019-02-20 | B80: KSCL | C80: Kaveri Seed Company Limit | D80: VAIBHAV STOCK & DERIVATIVES BROKING PVT. LTD | E80: BUY | F80: 1013937 | G80: 396.67 | H80: NSE
A81: 2019-02-20 | B81: PUNJLLOYD | C81: Punj Lloyd Limited | D81: J M GLOBAL EQUITIES PRIVATE LIMITED | E81: BUY | F81: 1 | G81: 1.8 | H81: NSE
A82: 2019-02-20 | B82: RCOM | C82: Reliance Comm. Ltd. | D82: SKYVEIL TRADE SOLUTIONS LLP | E82: BUY | F82: 36646037 | G82: 5.71 | H82: NSE
A83: 2019-02-20 | B83: RELCAPITAL | C83: Reliance Capital Limited | D83: ALPHAGREP SECURITIES PRIVATE LIMITED | E83: BUY | F83: 1624389 | G83: 142.24 | H83: NSE
A84: 2019-02-20 | B84: RELINFRA | C84: Reliance Infrastructu Ltd | D84: ALPHAGREP SECURITIES PRIVATE LIMITED | E84: BUY | F84: 1761075 | G84: 116.99 | H84: NSE
A85: 2019-02-20 | B85: RELINFRA | C85: Reliance Infrastructu Ltd | D85: DIVYA PORTFOLIO PRIVATE LIMITED | E85: BUY | F85: 1456771 | G85: 116.67 | H85: NSE
A86: 2019-02-20 | B86: RELINFRA | C86: Reliance Infrastructu Ltd | D86: TOWER RESEARCH CAPITAL MARKETS INDIA PRIVATE LIMITED | E86: BUY | F86: 1361214 | G86: 116.97 | H86: NSE
A87: 2019-02-20 | B87: WONDERLA | C87: Wonderla Holidays Ltd. | D87: STEINBERG INDIA EMERGING OPPORTUNITIES FUND LTD | E87: BUY | F87: 627517 | G87: 270 | H87: NSE
A88: 2019-02-20 | B88: CANDC | C88: C & C Constructions Limit | D88: ALPHA LEON ENTERPRISES LLP | E88: SELL | F88: 198383 | G88: 14.36 | H88: NSE
A89: 2019-02-20 | B89: CANDC | C89: C & C Constructions Limit | D89: CHIRAG BHARAT HUF | E89: SELL | F89: 130104 | G89: 14.13 | H89: NSE
A90: 2019-02-20 | B90: CANDC | C90: C & C Constructions Limit | D90: REVURI SREEDHAR REDDY | E90: SELL | F90: 159197 | G90: 14.09 | H90: NSE
A91: 2019-02-20 | B91: CANDC | C91: C & C Constructions Limit | D91: SARAH FAISAL HAWA | E91: SELL | F91: 180000 | G91: 14 | H91: NSE
A92: 2019-02-20 | B92: CANDC | C92: C & C Constructions Limit | D92: SMS HOLDINGS PVT LTD | E92: SELL | F92: 270565 | G92: 14.18 | H92: NSE
A93: 2019-02-20 | B93: CGPOWER | C93: CG Power & Ind. Sol. Ltd. | D93: DIVYA PORTFOLIO PRIVATE LIMITED | E93: SELL | F93: 3749311 | G93: 30.24 | H93: NSE
A94: 2019-02-20 | B94: CGPOWER | C94: CG Power & Ind. Sol. Ltd. | D94: TOWER RESEARCH CAPITAL MARKETS INDIA PRIVATE LIMITED | E94: SELL | F94: 3636804 | G94: 29.81 | H94: NSE
A95: 2019-02-20 | B95: GRETEX | C95: Gretex Industries Ltd. | D95: MEGHKUMAR MAHENDRAKUMAR SHAH | E95: SELL | F95: 24000 | G95: 9 | H95: NSE
A96: 2019-02-20 | B96: GUJRAFFIA | C96: Gujarat Raffia-Roll Sett | D96: SANJAYKUMAR SEVANTILAL SHAH | E96: SELL | F96: 27010 | G96: 13.25 | H96: NSE
A97: 2019-02-20 | B97: KSCL | C97: Kaveri Seed Company Limit | D97: ALPHAGREP SECURITIES PRIVATE LIMITED | E97: SELL | F97: 743882 | G97: 401.24 | H97: NSE
A98: 2019-02-20 | B98: KSCL | C98: Kaveri Seed Company Limit | D98: CENTILLION RESEARCH INDIA LLP | E98: SELL | F98: 828221 | G98: 406.56 | H98: NSE
A99: 2019-02-20 | B99: KSCL | C99: Kaveri Seed Company Limit | D99: CROSSLAND TRADING CO | E99: SELL | F99: 967150 | G99: 399.77 | H99: NSE
A100: 2019-02-20 | B100: KSCL | C100: Kaveri Seed Company Limit | D100: GENUINE STOCK BROKERS PVT LTD | E100: SELL | F100: 493868 | G100: 399.6 | H100: NSE
A101: 2019-02-20 | B101: KSCL | C101: Kaveri Seed Company Limit | D101: GRAVITON RESEARCH CAPITAL LLP | E101: SELL | F101: 833010 | G101: 398.93 | H101: NSE
A102: 2019-02-20 | B102: KSCL | C102: Kaveri Seed Company Limit | D102: MAHAVEER COMSTOCK TRADIND LLP | E102: SELL | F102: 446766 | G102: 403.81 | H102: NSE
A103: 2019-02-20 | B103: KSCL | C103: Kaveri Seed Company Limit | D103: PURITY TRADEMAX LLP | E103: SELL | F103: 630673 | G103: 402.51 | H103: NSE
A104: 2019-02-20 | B104: KSCL | C104: Kaveri Seed Company Limit | D104: QE SECURITIES LLP | E104: SELL | F104: 372471 | G104: 399.27 | H104: NSE
A105: 2019-02-20 | B105: KSCL | C105: Kaveri Seed Company Limit | D105: SHARE INDIA SECURITIES LIMITED | E105: SELL | F105: 702570 | G105: 398.08 | H105: NSE
A106: 2019-02-20 | B106: KSCL | C106: Kaveri Seed Company Limit | D106: VAIBHAV STOCK & DERIVATIVES BROKING PVT. LTD | E106: SELL | F106: 1013937 | G106: 396.84 | H106: NSE
A107: 2019-02-20 | B107: PUNJLLOYD | C107: Punj Lloyd Limited | D107: J M GLOBAL EQUITIES PRIVATE LIMITED | E107: SELL | F107: 2400000 | G107: 1.8 | H107: NSE
A108: 2019-02-20 | B108: RCOM | C108: Reliance Comm. Ltd. | D108: SKYVEIL TRADE SOLUTIONS LLP | E108: SELL | F108: 36680037 | G108: 5.7 | H108: NSE
A109: 2019-02-20 | B109: RELCAPITAL | C109: Reliance Capital Limited | D109: ALPHAGREP SECURITIES PRIVATE LIMITED | E109: SELL | F109: 1624389 | G109: 142.14 | H109: NSE
A110: 2019-02-20 | B110: RELINFRA | C110: Reliance Infrastructu Ltd | D110: ALPHAGREP SECURITIES PRIVATE LIMITED | E110: SELL | F110: 1761075 | G110: 116.91 | H110: NSE
A111: 2019-02-20 | B111: RELINFRA | C111: Reliance Infrastructu Ltd | D111: DIVYA PORTFOLIO PRIVATE LIMITED | E111: SELL | F111: 1456771 | G111: 116.95 | H111: NSE
A112: 2019-02-20 | B112: RELINFRA | C112: Reliance Infrastructu Ltd | D112: TOWER RESEARCH CAPITAL MARKETS INDIA PRIVATE LIMITED | E112: SELL | F112: 1361214 | G112: 117.17 | H112: NSE
A113: 2019-02-20 | B113: TARAJEWELS | C113: Tara Jewels Limited | D113: PUNJAB NATIONAL BANK | E113: SELL | F113: 147458 | G113: 0.5 | H113: NSE
A114: 2019-02-20 | B114: TARAPUR | C114: Tarapur Transformers Ltd | D114: RITA RAJKUMAR SINGH | E114: SELL | F114: 125605 | G114: 2.85 | H114: NSE
A115: 2019-02-20 | B115: VIJIFIN | C115: Viji Finance Limited | D115: VIJAY KOTHARI | E115: SELL | F115: 487657 | G115: 0.86 | H115: NSE
A116: 2019-02-20 | B116: WONDERLA | C116: Wonderla Holidays Ltd. | D116: SHEELA KOCHOUSEPH | E116: SELL | F116: 700000 | G116: 270 | H116: NSE

Sheet Call Tracker (Equity & F&O)
M5: Back To Main Page
A6: Retail Research Technical Calls & Fundamental Performance Report for the month of February -2019
M7: =Main!B10 -> 2019-02-21
B8: Positional Call
A9: Sr.no | B9: Date | D9: Company | E9: Rec | F9: Rec Price | G9: Stop Loss*** | H9: Call Closed At | I9: Target | J9: Remark | K9: Profit / Loss per Share | L9: Gain / Loss % | M9: Status | N9: Closed Date | O9: NSE Closed Price
A10: 1 | B10: 2019-01-24 | D10: ITC | E10: Buy | F10: 279-281 | G10: 268 | I10: 305 | J10: Open | O10: =VLOOKUP(D10,Sheet2!A10:M1505,6,0) -> 275.85 | R10: R
A11: 2 | B11: 2019-01-25 | D11: UBL | E11: Sell | F11: 1435 | G11: 1510 | H11: 1392.5 | I11: 1300-1280 | J11: Profit of Rs.42.50/- | K11: 42.5 | L11: =K11/F11 -> 2.96% | M11: Successful | N11: 2019-01-28 | R11: H
A12: 3 | B12: 2019-01-29 | D12: MARUTI | E12: Buy | F12: 6575 | G12: 6290 | H12: 6910 | I12: 7000-7100 | J12: Profit of Rs.335/- | K12: =H12-F12 -> 335 | L12: 5.10% | M12: Successful | N12: 2019-02-01 | R12: R
A13: 4 | B13: 2019-01-30 | D13: ULTRACEMCO | E13: Buy | F13: 3400 | G13: 3230 | H13: 3592.5 | I13: 3750-3800 | J13: Profit of Rs.192.5/- | K13: 192.5 | L13: =K13/F13 -> 5.66% | M13: Successful | N13: 2019-02-07 | R13: H
A14: 5 | B14: 2019-02-05 | D14: MCDOWELL-N | E14: Buy | F14: 552.5 | G14: 526.7 | H14: 571 | I14: 600-610 | J14: Profit of Rs.18.5/- | K14: 18.5 | L14: 3.35% | M14: Successful | N14: 2019-02-07 | R14: R
A15: 6 | B15: 2019-02-07 | D15: APOLLOTYRE | E15: Buy | F15: 200 | G15: 189.5 | H15: 207.5 | I15: 215-220 | J15: Profit of Rs.7.5/- | K15: =H15-F15 -> 7.5 | L15: =K15/F15 -> 3.75% | M15: Successful | N15: 2019-02-08 | R15: H
A16: 7 | B16: 2019-02-07 | D16: CENTURYTEX | E16: Buy | F16: 769 | G16: 728 | H16: 730.5 | I16: 820-840 | J16: Loss of Rs 38.5/- | K16: -38.5 | L16: -5.01% | M16: UnSuccessful | N16: 2019-02-13 | R16: H
A17: 8 | B17: 2019-02-11 | D17: APOLLOTYRE | E17: Buy | F17: 200.5 | G17: 189.5 | H17: 207.5 | I17: 215-220 | J17: Profit of Rs.7/- | K17: =H17-F17 -> 7 | L17: =K17/F17 -> 3.49% | M17: Successful | N17: 2019-02-19 | R17: H
A18: 9 | B18: 2019-02-12 | D18: LT | E18: Buy | F18: 1240-1248 | G18: 1188 | I18: 1340-1370 | J18: Open | O18: =VLOOKUP(D18,Sheet2!A18:M1513,6,0) -> 1276.55 | R18: H
A19: 10 | B19: 2019-02-14 | D19: HINDALCO | E19: Buy | F19: 195 | G19: 186.2 | H19: 186 | I19: 210-215 | J19: Loss of Rs 9/- | K19: =H19-F19 -> -9 | L19: =K19/F19 -> -4.62% | M19: UnSuccessful | N19: 2019-02-15 | R19: R
A20: 11 | B20: 2019-02-19 | D20: BRITANNIA | E20: Buy | F20: 2950-2960 | G20: 2780 | I20: 3200-3250 | J20: Open | O20: =VLOOKUP(D20,Sheet2!A20:M1515,6,0) -> 2922.3 | R20: R
A21: 12 | B21: 2019-02-20 | D21: TATAELXSI | E21: Buy | F21: 866-871 | G21: 822.2 | I21: 950-960 | J21: Open | O21: =VLOOKUP(D21,Sheet2!A21:M1516,6,0) -> 889.6 | R21: R
A30: CLBS = Closing Basis *** | F30: Reinitiated $
A31: Dividend adjusted <> | F31: Revised stoploss #
A32: Part book {}
A33: Master Trade High Risk
A34: Sr.no | B34: Date | D34: Company | E34: Rec | F34: Rec Price | G34: Stop Loss | H34: Call Closed At | I34: Target | J34: Remark | K34: Profit / Loss per share | L34: Gain / Loss per Lot | M34: Lot | N34: Status | O34: Closed Date
A35: 1 | B35: 2019-02-01 | D35: NIFTY FEB FUT | E35: Sell | F35: 10955 | G35: 10860 | H35: 10885 | I35: 10800 | J35: Profit of Rs.70/- | K35: =F35-H35 -> 70 | L35: =M35*K35 -> 5250 | M35: 75 | N35: Successful | O35: 2019-02-02 | R35: R
A36: 2 | B36: 2019-02-06 | D36: NIFTY FEB FUT | E36: Sell | F36: 11005 | G36: 11120 | H36: 11120 | I36: 10800 | J36: Loss of Rs.115/- | K36: =F36-H36 -> -115 | L36: =M36*K36 -> -8625 | M36: 75 | N36: UnSuccessful | O36: 2019-02-07 | R36: R
A37: 3 | B37: 2019-02-06 | D37: BANKNIFTY FEB FUT | E37: Sell | F37: 27420 | G37: 27720 | H37: 27230 | I37: 27000-26900 | J37: Profit of Rs.190/- | K37: =F37-H37 -> 190 | L37: 3800 | M37: 20 | N37: Successful | O37: 2019-02-11 | R37: R
A38: 4 | B38: 2019-02-14 | D38: NIFTY FEB FUT | E38: Buy | F38: 10765 | G38: 10630 | H38: 10620 | I38: 11000 | J38: Loss of Rs.51.5/- | K38: =H38-F38 -> -145 | L38: =M38*-51.5 -> -3862.5 | M38: 75 | N38: UnSuccessful | O38: 2019-02-19 | R38: H
D39: Nifty FEB 10900 CE | E39: Sell | F39: 61 | H39: 19 | K39: =F39-H39 -> 42 | R39: H
A47: Master Trade Medium Risk
A48: Sr.no | B48: Date | D48: Company | E48: Rec | F48: Rec Price | G48: Stop Loss | H48: Call Closed At | I48: Target | J48: Remark | K48: Profit/ Loss per lot | L48: Gain / Loss per Lot | M48: Lot | N48: Status | O48: Closed Date
A49: 1 | B49: 2019-02-01 | D49: JSWSTEEL FEB 280 CE | E49: Buy | F49: 8.25 | H49: 12.5 | J49: Profit of Rs.2/- | K49: =H49-F49 -> 4.25 | L49: 3000 | M49: 1500 | N49: Successful | O49: 2019-02-06 | R49: H
D50: JSWSTEEL FEB 290 CE | E50: Sell | F50: 5.25 | H50: 7.5 | K50: =F50-H50 -> -2.25 | R50: H
A51: 2 | B51: 2019-02-04 | D51: NIFTY 10900 CE FEB | E51: Buy | F51: 127.5 | G51: 84 | H51: 143 | I51: 200 | J51: Profit of Rs.15.50/- | K51: =H51-F51 -> 15.5 | L51: =M51*K51 -> 1162.5 | M51: 75 | N51: Successful | O51: 2019-02-04 | R51: R
A52: 3 | B52: 2019-02-05 | D52: RELIANCE 1280 PE FEB | E52: Buy | F52: 30 | H52: 36.5 | J52: Profit of Rs.6/- | K52: =H52-F52 -> 6.5 | L52: =M52*6 -> 3000 | M52: 500 | N52: Successful | O52: 2019-02-11 | R52: H
D53: RELIANCE at Rs.1240 PE | E53: Sell | F53: 18 | H53: 18.5 | K53: =F53-H53 -> -0.5 | R53: H
A54: 4 | B54: 2019-02-06 | D54: NIFTY 10900 PE FEB | E54: Buy | F54: 107.5 | G54: 70 | H54: 71 | I54: 180 | J54: Loss of Rs.36.5/- | K54: =H54-F54 -> -36.5 | L54: =M54*K54 -> -2737.5 | M54: 75 | N54: UnSuccessful | O54: 2019-02-07 | R54: H
A55: 5 | B55: 2019-02-06 | D55: BAJAJ-AUTO FEB 2650 PE | E55: Buy | F55: 26 | G55: 7 | H55: 9.5 | I55: 60-70 | J55: Loss of Rs.16.5/- | K55: =H55-F55 -> -16.5 | L55: =M55*K55 -> -4125 | M55: 250 | N55: UnSuccessful | O55: 2019-02-14 | R55: H
A56: 6 | B56: 2019-02-11 | D56: RELIANCE 1280 CE | E56: Buy | F56: 26.5 | G56: 18 | H56: 18 | I56: 40 | J56: Loss of Rs.8.5/- | K56: =H56-F56 -> -8.5 | L56: =M56*K56 -> -4250 | M56: 500 | N56: UnSuccessful | O56: 2019-02-13 | R56: H
A57: 7 | B57: 2019-02-12 | D57: HDFCBANK 2160 CE FEB | E57: Buy | F57: 25 | G57: 9 | H57: 9 | I57: 50 | J57: Loss of Rs.16/- | K57: =H57-F57 -> -16 | L57: -4000 | M57: 250 | N57: UnSuccessful | O57: 2019-02-15 | R57: R
A58: 8 | B58: 2019-02-12 | D58: NIFTY 14-Feb 10900 PE | E58: Buy | F58: 39 | H58: 51 | I58: 80-100 | J58: Profit of Rs.12/- | K58: =H58-F58 -> 12 | L58: =M58*K58 -> 900 | M58: 75 | N58: Successful | O58: 2019-02-12 | R58: R
A59: 9 | B59: 2019-02-13 | D59: NIFTY 14-Feb 10850 CE | E59: Buy | F59: 37 | H59: 0 | I59: 80-100 | J59: Loss of Rs.37/- | K59: =H59-F59 -> -37 | L59: =M59*K59 -> -2775 | M59: 75 | N59: UnSuccessful | O59: 2019-02-14 | R59: R
A60: 10 | B60: 2019-02-18 | D60: NIFTY 21-Feb 10700 CE | E60: Buy | F60: 62 | G60: 20 | H60: 76 | I60: 120 | J60: Profit of Rs.14/- | K60: =H60-F60 -> 14 | L60: =M60*K60 -> 1050 | M60: 75 | N60: Successful | O60: 2019-02-19 | R60: R
B68: Smart Delivery Trade
A69: Sr.no | B69: Date | D69: Company | E69: Rec | F69: Rec Price | G69: Stop Loss*** | H69: Call Closed At | I69: Target | J69: Remark | K69: Profit / Loss per Share | L69: Gain / Loss % | M69: Status | N69: Closed Date | O69: NSE Closed Price
A70: 1 | B70: 2019-01-29 | D70: UNIONBANK | E70: Buy | F70: 80.5 | G70: 77 | H70: 83.5 | I70: 87-88 | J70: Profit of Rs.3/- | K70: =H70-F70 -> 3 | L70: =K70/F70 -> 3.73% | M70: Successful | N70: 2019-02-01 | R70: H
A71: 2 | B71: 2019-02-01 | D71: INFY | E71: Sell | F71: 753 | G71: 772 | H71: 742.5 | I71: 720-710 | J71: Profit of Rs.10.5/- | K71: =F71-H71 -> 10.5 | L71: =K71/F71 -> 1.39% | M71: Successful | N71: 2019-02-15 | R71: H
A72: 3 | B72: 2019-02-04 | D72: BRITANNIA | E72: Buy | F72: 3275 | G72: 3175 | H72: 3165 | I72: 3450-3480 | J72: Loss of Rs 110/- | K72: =H72-F72 -> -110 | L72: =K72/F72 -> -3.36% | M72: UnSuccessful | N72: 2019-02-05 | R72: R
A73: 4 | B73: 2019-02-05 | D73: TITAN | E73: Sell | F73: 1045 | G73: 1082.7 | I73: 990-980 | J73: Open | O73: =VLOOKUP(D73,Sheet2!A61:M1556,6,0) -> 1032.75 | R73: R
A74: 5 | B74: 2019-02-05 | D74: UJJIVAN | E74: Buy | F74: 286.5 | G74: 277 | H74: 294.5 | I74: 300-310 | J74: Profit of Rs.8/- | K74: =H74-F74 -> 8 | L74: =K74/F74 -> 2.79% | M74: Successful | N74: 2019-02-01 | R74: H
A75: 6 | B75: 2019-02-07 | D75: IGL | E75: Buy | F75: 298.5 | G75: 288 | H75: 308.5 | I75: 315-320 | J75: Profit of Rs.10/- | K75: =H75-F75 -> 10 | L75: =K75/F75 -> 3.35% | M75: Successful | N75: 2019-02-07 | R75: H
A76: 7 | B76: 2019-02-07 | D76: CHENNPETRO | E76: Buy | F76: 232 | G76: 223.3 | H76: 222 | I76: 245-250 | J76: Loss of Rs 10/- | K76: -10 | L76: -4.31% | M76: UnSuccessful | N76: 2019-02-08 | R76: R
A77: 8 | B77: 2019-02-08 | D77: GUJGASLTD | E77: Buy | F77: 126.5 | G77: 119 | H77: 121.5 | I77: 140 | J77: Loss of Rs 5/- | K77: =H77-F77 -> -5 | L77: =K77/F77 -> -3.95% | M77: UnSuccessful | N77: 2019-02-15 | R77: H
A78: 9 | B78: 2019-02-11 | D78: APOLLOHOSP | E78: Buy | F78: 1189.9 | G78: 1146.6 | H78: 1145 | I78: 1270-1280 | J78: Loss of Rs 44.9/- | K78: =H78-F78 -> -44.9 | L78: =K78/F78 -> -3.77% | M78: UnSuccessful | N78: 2019-02-11 | R78: R
A79: 10 | B79: 2019-02-12 | D79: IGL | E79: Buy | F79: 275 | G79: 267 | H79: 263 | I79: 290-295 | J79: Loss of Rs 12/- | K79: =H79-F79 -> -12 | L79: =K79/F79 -> -4.36% | M79: UnSuccessful | N79: 2019-02-12 | R79: H
A80: 11 | B80: 2019-02-12 | D80: DRREDDY | E80: Buy | F80: 2585 | G80: 2497 | H80: 2645 | I80: 2760-2780 | J80: Profit of Rs.60/- | K80: 60 | L80: 2.32% | M80: Successful | N80: 2019-02-12 | R80: R
A81: 12 | B81: 2019-02-14 | D81: INFRATEL | E81: Buy | F81: 299 | G81: 287 | H81: 308.5 | I81: 320-325 | J81: Profit of Rs.9.5/- | K81: 9.5 | L81: 3.18% | M81: Successful | N81: 2019-02-15 | R81: H
A82: 13 | B82: 2019-02-18 | D82: SBIN | E82: Buy | F82: 263-265 | G82: 256.6 | I82: 275-280 | J82: Open | O82: =VLOOKUP(D82,Sheet2!A70:M1565,6,0) -> 267.7 | R82: R
A83: 14 | B83: 2019-02-19 | D83: UPL | E83: Sell | F83: 821-825 | G83: 855 | I83: 780-770 | J83: Open | O83: =VLOOKUP(D83,Sheet2!A71:M1566,6,0) -> 822.75 | R83: H
A84: 15 | B84: 2019-02-19 | D84: HINDUNILVR | E84: Buy | F84: 1732-1737 | G84: 1677.7 | I84: 1830-1840 | J84: Open | O84: =VLOOKUP(D84,Sheet2!A72:M1567,6,0) -> 1733.5 | R84: R
A85: 16 | B85: 2019-02-20 | D85: BHARATFORG | E85: Buy | F85: 460 | G85: 470 | H85: 471.5 | I85: 490-500 | J85: Profit of Rs.11.5/- | K85: =H85-F85 -> 11.5 | L85: =K85/F85 -> 2.50% | M85: Successful | N85: 2019-02-20 | R85: H
A86: 17 | B86: 2019-02-20 | D86: BIOCON | E86: Buy | F86: 610-614 | G86: 593.3 | I86: 640-650 | J86: Open | O86: =VLOOKUP(D86,Sheet2!A74:M1569,6,0) -> 619.4 | R86: R
A89: CLBS = Closing Basis *** | F89: Reinitiated $
A90: Dividend adjusted <> | F90: Revised stoploss #
B93: Momentum Call
A94: Sr.no | B94: Date | D94: Company | E94: Rec | F94: Rec Price | G94: Stop Loss | H94: Call Closed At | I94: Target | J94: Remark | K94: Profit / Loss per Share/Lot | L94: Gain / Loss % | M94: Gain / Loss per Lot | N94: Lot | O94: Status | P94: Closed Date
A95: 1 | B95: 2019-01-30 | D95: AMARAJABAT FEB FUT | E95: Buy | F95: 751.5 | G95: 735 | H95: 759.5 | I95: 780 | J95: Profit of Rs.8/- | K95: =H95-F95 -> 8 | M95: =N95*K95 -> 5600 | N95: 700 | O95: Successful | P95: 2019-02-01 | R95: H
A96: 2 | B96: 2019-01-30 | D96: RAYMOND FEB FUT | E96: Buy | F96: 760 | G96: 745 | H96: 745 | I96: 790 | J96: Loss of Rs 15/- | K96: -15 | M96: =N96*K96 -> -12000 | N96: 800 | O96: UnSuccessful | P96: 2019-02-01 | R96: N
A97: 3 | B97: 2019-01-31 | D97: RELIANCE | E97: Buy | F97: 1215 | G97: 1179 | H97: 1243 | I97: 1260-1280 | J97: Profit of Rs.28/- | K97: =H97-F97 -> 28 | L97: =K97/F97 -> 2.30% | O97: Successful | P97: 2019-02-01 | R97: H
A98: 4 | B98: 2019-02-01 | D98: BHARTIARTL | E98: Buy | F98: 315 | G98: 308 | H98: 306.5 | I98: 330 | J98: Loss of Rs 8.5/- | K98: -8.5 | L98: -2.70% | O98: UnSuccessful | P98: 2019-02-04 | R98: H
A99: 5 | B99: 2019-02-01 | D99: MINDTREE FEB FUT | E99: Buy | F99: 902 | G99: 882 | H99: 912 | I99: 940 | J99: Profit of Rs.10/- | K99: 10 | M99: =N99*K99 -> 6000 | N99: 600 | O99: Successful | P99: 2019-02-06 | R99: N
A100: 6 | B100: 2019-02-04 | D100: COLPAL FEB FUT | E100: Buy | F100: 1300 | G100: 1283 | H100: 1313 | I100: 1340 | J100: Profit of Rs.13/- | K100: =H100-F100 -> 13 | M100: =N100*K100 -> 9100 | N100: 700 | O100: Successful | P100: 2019-02-04 | R100: N
A101: 7 | B101: 2019-02-04 | D101: ASIANPAINT | E101: Buy | F101: 1438 | G101: 1400 | H101: 1467 | I101: 1510 | J101: Profit of Rs.29/- | K101: 29 | L101: =K101/F101 -> 2.02% | O101: Successful | P101: 2019-02-06 | R101: H
A102: 8 | B102: 2019-02-04 | D102: AJANTPHARM FEB FUT | E102: Buy | F102: 987.5 | G102: 964 | H102: 964 | I102: 1020-1030 | J102: Loss of Rs 23.5/- | K102: =H102-F102 -> -23.5 | M102: =N102*K102 -> -11750 | N102: 500 | O102: UnSuccessful | P102: 2019-02-04 | R102: H
A103: 9 | B103: 2019-02-04 | D103: TATAELXSI FEB FUT | E103: Buy | F103: 899.5 | G103: 874 | H103: 914.5 | I103: 950 | J103: Profit of Rs.15/- | K103: 15 | M103: =N103*K103 -> 6000 | N103: 400 | O103: Successful | P103: 2019-02-06 | R103: R
A104: 10 | B104: 2019-02-04 | D104: BIOCON FEB FUT | E104: Buy | F104: 654.5 | G104: 642 | H104: 663 | I104: 675 | J104: Profit of Rs.8.5/- | K104: =H104-F104 -> 8.5 | M104: =N104*K104 -> 7650 | N104: 900 | O104: Successful | P104: 2019-02-05 | R104: N
A105: 11 | B105: 2019-02-05 | D105: GODREJIND FEB FUT | E105: Buy | F105: 498 | G105: 490 | H105: 491 | I105: 515 | J105: Loss of Rs 7/- | K105: =H105-F105 -> -7 | M105: =N105*K105 -> -10500 | N105: 1500 | O105: UnSuccessful | P105: 2019-02-05 | R105: N
A106: 12 | B106: 2019-02-06 | D106: LT FEB FUT | E106: Buy | F106: 1301.5 | G106: 1274 | H106: 1274 | I106: 1350 | J106: Loss of Rs 27.5/- | K106: -27.5 | M106: =N106*K106 -> -10312.5 | N106: 375 | O106: UnSuccessful | P106: 2019-02-08 | R106: H
A107: 13 | B107: 2019-02-06 | D107: COLPAL FEB FUT | E107: Buy | F107: 1300 | G107: 1283 | H107: 1314.5 | I107: 1340 | J107: Profit of Rs.14.5/- | K107: =H107-F107 -> 14.5 | M107: =N107*K107 -> 10150 | N107: 700 | O107: Successful | P107: 2019-02-07 | R107: N
A108: 14 | B108: 2019-02-07 | D108: BIOCON FEB FUT | E108: Buy | F108: 643 | G108: 630 | H108: 651.5 | I108: 660 | J108: Profit of Rs.8.5/- | K108: =H108-F108 -> 8.5 | M108: =N108*K108 -> 7650 | N108: 900 | O108: Successful | P108: 2019-02-07 | R108: N
A109: 15 | B109: 2019-02-07 | D109: RBLBANK FEB FUT | E109: Buy | F109: 588 | G109: 578 | H109: 578 | I109: 610 | J109: Loss of Rs 10/- | K109: -10 | M109: =N109*K109 -> -12000 | N109: 1200 | O109: UnSuccessful | P109: 2019-02-08 | R109: N
A110: 16 | B110: 2019-02-08 | D110: PIDILITIND | E110: Buy | F110: 1155 | G110: 1134 | H110: 1130 | I110: 1200 | J110: Loss of Rs 25/- | K110: -25 | L110: =K110/F110 -> -2.16% | O110: UnSuccessful | P110: 2019-02-11 | R110: H
A111: 17 | B111: 2019-02-08 | D111: INFRATEL FEB FUT | E111: Sell | F111: 314.5 | G111: 321.2 | H111: 321.2 | I111: 305 | J111: Loss of Rs 6.7/- | K111: =F111-H111 -> -6.7 | M111: =N111*K111 -> -13400 | N111: 2000 | O111: UnSuccessful | P111: 2019-02-08 | R111: R
A112: 18 | B112: 2019-02-11 | D112: TATAELXSI FEB FUT | E112: Buy | F112: 900 | G112: 875 | H112: 914 | I112: 950 | J112: Profit of Rs.14/- | K112: =H112-F112 -> 14 | M112: =N112*K112 -> 5600 | N112: 400 | O112: Successful | P112: 2019-02-12 | R112: N
A113: 19 | B113: 2019-02-11 | D113: BAJAJAUTO FEB FUT | E113: Sell | F113: 2865 | G113: 2910 | H113: 2835 | I113: 2800-2780 | J113: Profit of Rs.30/- | K113: =F113-H113 -> 30 | M113: =N113*K113 -> 7500 | N113: 250 | O113: Successful | P113: 2019-02-12 | R113: H
A114: 20 | B114: 2019-02-11 | D114: COLPAL FEB FUT | E114: Buy | F114: 1279 | G114: 1263 | H114: 1290 | I114: 1310 | J114: Profit of Rs.11/- | K114: =H114-F114 -> 11 | M114: =N114*K114 -> 7700 | N114: 700 | O114: Successful | P114: 2019-02-11 | R114: N
A115: 21 | B115: 2019-02-11 | D115: TATACHEM FEB FUT | E115: Buy | F115: 595 | G115: 581 | H115: 581 | I115: 620 | J115: Loss of Rs 14/- | K115: -14 | M115: =N115*K115 -> -10500 | N115: 750 | O115: UnSuccessful | P115: 2019-02-12 | R115: R
A116: 22 | B116: 2019-02-11 | D116: UBL FEB FUT | E116: Buy | F116: 1396 | G116: 1378 | H116: 1379 | I116: 1430 | J116: Loss of Rs 17/- | K116: =F116-H116 -> 17 | M116: =N116*K116 -> 11900 | N116: 700 | O116: UnSuccessful | P116: 2019-02-11 | R116: N
A117: 23 | B117: 2019-02-12 | D117: BIOCON FEB FUT | E117: Buy | F117: 646 | G117: 633 | H117: 655 | I117: 670 | J117: Profit of Rs.9/- | K117: =H117-F117 -> 9 | M117: =N117*K117 -> 8100 | N117: 900 | O117: Successful | P117: 2019-02-12 | R117: N
A118: 24 | B118: 2019-02-13 | D118: BIOCON FEB FUT | E118: Buy | F118: 642 | G118: 629 | H118: 629 | I118: 655 | J118: Loss of Rs 13/- | K118: -13 | M118: =N118*K118 -> -11700 | N118: 900 | O118: UnSuccessful | P118: 2019-02-15 | R118: N
A119: 25 | B119: 2019-02-13 | D119: COLPAL FEB FUT | E119: Buy | F119: 1281.5 | G119: 1263 | H119: 1263 | I119: 1310 | J119: Loss of Rs 18.5/- | K119: =F119-H119 -> 18.5 | M119: =N119*K119 -> 12950 | N119: 700 | O119: UnSuccessful | P119: 2019-02-13 | R119: N
A120: 26 | B120: 2019-02-13 | D120: JUBLFOOD FEB FUT | E120: Buy | F120: 1292 | G120: 1267 | H120: 1309 | I120: 1340-1350 | J120: Profit of Rs.17/- | K120: =H120-F120 -> 17 | M120: =N120*K120 -> 8500 | N120: 500 | O120: Successful | P120: 2019-02-13 | R120: R
A121: 27 | B121: 2019-02-13 | D121: UPL FEB FUT | E121: Sell | F121: 807 | G121: 817 | H121: 817 | I121: 788 | J121: Loss of Rs 10/- | K121: =F121-H121 -> -10 | M121: =N121*K121 -> -12000 | N121: 1200 | O121: UnSuccessful | P121: 2019-02-13 | R121: R
A122: 28 | B122: 2019-02-14 | D122: HINDUNILVR FEB FUT | E122: Buy | F122: 1788.5 | G122: 1769 | H122: 1769 | I122: 1830 | J122: Loss of Rs 19.5/- | K122: =H122-F122 -> -19.5 | M122: =N122*K122 -> -11700 | N122: 600 | O122: UnSuccessful | P122: 2019-02-15 | R122: N
A123: 29 | B123: 2019-02-15 | D123: RBLBANK | E123: Buy | F123: 552.5 | G123: 539 | H123: 559 | I123: 580 | J123: Open | R123: H
A124: 30 | B124: 2019-02-18 | D124: RELIANCE FEB FUT | E124: Buy | F124: 1242.5 | G124: 1218 | H124: 1218 | I124: 1295 | J124: Loss of Rs 24.5/- | K124: =H124-F124 -> -24.5 | M124: =N124*K124 -> -12250 | N124: 500 | O124: UnSuccessful | P124: 2019-02-19 | R124: H
A125: 31 | B125: 2019-02-18 | D125: KOTAKBANK FEB FUT | E125: Buy | F125: 1290 | G125: 1275 | H125: 1300 | I125: 1315 | J125: Open | R125: N
A126: 32 | B126: 2019-02-19 | D126: UBL FEB FUT | E126: Buy | F126: 1346 | G126: 1329 | H126: 1356 | I126: 1370 | J126: Profit of Rs.10/- | K126: =H126-F126 -> 10 | M126: =N126*K126 -> 7000 | N126: 700 | O126: Successful | P126: 2019-02-19 | R126: N
A127: 33 | B127: 2019-02-19 | D127: BATAINDIA FEB FUT | E127: Sell | F127: 1264 | G127: 1291 | H127: 1249 | I127: 1220 | J127: Profit of Rs.15/- | K127: =F127-H127 -> 15 | M127: 8250 | N127: 550 | O127: Successful | P127: 2019-02-19 | R127: R
A128: 34 | B128: 2019-02-20 | D128: EXIDEIND FEB FUT | E128: Buy | F128: 206 | G128: 200 | H128: 202 | I128: 218 | J128: Loss of Rs 4/- | K128: =H128-F128 -> -4 | M128: =N128*K128 -> -8000 | N128: 2000 | O128: UnSuccessful | P128: 2019-02-20 | R128: N
A129: 35 | B129: 2019-02-20 | D129: ASIANPAINT FEB FUT | E129: Buy | F129: 1389-1392 | G129: 1370 | I129: 1425 | J129: Open | R129: N
A137: CLBS = Closing Basis ***
A138: Dividend adjusted <> | F138: Reinitiated $
F139: Revised stoploss #
B140: Quick Pick Intraday
A141: Sr.no | B141: Date | D141: Company | E141: Rec | F141: Rec Price | G141: Stop Loss*** | H141: Call Closed At | I141: Target | J141: Remark | K141: Profit / Loss per Share | L141: Status | M141: Closed Date
A155: Techno -Funda (positional)
A156: Sr.no | B156: Date | D156: Company | E156: Rec | F156: Rec Price | G156: Stop Loss*** | H156: Call Closed At | I156: Target | J156: Remark | K156: Profit / Loss per Share | L156: Gain / Loss % | M156: Status | N156: Closed Date | O156: NSE Closed Price
A159: CLBS = Closing Basis *** | F159: Reinitiated $
A160: Dividend adjusted <> | F160: Revised stoploss #
B165: Investment Idea
A166: Sr.no | B166: Date | D166: Company | E166: Rec | F166: Rec Price | G166: Point of Review | H166: Close Rate | I166: Target | J166: Remark | K166: Profit / Loss per Share | L166: Gain / Loss % | M166: Status | N166: Closed Date
A167: 1 | B167: 2013-11-01 | D167: L&T Finance Holding | E167: Accu | F167: 82.00 | G167: - | H167: 100 | I167: 100.00 | J167: Target Achieved | K167: =H167-F167 -> 18.00 | L167: =K167/F167 -> 21.95% | M167: Successful | N167: 2016-10-14
A168: 2 | B168: 2014-06-04 | D168: Finolex Inds | E168: Buy | F168: 257.00 | G168: - | H168: 300 | I168: 300.00 | J168: Target Achieved | K168: =H168-F168 -> 43.00 | L168: 16.73% | M168: Successful | N168: 2014-07-02
A169: =1+A168 -> 3 | B169: 2014-07-08 | D169: JK Cement | E169: Buy | F169: 393.00 | G169: - | H169: 468 | I169: 468.00 | J169: Target Achieved | K169: =H169-F169 -> 75.00 | L169: 19.08% | M169: Successful | N169: 2014-08-12
A170: 4 | B170: 2014-08-06 | D170: Finolex Cables | E170: Buy | F170: 205.00 | G170: - | H170: 275 | I170: 250.00 | J170: Target Achieved | K170: 70.00 | L170: 34.15% | M170: Successful | N170: 2014-11-19
A171: 5 | B171: 2014-09-04 | D171: Exide Inds | E171: Buy | F171: 162.00 | G171: - | H171: 190 | I171: 190.00 | J171: Target Achieved | K171: 28.00 | L171: 17.28% | M171: Successful | N171: 2015-01-02
A172: 6 | B172: 2014-09-04 | D172: Deepak Nitrite | E172: Buy | F172: 75.00 | G172: - | H172: 91.5 | I172: 95-100 | J172: Profit of Rs.16.50/- | K172: 16.50 | L172: 22.00% | M172: Successful | N172: 2014-11-11
A173: 7 | B173: 2014-10-01 | D173: Mercks | E173: Buy | F173: 850.00 | G173: - | H173: 982.5 | I173: 1050.00 | J173: Profit of Rs.132.50/- | K173: 132.50 | L173: 15.59% | M173: Successful | N173: 2015-02-04
A174: 8 | B174: 2014-10-01 | D174: Grindwell Norton | E174: Buy | F174: 475.00 | G174: - | H174: 515 | I174: 600.00 | J174: Profit of Rs.40/- | K174: 40.00 | L174: 8.42% | M174: Successful | N174: 2014-10-27
A175: 9 | B175: 2014-10-01 | D175: Snowman Logistics | E175: Buy | F175: 86.00 | G175: - | H175: 99 | I175: 140.00 | J175: Profit of Rs.13.00/- | K175: 13.00 | L175: 15.12% | M175: Successful | N175: 2014-10-27
A176: 10 | B176: 2014-10-14 | D176: Birla Corp | E176: Buy | F176: 496.60 | G176: - | H176: 621 | I176: 580.00 | J176: Target Achieved | K176: 124.40 | L176: 25.05% | M176: Successful | N176: 2016-08-23
A177: 11 | B177: 2014-10-14 | D177: Ultratech Cem | E177: Buy | F177: 2481.90 | G177: - | H177: 2840 | I177: 2870.00 | J177: Profit of Rs.358.10/- | K177: 358.10 | L177: 14.43% | M177: Successful | N177: 2015-01-13
A178: =1+A175 -> 10 | B178: 2014-10-16 | D178: Sintex Inds | E178: Buy | F178: 84.50 | G178: - | H178: 93 | I178: 110.00 | J178: Profit of Rs.8.50/- | K178: 8.50 | L178: 10.06% | M178: Successful | N178: 2014-10-27
A179: =1+A178 -> 11 | B179: 2014-10-16 | D179: HSIL | E179: Buy | F179: 401.00 | G179: - | H179: 428 | I179: 450.00 | J179: Profit of Rs.27.00/- | K179: 27.00 | L179: 6.73% | M179: Successful | N179: 2015-01-16
A180: 12 | B180: 2014-10-16 | D180: Eveready Inds | E180: Buy | F180: 101.00 | G180: - | H180: 112 | I180: 120.00 | J180: Profit of Rs.11.00/- | K180: 11.00 | L180: 10.89% | M180: Successful | N180: 2014-10-27
A181: 13 | B181: 2014-11-11 | D181: Pennar Inds | E181: Buy | F181: 59.00 | G181: - | H181: 76 | I181: 76.00 | J181: Target Achieved | K181: 17.00 | L181: 28.81% | M181: Successful | N181: 2017-10-24
A182: 14 | B182: 2014-11-11 | D182: Snowman Logistics | E182: Buy | F182: 99.00 | G182: - | H182: 120 | I182: 120.00 | J182: Profit of Rs.21/- | K182: 21.00 | L182: 21.21% | M182: Successful | N182: 2014-11-17
A183: 15 | B183: 2014-11-13 | D183: Dharamsi Morarji Chem | E183: Buy | F183: 22.00 | G183: - | H183: 33.55 | I183: 32.00 | J183: Profit of Rs 11.55/- | K183: 11.55 | L183: 52.50% | M183: Successful | N183: 2015-07-03
A184: 16 | B184: 2014-12-03 | D184: Tatachem | E184: Buy | F184: 440.00 | G184: - | H184: 520 | I184: 520.00 | J184: Profit of Rs 80.00/- | K184: 80.00 | L184: 18.18% | M184: Successful | N184: 2015-07-23
A185: 17 | B185: 2014-12-03 | D185: Advanta | E185: Buy | F185: 360.00 | G185: - | H185: 427 | I185: 425.00 | J185: Profit of Rs.67.00/- | K185: 67.00 | L185: 18.61% | M185: Successful | N185: 2015-02-23
A186: 18 | B186: 2015-01-08 | D186: GDL | E186: Buy | F186: 360.00 | G186: - | H186: 455 | I186: 420.00 | J186: Profit of Rs.95.00/- | K186: 95.00 | L186: 26.39% | M186: Successful | N186: 2015-01-20
A187: 19 | B187: 2015-01-08 | D187: NRB Bearing | E187: Buy | F187: 130.00 | H187: 175.5 | I187: 165.00 | J187: Profit of Rs 45.50/- | K187: 45.50 | L187: 35.00% | M187: Successful | N187: 2017-12-19
A188: 20 | B188: 2015-02-05 | D188: GSFC | E188: Accu | F188: 98.00 | H188: 120 | I188: 120.00 | J188: Target Achieved | K188: 22.00 | L188: 22.45% | M188: Successful | N188: 2017-01-18
A189: 21 | B189: 2015-02-05 | D189: Sundrmfast | E189: Accu | F189: 196.00 | H189: 262 | I189: 255.00 | J189: Target Achieved | K189: 66.00 | L189: 33.67% | M189: Successful | N189: 2016-08-17
A190: 22 | B190: 2015-03-04 | D190: GPPL | E190: Accu | F190: 230-240 | I190: 280-285 | J190: Open
A191: 23 | B191: 2015-03-04 | D191: ORIENTCEM | E191: Accu | F191: 185.00 | H191: 224 | I191: 220-225 | J191: Target Achieved | K191: 39.00 | L191: =K191/F191 -> 21.08% | M191: Successful | N191: 2016-10-04
A192: 24 | B192: 2015-03-27 | D192: PFS | E192: Accu | F192: 49-50 | I192: 67.00 | J192: Open
A193: 25 | B193: 2015-03-30 | D193: Walchandnagar Ind Ltd | E193: Accu | F193: 183.50 | H193: 219 | I193: 218.00 | J193: Profit of Rs.35.50/- | K193: 35.50 | L193: =K193/F193 -> 19.35% | M193: Successful | N193: 2015-04-09
A194: 26 | B194: 2015-04-20 | D194: Kalpataru Power Transmission Ltd | E194: Accu | F194: =(227+237)/2 -> 232.00 | H194: 298 | I194: 298.00 | J194: Target Achieved | K194: 66.00 | L194: 28.45% | M194: Successful | N194: 2017-03-29
A195: 27 | B195: 2015-05-04 | D195: Mastek Ltd | E195: Buy | F195: 385.00 | H195: =212.5+331 -> 543.5 | I195: 510.00 | J195: Profit of Rs 158.50/- | K195: 158.50 | L195: 41.17% | M195: Successful | N195: 2015-08-19
A196: 28 | B196: 2015-05-04 | D196: Suprajit Eng | E196: Buy | F196: 115.50 | H196: 146 | I196: 142.00 | J196: Profit of Rs 30.50/- | K196: 30.50 | L196: 26.41% | M196: Successful | N196: 2015-07-17
A197: 29 | B197: 2015-05-27 | D197: TCI | E197: Buy | F197: 237.50 | H197: 279.5 | I197: 278.00 | J197: Target Achieved | K197: 42.00 | L197: 17.68% | M197: Successful | N197: 2015-08-06
A198: 30 | B198: 2015-06-19 | D198: HSIL | E198: Accu | F198: 340.00 | H198: 448 | I198: 448.00 | J198: Target Achieved | K198: 108.00 | L198: 31.76% | M198: Successful | N198: 2017-10-10
A199: 31 | B199: 2015-07-06 | D199: Capital First | E199: Accu | F199: 390.00 | H199: 460 | I199: 460.00 | J199: Target Achieved | K199: 70.00 | L199: 17.95% | M199: Successful | N199: 2016-04-18
A200: 32 | B200: 2015-07-10 | D200: Dolphin OffShore | E200: Accu | F200: 122.5 | H200: 61.00 | I200: 172.00 | J200: Loss of Rs.61.50/- | K200: -61.50 | L200: -50.20% | M200: Unsuccessful | N200: 2018-08-21
A201: 33 | B201: 2015-08-03 | D201: Allcargo logistics | E201: Accu | F201: 297.50 | H201: 350 | I201: 360.00 | J201: Profit of Rs 52.50/- | K201: 52.50 | L201: =K201/F201 -> 17.65% | M201: Successful | N201: 2015-08-16
A202: 34 | B202: 2015-08-03 | D202: Camline Fine | E202: Accu | F202: 115.50 | H202: 149 | I202: 140.00 | J202: Profit of Rs 33.50/- | K202: 33.50 | L202: 29.00% | M202: Successful | N202: 2017-01-05
A203: 35 | B203: 2015-09-04 | D203: TCI | E203: Accu | F203: 226.00 | H203: 292 | I203: 292.00 | J203: Target Achieved | K203: 66.00 | L203: 29.20% | M203: Successful | N203: 2015-10-09
A204: 36 | B204: 2015-09-07 | D204: Kalpataru Power Transmission Ltd | E204: Accu | F204: 232.50 | H204: 312.5 | I204: 310.00 | J204: Target Achieved | K204: 80.00 | L204: 34.41% | M204: Successful | N204: 2017-03-29
A205: 37 | B205: 2015-09-21 | D205: LLOYD ELECTRIC & ENG LTD | E205: Accu | F205: 196.50 | H205: 238 | I205: 238.00 | J205: Target Achieved | K205: 41.50 | L205: 21.12% | M205: Successful | N205: 2015-10-14
A206: 38 | B206: 2015-09-24 | D206: L&T Finance Holding | E206: Accu | F206: 65.00 | H206: 82 | I206: 82.00 | J206: Target Achieved | K206: 17.00 | L206: 26.15% | M206: Successful | N206: 2016-07-27
A207: 39 | B207: 2015-10-14 | D207: KEC International ltd | E207: Accu | F207: 144.00 | H207: 182.5 | I207: 181.00 | J207: Target Achieved | K207: 38.50 | L207: 26.74% | M207: Successful | N207: 2017-03-23
A208: 40 | B208: 2015-10-14 | D208: Gruh Finance | E208: Accu | F208: 264.00 | H208: 311 | I208: 311.00 | J208: Target Achieved | K208: 47.00 | L208: 17.80% | M208: Successful | N208: 2016-08-22
A209: 41 | B209: 2015-11-10 | D209: Pidilitind | E209: Buy | F209: 549.50 | H209: 630 | I209: 630.00 | J209: Target Achieved | K209: 80.50 | L209: 14.65% | M209: Successful | N209: 2016-02-19
A210: 42 | B210: 2015-12-04 | D210: Zensar Technology | E210: Accu | F210: 1027.50 | H210: 1315 | I210: 1250.00 | J210: Target Achieved | K210: =H210-F210 -> 287.50 | L210: 27.98% | M210: Successful | N210: 2018-05-24
A211: 43 | B211: 2015-12-29 | D211: Vinati Organics Ltd | E211: Accu | F211: 465.00 | H211: 540 | I211: 540.00 | J211: Target Achieved | K211: 75.00 | L211: =K211/F211 -> 16.13% | M211: Successful | N211: 2016-06-09
A212: 44 | B212: 2016-01-11 | D212: GSFC | E212: Buy | F212: 81.00 | H212: 110 | I212: 110.00 | J212: Target Achieved | K212: 29.00 | L212: 35.80% | M212: Successful | N212: 2017-01-10
A213: 45 | B213: 2016-01-13 | D213: SSWL | E213: Buy | F213: 417.50 | H213: 547 | I213: 535.00 | J213: Target Achieved | K213: 129.50 | L213: 31.02% | M213: Successful | N213: 2016-07-27
A214: 46 | B214: 2016-02-08 | D214: Persistent System Ltd | E214: Accu | F214: 650.00 | H214: 800 | I214: 800.00 | J214: Target Achieved | K214: 150.00 | L214: 23.08% | M214: Successful | N214: 2018-02-23
A215: 47 | B215: 2016-03-04 | D215: UPL | E215: Accu | F215: 437.50 | H215: 504.5 | I215: 522.00 | J215: Profit of Rs.67/- | K215: 67.00 | L215: 15.31% | M215: Successful | N215: 2016-04-20
A216: 48 | B216: 2016-03-09 | D216: Ashoka Buildcon Ltd | E216: Accu | F216: 189.50 | H216: 218 | I216: 218.00 | J216: Target Achieved | K216: 28.50 | L216: 15.04% | M216: Successful | N216: 2017-10-26
A217: 49 | B217: 2016-04-11 | D217: PTC INDIA FIN SERV LTD | E217: Accu | F217: 36-37 | I217: 60.00 | J217: Open
A218: 50 | B218: 2016-04-12 | D218: CAMLINFINE $ | E218: Accu | F218: 93.00 | H218: 149 | I218: 140.00 | J218: Profit of Rs 56/- | K218: 56.00 | L218: =K218/F218 -> 60.22% | M218: Successful | N218: 2017-01-05
A219: 51 | B219: 2016-04-12 | D219: Greaves Cotton Ltd. | E219: Accu | F219: 130.00 | H219: 150 | I219: 150-155 | J219: Target Achieved | K219: 20.00 | L219: 15.38% | M219: Successful | N219: 2016-07-13
A220: 52 | B220: 2016-04-13 | D220: DHFL | E220: Accu | F220: 196.00 | H220: 299 | I220: 299.00 | J220: Target Achieved | K220: 103.00 | L220: 52.55% | M220: Successful | N220: 2016-09-07
A221: 53 | B221: 2016-04-13 | D221: Magma | E221: Accu | F221: 88.00 | H221: 103 | I221: 103.00 | J221: Target Achieved | K221: 15.00 | L221: 17.05% | M221: Successful | N221: 2016-06-09
A222: 54 | B222: 2016-05-02 | D222: KEC International ltd $ | E222: Accu | F222: 127.50 | H222: 148 | I222: 148-150 | J222: Target Achieved | K222: 20.50 | L222: 16.08% | M222: Successful | N222: 2016-07-13
A223: 55 | B223: 2016-05-03 | D223: Mindtree | E223: Accu | F223: 675.00 | H223: 815 | I223: 790-800 | J223: Target Achieved | K223: 140.00 | L223: 20.74% | M223: Successful | N223: 2018-02-23
A224: 56 | B224: 2016-06-01 | D224: Atulauto | E224: Accu | F224: 495-505 | I224: 565-570 | J224: Open
A225: 57 | B225: 2016-06-06 | D225: TRITURBINE | E225: Accu | F225: 110.00 | H225: 126.5 | I225: 125.00 | J225: Profit of Rs.16.50/- | K225: 16.50 | L225: =K225/F225 -> 15.00% | M225: Successful | N225: 2016-07-01
A226: 58 | B226: 2016-06-17 | D226: Pennar Industries Ltd | E226: Accu | F226: 44.00 | H226: 69.5 | I226: 69.50 | J226: Profit of Rs.25.50/- | K226: 25.50 | L226: =K226/F226 -> 57.95% | M226: Successful | N226: 2017-08-30
A227: 59 | B227: 2016-06-28 | D227: EVEREADY INDS. IND. LTD. | E227: Accu | F227: 262.50 | H227: 340 | I227: 333.00 | J227: Profit of Rs.77.50/- | K227: 77.50 | L227: =K227/F227 -> 29.52% | M227: Successful | N227: 2017-10-09
A228: 60 | B228: 2016-06-28 | D228: FIEM INDUSTRIES LIMITED | E228: Accu | F228: 840.00 | H228: 1230 | I228: 1230.00 | J228: Target Achieved | K228: 390.00 | L228: =K228/F228 -> 46.43% | M228: Successful | N228: 2016-10-06
A229: 61 | B229: 2016-07-05 | D229: Bajaj Corp Ltd | E229: Accu | F229: 395 | H229: 468.50 | I229: 510.00 | J229: Part profit of Rs.73.50/- | K229: 73.50 | L229: =K229/F229 -> 19% | M229: Successful | N229: 2017-08-30
A230: 62 | B230: 2016-08-02 | D230: GPPL $ | E230: Buy | F230: 167-172 | I230: 198-200 | J230: Open
A231: 63 | B231: 2016-08-04 | D231: WONDERLA HOLIDAYS LTD | E231: Accu | F231: 395-405 | I231: 475.00 | J231: Open
A232: 64 | B232: 2016-08-11 | D232: CAMLINFINE | E232: Accu | F232: 86.50 | H232: 130 | I232: 130.00 | J232: Profit of Rs.43.50/- | K232: =H232-F232 -> 43.50 | L232: =K232/F232 -> 50.29% | M232: Successful | N232: 2017-12-22
A233: 65 | B233: 2016-08-18 | D233: GRANULES | E233: Accu | F233: 133.5 | H233: 126.50 | I233: 178.00 | J233: Exit | K233: -7.00 | L233: -5.24% | M233: Unsuccessful | N233: 2016-09-02
A234: 66 | B234: 2016-08-31 | D234: VA TECH WABAG | E234: Accu | F234: 560.00 | H234: 725 | I234: 725.00 | J234: Target Achieved | K234: 165.00 | L234: 29.46% | M234: Successful | N234: 2016-03-27
A235: 67 | B235: 2016-09-01 | D235: SKIPPER LIMITED | E235: Accu | F235: 160.50 | H235: 210 | I235: 210.00 | J235: Target Achieved | K235: 49.50 | L235: 30.84% | M235: Successful | N235: 2017-05-16
A236: 68 | B236: 2016-10-03 | D236: IFB Industries | E236: Accu | F236: 430.00 | H236: 596 | I236: 575.00 | J236: Profit of Rs.166/- | K236: 166.00 | L236: 38.60% | M236: Successful | N236: 2017-02-03
A237: 69 | B237: 2016-10-14 | D237: ASIANTILES | E237: Accu | F237: 280.00 | H237: 345 | I237: 345.00 | J237: Target Achieved | K237: 65.00 | L237: 23.21% | M237: Successful | N237: 2017-03-20
A238: 70 | B238: 2016-10-14 | D238: DEEPIND | E238: Accu | F238: 245.00 | H238: 325.5 | I238: 330.00 | J238: Profit of Rs.80.5/- | K238: 80.50 | L238: 32.86% | M238: Successful | N238: 2017-02-03
A239: 71 | B239: 2016-10-17 | D239: DCBBANK | E239: Accu | F239: 125.00 | H239: 160 | I239: 160.00 | J239: Target Achieved | K239: 35.00 | L239: 28.00% | M239: Successful | N239: 2017-03-09
A240: 72 | B240: 2016-10-17 | D240: ORIENTREF | E240: Accu | F240: 114.00 | H240: 145 | I240: 145.00 | J240: Target Achieved | K240: 31.00 | L240: =K240/F240 -> 27.19% | M240: Successful | N240: 2017-05-04
A241: 73 | B241: 2016-10-17 | D241: GANECOS | E241: Accu | F241: 212.00 | H241: 280 | I241: 276.00 | J241: Profit of Rs.68/- | K241: 68.00 | L241: =K241/F241 -> 32.08% | M241: Successful | N241: 2017-05-03
A242: 74 | B242: 2016-11-04 | D242: NBCC | E242: Accu | F242: 155.00 | H242: 210 | I242: 210.00 | J242: Profit of Rs.55/- | K242: 55.00 | L242: =K242/F242 -> 35.48% | M242: Successful | N242: 2017-07-28
A243: 75 | B243: 2016-12-06 | D243: PRECAM | E243: Accu | F243: 150.5 | H243: 72.50 | I243: 174.00 | J243: Loss of Rs.78/- | K243: -78.00 | L243: =K243/F243 -> -51.83% | M243: Unsuccessful | N243: 2018-08-21
A244: 76 | B244: 2016-12-08 | D244: INFRATEL | E244: Accu | F244: 380.00 | H244: 478 | I244: 468.00 | J244: Target Achieved | K244: 98.00 | L244: =K244/F244 -> 25.79% | M244: Successful | N244: 2017-10-17
A245: 77 | B245: 2016-12-30 | D245: GODREJPROP | E245: Accu | F245: 305.00 | H245: 375 | I245: 375.00 | J245: Target Achieved | K245: 70.00 | L245: 22.95% | M245: Successful | N245: 2017-02-02
A246: 78 | B246: 2017-01-04 | D246: DEEPAKNTR | E246: Accu | F246: 99.50 | H246: 158 | I246: 158.00 | J246: Target Achieved | K246: 58.50 | L246: 58.79% | M246: Successful | N246: 2017-06-12
A247: 79 | B247: 2017-02-20 | D247: SUBROS | E247: Accu | F247: 202.50 | H247: 234 | I247: 234.00 | J247: Target Achieved | K247: 31.50 | L247: 15.56% | M247: Successful | N247: 2017-04-11
A248: 80 | B248: 2017-02-20 | D248: RECLTD | E248: Accu | F248: 140.50 | H248: 220 | I248: 220.00 | J248: Target Achieved | K248: 79.50 | L248: 56.58% | M248: Successful | N248: 2017-05-09
A249: 81 | B249: 2017-03-24 | D249: VRLLOG | E249: Accu | F249: 300.50 | H249: 417.5 | I249: 420.00 | J249: Profit of Rs.117/- | K249: 117.00 | L249: 38.94% | M249: Successful | N249: 2017-12-01
A250: 82 | B250: 2017-03-24 | D250: FIEMIND | E250: Accu | F250: 850.00 | H250: 1042.5 | I250: 1023.00 | J250: Profit of Rs 192.50/- | K250: 192.50 | L250: 22.65% | M250: Successful | N250: 2017-04-05
A251: 83 | B251: 2017-04-05 | D251: RATNAMANI | E251: Accu | F251: 785.00 | H251: 930 | I251: 920.00 | J251: Profit of Rs.145/- | K251: 145.00 | L251: 18.47% | M251: Successful | N251: 2017-08-29
A252: 84 | B252: 2017-04-06 | D252: ZEEMEDIA | E252: Accu | F252: 40 | H252: 13.10 | I252: 60.00 | J252: Loss of Rs.26.9/- | K252: =H252-F252 -> -26.90 | L252: -67.25% | M252: Unsuccessful | N252: 2018-02-07
A253: 85 | B253: 2017-04-12 | D253: DABUR | E253: Accu | F253: 289.50 | H253: 354 | I253: 360.00 | J253: Profit of Rs.64.5/- | K253: 64.50 | L253: =K253/F253 -> 22.28% | M253: Successful | N253: 2017-11-01
A254: 86 | B254: 2017-04-20 | D254: KPRMILL | E254: Accu | F254: 700.00 | H254: 840 | I254: 840.00 | J254: Profit of Rs.140/- | K254: 140.00 | L254: =K254/F254 -> 20.00% | M254: Successful | N254: 2017-06-07
A255: 87 | B255: 2017-05-22 | D255: GREAVESCOT | E255: Accu | F255: 153-158 | I255: 190.00 | J255: Open
A256: 88 | B256: 2017-06-01 | D256: ESSELPACK | E256: Accu | F256: 130 | H256: 155.50 | I256: 170.00 | J256: Part profit of Rs.51/- | K256: =H256-F256 -> 25.50 | L256: =K256/F256 -> 20% | M256: Successful | N256: 2017-11-17
... 59 more rows

Sheet Sheet2 (hidden)
A1: SYMBOL | B1: SERIES | C1: OPEN | D1: HIGH | E1: LOW | F1: CLOSE | G1: LAST | H1: PREVCLOSE | I1: TOTTRDQTY | J1: TOTTRDVAL | K1: TIMESTAMP | L1: TOTALTRADES | M1: ISIN | N1: ISIN
A2: 20MICRONS | B2: EQ | C2: 34.35 | D2: 36.5 | E2: 33.25 | F2: 34.95 | G2: 34.65 | H2: 34 | I2: 43426 | J2: 1522444.5 | K2: 2019-02-20 | L2: 477 | M2: INE144J01027
A3: 21STCENMGM | B3: EQ | C3: 18.55 | D3: 19 | E3: 18.55 | F3: 18.95 | G3: 18.9 | H3: 18.9 | I3: 86 | J3: 1606.05 | K3: 2019-02-20 | L3: 9 | M3: INE253B01015
A4: 3IINFOTECH | B4: EQ | C4: 3 | D4: 3.5 | E4: 2.95 | F4: 3.45 | G4: 3.4 | H4: 2.95 | I4: 7391922 | J4: 24129118.1 | K4: 2019-02-20 | L4: 2602 | M4: INE748C01020
A5: 3MINDIA | B5: EQ | C5: 22113 | D5: 22113 | E5: 21613 | F5: 21971.9 | G5: 21900 | H5: 21927.55 | I5: 2185 | J5: 47908972.35 | K5: 2019-02-20 | L5: 1311 | M5: INE470A01017
A6: 3PLAND | B6: EQ | C6: 10.1 | D6: 10.75 | E6: 10.1 | F6: 10.2 | G6: 10.15 | H6: 10.85 | I6: 70 | J6: 711.6 | K6: 2019-02-20 | L6: 7 | M6: INE105C01023
A7: 5PAISA | B7: EQ | C7: 230.1 | D7: 238.45 | E7: 221.1 | F7: 230.6 | G7: 230.65 | H7: 229.95 | I7: 7473 | J7: 1718443.05 | K7: 2019-02-20 | L7: 151 | M7: INE618L01018
A8: 63MOONS | B8: EQ | C8: 75.95 | D8: 76.45 | E8: 74 | F8: 74.35 | G8: 74.1 | H8: 75 | I8: 123623 | J8: 9282351.75 | K8: 2019-02-20 | L8: 2572 | M8: INE111B01023
A9: 8KMILES | B9: EQ | C9: 112.95 | D9: 112.95 | E9: 107.5 | F9: 111.15 | G9: 111.4 | H9: 108.9 | I9: 253610 | J9: 28103557.4 | K9: 2019-02-20 | L9: 3211 | M9: INE650K01021
A10: A2ZINFRA | B10: EQ | C10: 14.7 | D10: 14.7 | E10: 13.3 | F10: 13.95 | G10: 14.15 | H10: 14 | I10: 552298 | J10: 7887488.7 | K10: 2019-02-20 | L10: 1070 | M10: INE619I01012
A11: AARTIDRUGS | B11: EQ | C11: 584.05 | D11: 588.45 | E11: 576.2 | F11: 585.6 | G11: 585 | H11: 584.9 | I11: 4001 | J11: 2331568.9 | K11: 2019-02-20 | L11: 499 | M11: INE767A01016
A12: AARTIIND | B12: EQ | C12: 1350 | D12: 1368.75 | E12: 1300 | F12: 1308.65 | G12: 1314 | H12: 1326.85 | I12: 420513 | J12: 555131628.4 | K12: 2019-02-20 | L12: 26503 | M12: INE769A01020
A13: AARVEEDEN | B13: EQ | C13: 20.35 | D13: 20.4 | E13: 20 | F13: 20.25 | G13: 20.35 | H13: 20.1 | I13: 4288 | J13: 86341.5 | K13: 2019-02-20 | L13: 61 | M13: INE273D01019
A14: AAVAS | B14: EQ | C14: 904.95 | D14: 945 | E14: 904.95 | F14: 938.9 | G14: 944.5 | H14: 907.4 | I14: 81520 | J14: 76136064.35 | K14: 2019-02-20 | L14: 3231 | M14: INE216P01012
A15: ABAN | B15: EQ | C15: 53.8 | D15: 54.8 | E15: 52.25 | F15: 52.95 | G15: 52.9 | H15: 51.05 | I15: 729983 | J15: 38906580.65 | K15: 2019-02-20 | L15: 6674 | M15: INE421A01028
A16: ABB | B16: EQ | C16: 1255 | D16: 1274.5 | E16: 1245.55 | F16: 1250.5 | G16: 1252.9 | H16: 1242.95 | I16: 63952 | J16: 80596878.75 | K16: 2019-02-20 | L16: 4277 | M16: INE117A01022
A17: ABBOTINDIA | B17: EQ | C17: 7250 | D17: 7315 | E17: 7250 | F17: 7295.1 | G17: 7280 | H17: 7234.75 | I17: 1760 | J17: 12833577.5 | K17: 2019-02-20 | L17: 458 | M17: INE358A01014
A18: ABCAPITAL | B18: EQ | C18: 80.65 | D18: 82.4 | E18: 80.65 | F18: 81.65 | G18: 81.65 | H18: 80.6 | I18: 2442672 | J18: 199822460.7 | K18: 2019-02-20 | L18: 39098 | M18: INE674K01013
A19: ABFRL | B19: EQ | C19: 215.1 | D19: 221 | E19: 212 | F19: 218.45 | G19: 219.45 | H19: 215.2 | I19: 414526 | J19: 89523516.55 | K19: 2019-02-20 | L19: 9712 | M19: INE647O01011
A20: ACC | B20: EQ | C20: 1360 | D20: 1392 | E20: 1360 | F20: 1382.5 | G20: 1390 | H20: 1353.1 | I20: 706935 | J20: 973017091.6 | K20: 2019-02-20 | L20: 25849 | M20: INE012A01025
A21: ACCELYA | B21: EQ | C21: 924.6 | D21: 933.3 | E21: 917 | F21: 919.1 | G21: 917 | H21: 934.35 | I21: 1585 | J21: 1463114.4 | K21: 2019-02-20 | L21: 280 | M21: INE793A01012
A22: ACE | B22: EQ | C22: 73 | D22: 74.75 | E22: 72.65 | F22: 73.9 | G22: 73.9 | H22: 71.75 | I22: 116132 | J22: 8560043.1 | K22: 2019-02-20 | L22: 2612 | M22: INE731H01025
A23: ADANIENT | B23: EQ | C23: 117.95 | D23: 121.1 | E23: 116.2 | F23: 120.05 | G23: 118.8 | H23: 118.25 | I23: 3739081 | J23: 447177285.8 | K23: 2019-02-20 | L23: 18731 | M23: INE423A01024
A24: ADANIGAS | B24: EQ | C24: 95.4 | D24: 97.45 | E24: 94 | F24: 95.75 | G24: 97.15 | H24: 95.1 | I24: 414982 | J24: 39576569.9 | K24: 2019-02-20 | L24: 2631 | M24: INE399L01023
A25: ADANIGREEN | B25: EQ | C25: 31.15 | D25: 31.65 | E25: 30.55 | F25: 30.95 | G25: 31 | H25: 30.8 | I25: 220599 | J25: 6859017.65 | K25: 2019-02-20 | L25: 1094 | M25: INE364U01010
A26: ADANIPORTS | B26: EQ | C26: 342 | D26: 356.35 | E26: 340.95 | F26: 354.75 | G26: 354.6 | H26: 339.55 | I26: 4885571 | J26: 1711416369 | K26: 2019-02-20 | L26: 53358 | M26: INE742F01042
A27: ADANIPOWER | B27: EQ | C27: 37.05 | D27: 41.1 | E27: 36.85 | F27: 39.55 | G27: 40.7 | H27: 36.85 | I27: 11657825 | J27: 448990419.4 | K27: 2019-02-20 | L27: 20986 | M27: INE814H01011
A28: ADANITRANS | B28: EQ | C28: 217.25 | D28: 219.85 | E28: 215.15 | F28: 216.8 | G28: 216.65 | H28: 218.9 | I28: 108672 | J28: 23635072.2 | K28: 2019-02-20 | L28: 7502 | M28: INE931S01010
A29: ADFFOODS | B29: EQ | C29: 209.6 | D29: 226 | E29: 209.6 | F29: 220.9 | G29: 226 | H29: 208.05 | I29: 37964 | J29: 8218098.05 | K29: 2019-02-20 | L29: 1365 | M29: INE982B01019
A30: ADHUNIK | B30: EQ | C30: 1.5 | D30: 1.5 | E30: 1.4 | F30: 1.45 | G30: 1.5 | H30: 1.45 | I30: 125355 | J30: 177607.65 | K30: 2019-02-20 | L30: 73 | M30: INE400H01019
A31: ADHUNIKIND | B31: EQ | C31: 40.55 | D31: 41 | E31: 35.5 | F31: 39.75 | G31: 40 | H31: 39.6 | I31: 21988 | J31: 839299.2 | K31: 2019-02-20 | L31: 291 | M31: INE452L01012
A32: ADLABS | B32: EQ | C32: 9.1 | D32: 9.15 | E32: 8.75 | F32: 9.15 | G32: 9.15 | H32: 8.75 | I32: 369378 | J32: 3275857.8 | K32: 2019-02-20 | L32: 228 | M32: INE172N01012
A33: ADORWELD | B33: EQ | C33: 297 | D33: 317 | E33: 289.95 | F33: 306.1 | G33: 303 | H33: 292.5 | I33: 8937 | J33: 2735058.5 | K33: 2019-02-20 | L33: 1103 | M33: INE045A01017
A34: ADROITINFO | B34: EQ | C34: 15.6 | D34: 17.5 | E34: 14.5 | F34: 15 | G34: 15 | H34: 15.1 | I34: 3518 | J34: 55339.6 | K34: 2019-02-20 | L34: 100 | M34: INE737B01033
A35: ADSL | B35: EQ | C35: 12.05 | D35: 12.5 | E35: 11.3 | F35: 11.7 | G35: 11.45 | H35: 12.25 | I35: 11389 | J35: 134665.95 | K35: 2019-02-20 | L35: 100 | M35: INE102I01027
A36: ADVANIHOTR | B36: EQ | C36: 61.5 | D36: 70.7 | E36: 60.55 | F36: 62.7 | G36: 62.6 | H36: 61.45 | I36: 14139 | J36: 905226.6 | K36: 2019-02-20 | L36: 148 | M36: INE199C01026
A37: ADVENZYMES | B37: EQ | C37: 160.4 | D37: 162.5 | E37: 156.3 | F37: 157.85 | G37: 157.8 | H37: 160.35 | I37: 132746 | J37: 21060418.8 | K37: 2019-02-20 | L37: 2005 | M37: INE837H01020
A38: AEGISCHEM | B38: EQ | C38: 175.5 | D38: 189.9 | E38: 175.5 | F38: 185.5 | G38: 189.9 | H38: 177 | I38: 61019 | J38: 11048528.45 | K38: 2019-02-20 | L38: 4932 | M38: INE208C01025
A39: AGARIND | B39: EQ | C39: 163.3 | D39: 165 | E39: 157.05 | F39: 163 | G39: 163 | H39: 164.5 | I39: 2571 | J39: 418439.2 | K39: 2019-02-20 | L39: 69 | M39: INE204E01012
A40: AGCNET | B40: EQ | C40: 82.1 | D40: 88 | E40: 82.1 | F40: 86.95 | G40: 86.95 | H40: 82.8 | I40: 3621 | J40: 304610.5 | K40: 2019-02-20 | L40: 42 | M40: INE676A01019
A41: AGLSL | B41: EQ | C41: 61.25 | D41: 62.5 | E41: 57.5 | F41: 58.15 | G41: 57.5 | H41: 60 | I41: 715 | J41: 42403.7 | K41: 2019-02-20 | L41: 78 | M41: INE517U01013
A42: AGRITECH | B42: EQ | C42: 50.95 | D42: 53.95 | E42: 49.55 | F42: 51.65 | G42: 51.8 | H42: 49.05 | I42: 5149 | J42: 267298.55 | K42: 2019-02-20 | L42: 80 | M42: INE449G01018
A43: AHLEAST | B43: EQ | C43: 241.55 | D43: 241.55 | E43: 230 | F43: 230.1 | G43: 230 | H43: 232.2 | I43: 1146 | J43: 265629.4 | K43: 2019-02-20 | L43: 123 | M43: INE926K01017
A44: AHLUCONT | B44: EQ | C44: 257.4 | D44: 259.9 | E44: 254.05 | F44: 256.85 | G44: 257 | H44: 253.85 | I44: 2386 | J44: 611054.05 | K44: 2019-02-20 | L44: 193 | M44: INE758C01029
A45: AHLWEST | B45: EQ | C45: 347.9 | D45: 353 | E45: 331 | F45: 346.8 | G45: 350 | H45: 347.85 | I45: 1241 | J45: 430103.45 | K45: 2019-02-20 | L45: 64 | M45: INE915K01010
A46: AIAENG | B46: EQ | C46: 1645 | D46: 1648.1 | E46: 1610.05 | F46: 1615.2 | G46: 1615 | H46: 1640.7 | I46: 9284 | J46: 15048776.7 | K46: 2019-02-20 | L46: 1637 | M46: INE212H01026
A47: AIFL | B47: EQ | C47: 10.55 | D47: 11.05 | E47: 10.05 | F47: 11.05 | G47: 11.05 | H47: 10.55 | I47: 148309 | J47: 1563815.1 | K47: 2019-02-20 | L47: 461 | M47: INE428O01016
A48: AIONJSW | B48: EQ | C48: 31.95 | D48: 32.75 | E48: 31.95 | F48: 32.65 | G48: 32.65 | H48: 32 | I48: 24018 | J48: 772747.5 | K48: 2019-02-20 | L48: 65 | M48: INE743C01021
A49: AJANTPHARM | B49: EQ | C49: 957.95 | D49: 976.9 | E49: 950 | F49: 970.65 | G49: 970.7 | H49: 954.1 | I49: 310199 | J49: 299651696 | K49: 2019-02-20 | L49: 13787 | M49: INE031B01049
A50: AJMERA | B50: EQ | C50: 166 | D50: 167.4 | E50: 158.9 | F50: 162.75 | G50: 162.5 | H50: 164 | I50: 133570 | J50: 21878661.55 | K50: 2019-02-20 | L50: 3435 | M50: INE298G01027
A51: AKSHARCHEM | B51: EQ | C51: 312.5 | D51: 327.65 | E51: 312.5 | F51: 325.25 | G51: 327 | H51: 322.45 | I51: 1372 | J51: 445841.6 | K51: 2019-02-20 | L51: 125 | M51: INE542B01011
A52: AKSHOPTFBR | B52: EQ | C52: 18.55 | D52: 18.8 | E52: 18.45 | F52: 18.6 | G52: 18.7 | H52: 18.55 | I52: 280470 | J52: 5210829.9 | K52: 2019-02-20 | L52: 1281 | M52: INE523B01011
A53: AKZOINDIA | B53: EQ | C53: 1648.9 | D53: 1699.9 | E53: 1638.1 | F53: 1683.55 | G53: 1699.9 | H53: 1634.45 | I53: 3802 | J53: 6348152.1 | K53: 2019-02-20 | L53: 883 | M53: INE133A01011
A54: ALANKIT | B54: EQ | C54: 26.9 | D54: 27.9 | E54: 26.5 | F54: 27.8 | G54: 27.7 | H54: 26.85 | I54: 779714 | J54: 21116187.6 | K54: 2019-02-20 | L54: 2135 | M54: INE914E01040
A55: ALBERTDAVD | B55: EQ | C55: 378 | D55: 395 | E55: 378 | F55: 382.3 | G55: 380 | H55: 384.8 | I55: 1795 | J55: 689386.15 | K55: 2019-02-20 | L55: 131 | M55: INE155C01010
A56: ALBK | B56: EQ | C56: 41.95 | D56: 45 | E56: 41.3 | F56: 44.2 | G56: 44.9 | H56: 41.55 | I56: 6023961 | J56: 259707920.8 | K56: 2019-02-20 | L56: 16203 | M56: INE428A01015
A57: ALCHEM | B57: BE | C57: 1.9 | D57: 1.95 | E57: 1.9 | F57: 1.9 | G57: 1.9 | H57: 1.95 | I57: 3453 | J57: 6713.25 | K57: 2019-02-20 | L57: 8 | M57: INE964B01033
A58: ALEMBICLTD | B58: EQ | C58: 40.2 | D58: 40.6 | E58: 39.9 | F58: 40.1 | G58: 40.25 | H58: 40.3 | I58: 44506 | J58: 1792316.5 | K58: 2019-02-20 | L58: 422 | M58: INE426A01027
A59: ALICON | B59: EQ | C59: 515 | D59: 530 | E59: 515 | F59: 517.05 | G59: 517.05 | H59: 519.25 | I59: 754 | J59: 392669.95 | K59: 2019-02-20 | L59: 101 | M59: INE062D01024
A60: ALKALI | B60: EQ | C60: 40.45 | D60: 43.3 | E60: 40.15 | F60: 42.75 | G60: 42.15 | H60: 40.45 | I60: 8364 | J60: 352158.15 | K60: 2019-02-20 | L60: 210 | M60: INE773I01017
A61: ALKEM | B61: EQ | C61: 1855.3 | D61: 1855.3 | E61: 1828 | F61: 1835.8 | G61: 1837.95 | H61: 1847.2 | I61: 11486 | J61: 21099050.3 | K61: 2019-02-20 | L61: 2684 | M61: INE540L01014
A62: ALKYLAMINE | B62: EQ | C62: 705.05 | D62: 712 | E62: 675 | F62: 698.95 | G62: 699 | H62: 701.9 | I62: 15731 | J62: 10881715.6 | K62: 2019-02-20 | L62: 702 | M62: INE150B01021
A63: ALLCARGO | B63: EQ | C63: 101 | D63: 101.7 | E63: 100 | F63: 101.15 | G63: 101.1 | H63: 100.45 | I63: 37524 | J63: 3777199.45 | K63: 2019-02-20 | L63: 822 | M63: INE418H01029
A64: ALLSEC | B64: EQ | C64: 183.35 | D64: 183.9 | E64: 175.15 | F64: 178.45 | G64: 182 | H64: 180.75 | I64: 2572 | J64: 460717.1 | K64: 2019-02-20 | L64: 276 | M64: INE835G01018
A65: ALMONDZ | B65: EQ | C65: 22.3 | D65: 22.3 | E65: 21.6 | F65: 21.6 | G65: 22.3 | H65: 22.3 | I65: 2074 | J65: 45288.9 | K65: 2019-02-20 | L65: 22 | M65: INE326B01027
A66: ALOKTEXT | B66: EQ | C66: 3.55 | D66: 3.55 | E66: 3.4 | F66: 3.45 | G66: 3.5 | H66: 3.55 | I66: 1246533 | J66: 4315407.5 | K66: 2019-02-20 | L66: 491 | M66: INE270A01011
A67: ALPA | B67: EQ | C67: 22.05 | D67: 22.55 | E67: 21.65 | F67: 22.4 | G67: 22.45 | H67: 22 | I67: 16712 | J67: 368760.6 | K67: 2019-02-20 | L67: 205 | M67: INE385I01010
A68: ALPHAGEO | B68: EQ | C68: 391.25 | D68: 430 | E68: 391.25 | F68: 401.55 | G68: 398.9 | H68: 370.35 | I68: 114117 | J68: 46933180.5 | K68: 2019-02-20 | L68: 7104 | M68: INE137C01018
A69: AMARAJABAT | B69: EQ | C69: 745.65 | D69: 749 | E69: 713.75 | F69: 724.3 | G69: 722 | H69: 738.3 | I69: 1381382 | J69: 1002157603 | K69: 2019-02-20 | L69: 31551 | M69: INE885A01032
A70: AMBER | B70: EQ | C70: 641.05 | D70: 686.9 | E70: 638.4 | F70: 659 | G70: 656.45 | H70: 635.7 | I70: 8546 | J70: 5645729.1 | K70: 2019-02-20 | L70: 1508 | M70: INE371P01015
A71: AMBIKCO | B71: EQ | C71: 1140.65 | D71: 1150 | E71: 1117 | F71: 1141 | G71: 1145 | H71: 1127.7 | I71: 3198 | J71: 3617264.85 | K71: 2019-02-20 | L71: 246 | M71: INE540G01014
A72: AMBUJACEM | B72: EQ | C72: 199.6 | D72: 207.8 | E72: 199.6 | F72: 206.8 | G72: 207.2 | H72: 199.6 | I72: 3528149 | J72: 720503685.5 | K72: 2019-02-20 | L72: 29816 | M72: INE079A01024
A73: AMDIND | B73: EQ | C73: 18.25 | D73: 19.25 | E73: 18.25 | F73: 19 | G73: 18.65 | H73: 18.25 | I73: 7174 | J73: 135514.1 | K73: 2019-02-20 | L73: 49 | M73: INE005I01014
A74: AMJLAND | B74: EQ | C74: 17.75 | D74: 18.35 | E74: 17.7 | F74: 18.05 | G74: 18.05 | H74: 17.9 | I74: 1932 | J74: 35231.6 | K74: 2019-02-20 | L74: 19 | M74: INE606A01024
A75: AMRUTANJAN | B75: EQ | C75: 287.45 | D75: 294.75 | E75: 285.35 | F75: 293.6 | G75: 292.95 | H75: 283.35 | I75: 9462 | J75: 2764888.4 | K75: 2019-02-20 | L75: 413 | M75: INE098F01031
A76: ANANTRAJ | B76: EQ | C76: 30 | D76: 31.1 | E76: 29.8 | F76: 30.15 | G76: 30.15 | H76: 29.85 | I76: 602335 | J76: 18289373.25 | K76: 2019-02-20 | L76: 3790 | M76: INE242C01024
A77: ANDHRABANK | B77: EQ | C77: 23.7 | D77: 24.15 | E77: 23.3 | F77: 24 | G77: 23.9 | H77: 23.4 | I77: 1094622 | J77: 26014025.6 | K77: 2019-02-20 | L77: 2502 | M77: INE434A01013
A78: ANDHRACEMT | B78: EQ | C78: 3.75 | D78: 3.85 | E78: 3.6 | F78: 3.6 | G78: 3.65 | H78: 3.75 | I78: 134512 | J78: 495102.75 | K78: 2019-02-20 | L78: 206 | M78: INE666E01012
A79: ANDHRSUGAR | B79: EQ | C79: 299.05 | D79: 306.75 | E79: 295.6 | F79: 302.3 | G79: 301.1 | H79: 300.3 | I79: 49408 | J79: 15029189.05 | K79: 2019-02-20 | L79: 1125 | M79: INE715B01013
A80: ANGIND | B80: BE | C80: 1.25 | D80: 1.3 | E80: 1.25 | F80: 1.25 | G80: 1.3 | H80: 1.3 | I80: 810 | J80: 1028 | K80: 2019-02-20 | L80: 11 | M80: INE017D01010
A81: ANIKINDS | B81: EQ | C81: 17.5 | D81: 17.5 | E81: 16 | F81: 16.65 | G81: 16.55 | H81: 16.7 | I81: 11449 | J81: 189013.75 | K81: 2019-02-20 | L81: 79 | M81: INE087B01017
A82: ANKITMETAL | B82: BE | C82: 0.45 | D82: 0.5 | E82: 0.45 | F82: 0.5 | G82: 0.5 | H82: 0.45 | I82: 32074 | J82: 14605 | K82: 2019-02-20 | L82: 20 | M82: INE106I01010
A83: ANSALAPI | B83: EQ | C83: 10.95 | D83: 11.55 | E83: 10.1 | F83: 10.45 | G83: 10.5 | H83: 10.95 | I83: 319147 | J83: 3460933.75 | K83: 2019-02-20 | L83: 1127 | M83: INE436A01026
A84: ANSALHSG | B84: EQ | C84: 13.6 | D84: 14.65 | E84: 12.25 | F84: 12.55 | G84: 12.5 | H84: 12.75 | I84: 975143 | J84: 12933094.2 | K84: 2019-02-20 | L84: 3364 | M84: INE880B01015
A85: ANTGRAPHIC | B85: BE | C85: 0.45 | D85: 0.5 | E85: 0.45 | F85: 0.5 | G85: 0.5 | H85: 0.5 | I85: 37545 | J85: 17205.75 | K85: 2019-02-20 | L85: 20 | M85: INE414B01021
A86: APARINDS | B86: EQ | C86: 619.95 | D86: 627.95 | E86: 618.45 | F86: 627 | G86: 627.95 | H86: 622.65 | I86: 1171 | J86: 731497.5 | K86: 2019-02-20 | L86: 123 | M86: INE372A01015
A87: APCL | B87: EQ | C87: 104.5 | D87: 104.9 | E87: 97 | F87: 100.8 | G87: 100.85 | H87: 96.85 | I87: 2683 | J87: 263922 | K87: 2019-02-20 | L87: 44 | M87: INE071F01012
A88: APCOTEXIND | B88: EQ | C88: 449.7 | D88: 456.1 | E88: 447.3 | F88: 453.8 | G88: 450 | H88: 447.15 | I88: 792 | J88: 356852.25 | K88: 2019-02-20 | L88: 104 | M88: INE116A01024
A89: APEX | B89: EQ | C89: 286.7 | D89: 288 | E89: 282.1 | F89: 284.3 | G89: 284.95 | H89: 283 | I89: 34884 | J89: 9929612.45 | K89: 2019-02-20 | L89: 2079 | M89: INE346W01013
A90: APLAPOLLO | B90: EQ | C90: 1102.4 | D90: 1139 | E90: 1080 | F90: 1086.55 | G90: 1080 | H90: 1102.45 | I90: 13720 | J90: 15042235.3 | K90: 2019-02-20 | L90: 1607 | M90: INE702C01019
A91: APLLTD | B91: EQ | C91: 535 | D91: 545.45 | E91: 526 | F91: 528.35 | G91: 527 | H91: 539.55 | I91: 27537 | J91: 14821789.8 | K91: 2019-02-20 | L91: 2374 | M91: INE901L01018
A92: APOLLO | B92: EQ | C92: 98.1 | D92: 101.05 | E92: 97.5 | F92: 97.85 | G92: 98 | H92: 98.1 | I92: 20840 | J92: 2055042.45 | K92: 2019-02-20 | L92: 434 | M92: INE713T01010
A93: APOLLOHOSP | B93: EQ | C93: 1127 | D93: 1143.4 | E93: 1120 | F93: 1129.6 | G93: 1126.5 | H93: 1116.4 | I93: 1188434 | J93: 1341354781 | K93: 2019-02-20 | L93: 26590 | M93: INE437A01024
A94: APOLLOTYRE | B94: EQ | C94: 203.2 | D94: 210.9 | E94: 203.2 | F94: 209.1 | G94: 209.45 | H94: 202.4 | I94: 3626848 | J94: 756491425.4 | K94: 2019-02-20 | L94: 42644 | M94: INE438A01022
A95: APOLSINHOT | B95: BE | C95: 900 | D95: 939.95 | E95: 900 | F95: 906 | G95: 906 | H95: 907.1 | I95: 11 | J95: 10013.9 | K95: 2019-02-20 | L95: 7 | M95: INE451F01024
A96: APTECHT | B96: EQ | C96: 158.05 | D96: 160.7 | E96: 156.65 | F96: 159.05 | G96: 159.5 | H96: 156.75 | I96: 80644 | J96: 12814919 | K96: 2019-02-20 | L96: 2008 | M96: INE266F01018
A97: ARCHIDPLY | B97: EQ | C97: 38 | D97: 38.75 | E97: 36.6 | F97: 37.2 | G97: 37.5 | H97: 37.85 | I97: 14870 | J97: 552224.65 | K97: 2019-02-20 | L97: 262 | M97: INE877I01016
A98: ARCHIES | B98: EQ | C98: 22 | D98: 22.3 | E98: 20.7 | F98: 20.85 | G98: 20.9 | H98: 21.55 | I98: 79937 | J98: 1685731.55 | K98: 2019-02-20 | L98: 574 | M98: INE731A01020
A99: ARCOTECH | B99: EQ | C99: 4.3 | D99: 4.35 | E99: 4.25 | F99: 4.3 | G99: 4.3 | H99: 4.3 | I99: 39015 | J99: 167827.8 | K99: 2019-02-20 | L99: 107 | M99: INE574I01035
A100: ARIES | B100: EQ | C100: 71.05 | D100: 71.9 | E100: 69.4 | F100: 69.85 | G100: 69.85 | H100: 71.35 | I100: 43052 | J100: 3038649.5 | K100: 2019-02-20 | L100: 550 | M100: INE298I01015
A101: ARIHANT | B101: EQ | C101: 27.5 | D101: 29.3 | E101: 27.1 | F101: 27.7 | G101: 27.15 | H101: 28.35 | I101: 5603 | J101: 155278.35 | K101: 2019-02-20 | L101: 38 | M101: INE413D01011
A102: ARIHANTSUP | B102: EQ | C102: 46.95 | D102: 49.55 | E102: 45.5 | F102: 48.8 | G102: 49 | H102: 46.75 | I102: 23880 | J102: 1145968.9 | K102: 2019-02-20 | L102: 348 | M102: INE643K01018
A103: ARMANFIN | B103: EQ | C103: 369.6 | D103: 370.95 | E103: 356.05 | F103: 362.05 | G103: 362.8 | H103: 372.95 | I103: 1106 | J103: 399871.45 | K103: 2019-02-20 | L103: 74 | M103: INE109C01017
A104: AROGRANITE | B104: EQ | C104: 43.45 | D104: 44.95 | E104: 42.65 | F104: 43.55 | G104: 43.95 | H104: 43.4 | I104: 2266 | J104: 98904.2 | K104: 2019-02-20 | L104: 71 | M104: INE210C01013
A105: ARROWGREEN | B105: BE | C105: 75.55 | D105: 79 | E105: 74.5 | F105: 76.05 | G105: 77 | H105: 75.45 | I105: 3845 | J105: 294830.95 | K105: 2019-02-20 | L105: 66 | M105: INE570D01018
A106: ARROWTEX | B106: EQ | C106: 14.55 | D106: 15.5 | E106: 14.5 | F106: 15.25 | G106: 15.1 | H106: 14.75 | I106: 10811 | J106: 161911.8 | K106: 2019-02-20 | L106: 79 | M106: INE933J01015
A107: ARSHIYA | B107: EQ | C107: 27.4 | D107: 32.25 | E107: 27.4 | F107: 28.6 | G107: 28.4 | H107: 28.35 | I107: 46320 | J107: 1346613.6 | K107: 2019-02-20 | L107: 621 | M107: INE968D01022
A108: ARSSINFRA | B108: EQ | C108: 35.25 | D108: 36.4 | E108: 34.25 | F108: 35.5 | G108: 35.9 | H108: 35.05 | I108: 14120 | J108: 502304.25 | K108: 2019-02-20 | L108: 95 | M108: INE267I01010
A109: ARVIND | B109: EQ | C109: 76.45 | D109: 77.15 | E109: 76.15 | F109: 76.65 | G109: 76.6 | H109: 76.2 | I109: 881511 | J109: 67612007.9 | K109: 2019-02-20 | L109: 7019 | M109: INE034A01011
A110: ARVSMART | B110: EQ | C110: 119.75 | D110: 119.75 | E110: 113.4 | F110: 116.05 | G110: 115.55 | H110: 116.1 | I110: 24737 | J110: 2878668.05 | K110: 2019-02-20 | L110: 815 | M110: INE034S01021
A111: ASAHIINDIA | B111: EQ | C111: 253.4 | D111: 253.4 | E111: 250 | F111: 250.35 | G111: 251 | H111: 250.1 | I111: 10448 | J111: 2613326.2 | K111: 2019-02-20 | L111: 456 | M111: INE439A01020
A112: ASAHISONG | B112: EQ | C112: 141 | D112: 144.95 | E112: 136.5 | F112: 142.5 | G112: 142.95 | H112: 142.05 | I112: 4824 | J112: 679201.45 | K112: 2019-02-20 | L112: 189 | M112: INE228I01012
A113: ASAL | B113: EQ | C113: 45.25 | D113: 45.7 | E113: 44 | F113: 44.2 | G113: 44 | H113: 42.95 | I113: 2924 | J113: 130471.5 | K113: 2019-02-20 | L113: 51 | M113: INE900C01027
A114: ASHAPURMIN | B114: EQ | C114: 19.9 | D114: 20.9 | E114: 19.1 | F114: 19.5 | G114: 19.45 | H114: 19.8 | I114: 52614 | J114: 1031985.7 | K114: 2019-02-20 | L114: 417 | M114: INE348A01023
A115: ASHIANA | B115: EQ | C115: 110 | D115: 110 | E115: 106.05 | F115: 107.4 | G115: 106.05 | H115: 107.65 | I115: 24592 | J115: 2664085.1 | K115: 2019-02-20 | L115: 423 | M115: INE365D01021
A116: ASHIMASYN | B116: BE | C116: 12.05 | D116: 12.9 | E116: 12.05 | F116: 12.7 | G116: 12.9 | H116: 12.3 | I116: 19306 | J116: 244093.5 | K116: 2019-02-20 | L116: 50 | M116: INE440A01010
A117: ASHOKA | B117: EQ | C117: 108.55 | D117: 112.9 | E117: 107.65 | F117: 111.95 | G117: 112.3 | H117: 109.1 | I117: 78580 | J117: 8655692.15 | K117: 2019-02-20 | L117: 3332 | M117: INE442H01029
A118: ASHOKLEY | B118: EQ | C118: 79.8 | D118: 81.5 | E118: 79.8 | F118: 80.95 | G118: 81.05 | H118: 79.2 | I118: 25543536 | J118: 2065194068 | K118: 2019-02-20 | L118: 74164 | M118: INE208A01029
A119: ASIANHOTNR | B119: EQ | C119: 138.35 | D119: 144 | E119: 138.3 | F119: 144 | G119: 144 | H119: 139.1 | I119: 261 | J119: 36397.9 | K119: 2019-02-20 | L119: 12 | M119: INE363A01022
A120: ASIANPAINT | B120: EQ | C120: 1380 | D120: 1398.8 | E120: 1376 | F120: 1396.9 | G120: 1396.8 | H120: 1377.85 | I120: 843469 | J120: 1173258108 | K120: 2019-02-20 | L120: 34144 | M120: INE021A01026
A121: ASIANTILES | B121: EQ | C121: 158.1 | D121: 165 | E121: 158.1 | F121: 163.25 | G121: 163.1 | H121: 158.1 | I121: 113442 | J121: 18377374.7 | K121: 2019-02-20 | L121: 2549 | M121: INE022I01019
A122: ASPINWALL | B122: EQ | C122: 145.5 | D122: 149 | E122: 143.05 | F122: 144.05 | G122: 147.9 | H122: 145.3 | I122: 244 | J122: 35805.35 | K122: 2019-02-20 | L122: 20 | M122: INE991I01015
A123: ASSAMCO | B123: EQ | C123: 2.6 | D123: 2.6 | E123: 2.6 | F123: 2.6 | G123: 2.6 | H123: 2.5 | I123: 26920 | J123: 69992 | K123: 2019-02-20 | L123: 28 | M123: INE442A01024
A124: ASTEC | B124: EQ | C124: 484 | D124: 486.05 | E124: 480.15 | F124: 482 | G124: 482.5 | H124: 484.85 | I124: 5935 | J124: 2864296.65 | K124: 2019-02-20 | L124: 230 | M124: INE563J01010
A125: ASTERDM | B125: EQ | C125: 159 | D125: 159.9 | E125: 152.05 | F125: 153.05 | G125: 152.65 | H125: 158.2 | I125: 21864 | J125: 3378502.8 | K125: 2019-02-20 | L125: 644 | M125: INE914M01019
A126: ASTRAL | B126: EQ | C126: 1110.8 | D126: 1126.5 | E126: 1079.05 | F126: 1098.4 | G126: 1080 | H126: 1122.05 | I126: 212366 | J126: 234041476.3 | K126: 2019-02-20 | L126: 20658 | M126: INE006I01046
A127: ASTRAMICRO | B127: EQ | C127: 72.2 | D127: 73.75 | E127: 72.15 | F127: 72.6 | G127: 72.65 | H127: 72.25 | I127: 39475 | J127: 2866847.8 | K127: 2019-02-20 | L127: 569 | M127: INE386C01029
A128: ASTRAZEN | B128: EQ | C128: 1762.4 | D128: 1787.85 | E128: 1755 | F128: 1769.3 | G128: 1780 | H128: 1746.3 | I128: 4416 | J128: 7817527.8 | K128: 2019-02-20 | L128: 1259 | M128: INE203A01020
A129: ASTRON | B129: EQ | C129: 106.3 | D129: 106.35 | E129: 103 | F129: 103.95 | G129: 104 | H129: 105.2 | I129: 38399 | J129: 3992842.15 | K129: 2019-02-20 | L129: 568 | M129: INE646X01014
A130: ATFL | B130: EQ | C130: 567.6 | D130: 569.7 | E130: 554.95 | F130: 564.2 | G130: 564.05 | H130: 572.1 | I130: 6885 | J130: 3886357.05 | K130: 2019-02-20 | L130: 349 | M130: INE209A01019
A131: ATLANTA | B131: EQ | C131: 14.4 | D131: 14.95 | E131: 14.4 | F131: 14.7 | G131: 14.85 | H131: 14.85 | I131: 12405 | J131: 181195.35 | K131: 2019-02-20 | L131: 154 | M131: INE285H01022
A132: ATLASCYCLE | B132: BE | C132: 60 | D132: 62.9 | E132: 60 | F132: 60.85 | G132: 60.85 | H132: 60.35 | I132: 1104 | J132: 68452.8 | K132: 2019-02-20 | L132: 22 | M132: INE446A01025
A133: ATUL | B133: EQ | C133: 3403.05 | D133: 3480 | E133: 3370 | F133: 3399.1 | G133: 3411.2 | H133: 3408.55 | I133: 16052 | J133: 54719008.95 | K133: 2019-02-20 | L133: 3394 | M133: INE100A01010
A134: ATULAUTO | B134: EQ | C134: 296 | D134: 308.7 | E134: 295.45 | F134: 302.85 | G134: 303 | H134: 296.85 | I134: 15627 | J134: 4759373.3 | K134: 2019-02-20 | L134: 888 | M134: INE951D01028
A135: AUBANK | B135: EQ | C135: 566 | D135: 572.5 | E135: 558 | F135: 564.4 | G135: 566 | H135: 566 | I135: 134989 | J135: 76127930.7 | K135: 2019-02-20 | L135: 13320 | M135: INE949L01017
A136: AURIONPRO | B136: EQ | C136: 112.85 | D136: 113.45 | E136: 109.2 | F136: 112.05 | G136: 111.25 | H136: 111 | I136: 26199 | J136: 2930219.4 | K136: 2019-02-20 | L136: 286 | M136: INE132H01018
A137: AUROPHARMA | B137: EQ | C137: 708.55 | D137: 724.8 | E137: 708.55 | F137: 722.8 | G137: 722.8 | H137: 708.05 | I137: 2207544 | J137: 1582501008 | K137: 2019-02-20 | L137: 48559 | M137: INE406A01037
A138: AUSOMENT | B138: EQ | C138: 28.3 | D138: 29.7 | E138: 27.4 | F138: 29.7 | G138: 29.7 | H138: 28.3 | I138: 1181 | J138: 34479.1 | K138: 2019-02-20 | L138: 72 | M138: INE218C01016
A139: AUTOAXLES | B139: EQ | C139: 1141.7 | D139: 1150 | E139: 1119.2 | F139: 1122.9 | G139: 1120.45 | H139: 1140 | I139: 4101 | J139: 4657358.3 | K139: 2019-02-20 | L139: 522 | M139: INE449A01011
A140: AUTOIND | B140: EQ | C140: 53.2 | D140: 55 | E140: 52.75 | F140: 52.95 | G140: 53 | H140: 53.2 | I140: 9147 | J140: 490208 | K140: 2019-02-20 | L140: 189 | M140: INE718H01014
A141: AUTOLITIND | B141: EQ | C141: 29.8 | D141: 29.95 | E141: 29.2 | F141: 29.4 | G141: 29.4 | H141: 29.55 | I141: 759 | J141: 22298.2 | K141: 2019-02-20 | L141: 39 | M141: INE448A01013
A142: AVADHSUGAR | B142: EQ | C142: 412 | D142: 428 | E142: 405.05 | F142: 413.85 | G142: 414.5 | H142: 409.05 | I142: 66934 | J142: 27907282.45 | K142: 2019-02-20 | L142: 2973 | M142: INE349W01017
A143: AVANTIFEED | B143: EQ | C143: 322.2 | D143: 327 | E143: 322.2 | F143: 323.85 | G143: 323.5 | H143: 321.6 | I143: 79887 | J143: 25872884.15 | K143: 2019-02-20 | L143: 3013 | M143: INE871C01038
A144: AVTNPL | B144: EQ | C144: 22.95 | D144: 23.15 | E144: 22.4 | F144: 22.55 | G144: 22.6 | H144: 22.65 | I144: 15937 | J144: 361963.7 | K144: 2019-02-20 | L144: 155 | M144: INE488D01021
A145: AXISBANK | B145: EQ | C145: 697.6 | D145: 703 | E145: 695.3 | F145: 700.35 | G145: 699.6 | H145: 693.05 | I145: 5772687 | J145: 4040656199 | K145: 2019-02-20 | L145: 101908 | M145: INE238A01034
A146: AXISCADES | B146: EQ | C146: 58.3 | D146: 60.95 | E146: 57.1 | F146: 58.5 | G146: 59.7 | H146: 57.3 | I146: 38021 | J146: 2230243 | K146: 2019-02-20 | L146: 681 | M146: INE555B01013
A147: AXISGOLD | B147: EQ | C147: 2942 | D147: 2994.85 | E147: 2942 | F147: 2969.5 | G147: 2960.1 | H147: 2961.2 | I147: 525 | J147: 1559898.45 | K147: 2019-02-20 | L147: 70 | M147: INF846K01347
A148: AXISNIFTY | B148: EQ | C148: 1090 | D148: 1090 | E148: 1090 | F148: 1090 | G148: 1090 | H148: 1088.3 | I148: 26 | J148: 28340 | K148: 2019-02-20 | L148: 1 | M148: INF846K01ZL0
A149: AYMSYNTEX | B149: EQ | C149: 31.8 | D149: 32.2 | E149: 30 | F149: 30.3 | G149: 30 | H149: 30.5 | I149: 13498 | J149: 410930.1 | K149: 2019-02-20 | L149: 96 | M149: INE193B01039
A150: BAFNAPHARM | B150: EQ | C150: 8.7 | D150: 9 | E150: 8.35 | F150: 8.75 | G150: 8.9 | H150: 8.75 | I150: 4365 | J150: 38317.25 | K150: 2019-02-20 | L150: 157 | M150: INE878I01014
A151: BAGFILMS | B151: EQ | C151: 5.1 | D151: 5.15 | E151: 4.8 | F151: 4.9 | G151: 4.9 | H151: 5.05 | I151: 180430 | J151: 895859.4 | K151: 2019-02-20 | L151: 224 | M151: INE116D01028
A152: BAJAJ-AUTO | B152: EQ | C152: 2788 | D152: 2798 | E152: 2737.25 | F152: 2774.7 | G152: 2794.5 | H152: 2787.85 | I152: 428139 | J152: 1183766333 | K152: 2019-02-20 | L152: 29135 | M152: INE917I01010
A153: BAJAJCON | B153: EQ | C153: 347 | D153: 352.7 | E153: 347 | F153: 350.85 | G153: 350.6 | H153: 349 | I153: 25253 | J153: 8851919.75 | K153: 2019-02-20 | L153: 1768 | M153: INE933K01021
A154: BAJAJELEC | B154: EQ | C154: 437.95 | D154: 447.3 | E154: 434.05 | F154: 436.85 | G154: 437.35 | H154: 434.05 | I154: 203459 | J154: 89808488.35 | K154: 2019-02-20 | L154: 8230 | M154: INE193E01025
A155: BAJAJFINSV | B155: EQ | C155: 6007 | D155: 6045 | E155: 5932.2 | F155: 5998.45 | G155: 6005 | H155: 5969.75 | I155: 161713 | J155: 967986517 | K155: 2019-02-20 | L155: 23617 | M155: INE918I01018
A156: BAJAJHIND | B156: EQ | C156: 7.75 | D156: 7.9 | E156: 7.65 | F156: 7.8 | G156: 7.85 | H156: 7.65 | I156: 1286536 | J156: 10028044.75 | K156: 2019-02-20 | L156: 1941 | M156: INE306A01021
A157: BAJAJHLDNG | B157: EQ | C157: 3100.05 | D157: 3192.9 | E157: 3039.5 | F157: 3159.2 | G157: 3169.8 | H157: 3105.95 | I157: 94549 | J157: 296023121.6 | K157: 2019-02-20 | L157: 6207 | M157: INE118A01012
A158: BAJFINANCE | B158: EQ | C158: 2585 | D158: 2614.8 | E158: 2571 | F158: 2606.15 | G158: 2606.15 | H158: 2559.8 | I158: 1038127 | J158: 2692076867 | K158: 2019-02-20 | L158: 51897 | M158: INE296A01024
A159: BALAJITELE | B159: EQ | C159: 81.2 | D159: 81.6 | E159: 80.35 | F159: 81.2 | G159: 81.6 | H159: 80.55 | I159: 14642 | J159: 1186189.8 | K159: 2019-02-20 | L159: 432 | M159: INE794B01026
A160: BALAMINES | B160: EQ | C160: 376.9 | D160: 384.8 | E160: 374.05 | F160: 376.4 | G160: 376.05 | H160: 372.5 | I160: 12702 | J160: 4817974.2 | K160: 2019-02-20 | L160: 636 | M160: INE050E01027
A161: BALKRISHNA | B161: EQ | C161: 36.8 | D161: 36.8 | E161: 32.95 | F161: 33.6 | G161: 33.2 | H161: 34.45 | I161: 7564 | J161: 255927.25 | K161: 2019-02-20 | L161: 103 | M161: INE875R01011
A162: BALKRISIND | B162: EQ | C162: 821.05 | D162: 834.7 | E162: 821.05 | F162: 827.05 | G162: 827 | H162: 818.6 | I162: 460273 | J162: 381607824.6 | K162: 2019-02-20 | L162: 16102 | M162: INE787D01026
A163: BALLARPUR | B163: EQ | C163: 3.5 | D163: 3.65 | E163: 3.4 | F163: 3.55 | G163: 3.6 | H163: 3.5 | I163: 272152 | J163: 955339.1 | K163: 2019-02-20 | L163: 331 | M163: INE294A01037
A164: BALMLAWRIE | B164: EQ | C164: 168 | D164: 170.95 | E164: 165 | F164: 169.05 | G164: 170.95 | H164: 166 | I164: 31754 | J164: 5317687.3 | K164: 2019-02-20 | L164: 1203 | M164: INE164A01016
A165: BALPHARMA | B165: EQ | C165: 65.55 | D165: 66.45 | E165: 65.05 | F165: 65.6 | G165: 65.2 | H165: 64.55 | I165: 3648 | J165: 239957.15 | K165: 2019-02-20 | L165: 115 | M165: INE083D01012
A166: BALRAMCHIN | B166: EQ | C166: 125 | D166: 128.2 | E166: 122.1 | F166: 123.7 | G166: 123.2 | H166: 125.7 | I166: 3734340 | J166: 466745870.4 | K166: 2019-02-20 | L166: 25589 | M166: INE119A01028
A167: BANARBEADS | B167: EQ | C167: 38.5 | D167: 41.5 | E167: 38.5 | F167: 41 | G167: 41 | H167: 39.2 | I167: 2033 | J167: 81977.3 | K167: 2019-02-20 | L167: 131 | M167: INE655B01011
A168: BANARISUG | B168: EQ | C168: 1515.05 | D168: 1515.05 | E168: 1480 | F168: 1494.7 | G168: 1490 | H168: 1503.45 | I168: 292 | J168: 439228.2 | K168: 2019-02-20 | L168: 57 | M168: INE459A01010
A169: BANCOINDIA | B169: EQ | C169: 149.85 | D169: 154.4 | E169: 145.45 | F169: 146.2 | G169: 146.7 | H169: 147.85 | I169: 65613 | J169: 9655025.8 | K169: 2019-02-20 | L169: 1147 | M169: INE213C01025
A170: BANDHANBNK | B170: EQ | C170: 476.2 | D170: 478.9 | E170: 472 | F170: 477.25 | G170: 477 | H170: 475.85 | I170: 365546 | J170: 173807697.6 | K170: 2019-02-20 | L170: 16682 | M170: INE545U01014
A171: BANG | B171: EQ | C171: 43.15 | D171: 43.75 | E171: 41.95 | F171: 42.35 | G171: 43 | H171: 43.25 | I171: 43211 | J171: 1838830.25 | K171: 2019-02-20 | L171: 266 | M171: INE863I01016
A172: BANKBARODA | B172: EQ | C172: 102.5 | D172: 104.2 | E172: 102 | F172: 102.95 | G172: 103 | H172: 102.45 | I172: 11097310 | J172: 1143102937 | K172: 2019-02-20 | L172: 38990 | M172: INE028A01039
A173: BANKBEES | B173: EQ | C173: 2731.99 | D173: 2742.79 | E173: 2722.5 | F173: 2738.62 | G173: 2736.64 | H173: 2714.04 | I173: 5323 | J173: 14541991.95 | K173: 2019-02-20 | L173: 149 | M173: INF732E01078
A174: BANKINDIA | B174: EQ | C174: 81 | D174: 82.9 | E174: 80.75 | F174: 81.85 | G174: 81.65 | H174: 81.1 | I174: 6905288 | J174: 564249242.3 | K174: 2019-02-20 | L174: 22898 | M174: INE084A01016
A175: BANSWRAS | B175: EQ | C175: 65.4 | D175: 65.4 | E175: 60.2 | F175: 63.6 | G175: 64 | H175: 65.45 | I175: 1002 | J175: 62933.85 | K175: 2019-02-20 | L175: 107 | M175: INE629D01012
A176: BARTRONICS | B176: EQ | C176: 5.35 | D176: 5.65 | E176: 5.35 | F176: 5.35 | G176: 5.35 | H176: 5.35 | I176: 9291 | J176: 50012.55 | K176: 2019-02-20 | L176: 67 | M176: INE855F01034
A177: BASF | B177: EQ | C177: 1224.9 | D177: 1224.9 | E177: 1176.05 | F177: 1199.65 | G177: 1195 | H177: 1198.85 | I177: 11453 | J177: 13750914.85 | K177: 2019-02-20 | L177: 1902 | M177: INE373A01013
A178: BASML | B178: EQ | C178: 183.1 | D178: 188.6 | E178: 181 | F178: 182.45 | G178: 182 | H178: 181.05 | I178: 90 | J178: 16436.85 | K178: 2019-02-20 | L178: 17 | M178: INE186H01014
A179: BATAINDIA | B179: EQ | C179: 1265.1 | D179: 1274 | E179: 1255.55 | F179: 1269.2 | G179: 1272.8 | H179: 1264.05 | I179: 658587 | J179: 833114657.3 | K179: 2019-02-20 | L179: 38188 | M179: INE176A01028
A180: BAYERCROP | B180: EQ | C180: 4276.5 | D180: 4344.75 | E180: 4235 | F180: 4318.05 | G180: 4272.65 | H180: 4311.8 | I180: 4508 | J180: 19398010.85 | K180: 2019-02-20 | L180: 2155 | M180: INE462A01022
A181: BBL | B181: EQ | C181: 964.1 | D181: 974.8 | E181: 961.25 | F181: 968.75 | G181: 973 | H181: 964.15 | I181: 3826 | J181: 3709995 | K181: 2019-02-20 | L181: 266 | M181: INE464A01028
A182: BBTC | B182: EQ | C182: 1196.1 | D182: 1242.25 | E182: 1196.05 | F182: 1216.65 | G182: 1219.9 | H182: 1199.55 | I182: 83187 | J182: 101560930.2 | K182: 2019-02-20 | L182: 5954 | M182: INE050A01025
A183: BCG | B183: EQ | C183: 3.05 | D183: 3.1 | E183: 2.95 | F183: 3 | G183: 3.1 | H183: 3 | I183: 395569 | J183: 1206631.9 | K183: 2019-02-20 | L183: 258 | M183: INE425B01027
A184: BDL | B184: EQ | C184: 248 | D184: 249.75 | E184: 241 | F184: 242.2 | G184: 241.95 | H184: 246.15 | I184: 52097 | J184: 12730130.95 | K184: 2019-02-20 | L184: 1666 | M184: INE171Z01018
A185: BEARDSELL | B185: EQ | C185: 14.45 | D185: 15.3 | E185: 14.3 | F185: 15 | G185: 15.3 | H185: 14.95 | I185: 9474 | J185: 139888.5 | K185: 2019-02-20 | L185: 78 | M185: INE520H01022
A186: BEDMUTHA | B186: EQ | C186: 15.9 | D186: 16.9 | E186: 14.35 | F186: 14.55 | G186: 14.4 | H186: 15.9 | I186: 23745 | J186: 349826.9 | K186: 2019-02-20 | L186: 73 | M186: INE844K01012
A187: BEL | B187: EQ | C187: 77.8 | D187: 78.75 | E187: 76.3 | F187: 77.5 | G187: 77.4 | H187: 76 | I187: 12525521 | J187: 969747107.3 | K187: 2019-02-20 | L187: 54914 | M187: INE263A01024
A188: BEML | B188: EQ | C188: 757 | D188: 778 | E188: 756.55 | F188: 773.9 | G188: 775.55 | H188: 756.55 | I188: 1410493 | J188: 1081663541 | K188: 2019-02-20 | L188: 25062 | M188: INE258A01016
A189: BEPL | B189: EQ | C189: 60 | D189: 61 | E189: 58 | F189: 60.15 | G189: 60.2 | H189: 59.6 | I189: 221634 | J189: 13348213.05 | K189: 2019-02-20 | L189: 3306 | M189: INE922A01025
A190: BERGEPAINT | B190: EQ | C190: 294.2 | D190: 296.3 | E190: 288.6 | F190: 294.75 | G190: 294 | H190: 290.4 | I190: 642981 | J190: 187873442 | K190: 2019-02-20 | L190: 11293 | M190: INE463A01038
A191: BFINVEST | B191: EQ | C191: 173.5 | D191: 178.9 | E191: 168.55 | F191: 175.95 | G191: 177.85 | H191: 170.85 | I191: 71812 | J191: 12499038.65 | K191: 2019-02-20 | L191: 2856 | M191: INE878K01010
A192: BFUTILITIE | B192: EQ | C192: 152 | D192: 155.9 | E192: 150.85 | F192: 154.6 | G192: 154.75 | H192: 150.85 | I192: 322220 | J192: 49332391 | K192: 2019-02-20 | L192: 7559 | M192: INE243D01012
A193: BGLOBAL | B193: BE | C193: 2.35 | D193: 2.35 | E193: 2.35 | F193: 2.35 | G193: 2.35 | H193: 2.45 | I193: 2752 | J193: 6467.2 | K193: 2019-02-20 | L193: 14 | M193: INE224M01013
A194: BGRENERGY | B194: EQ | C194: 50.05 | D194: 51 | E194: 49.3 | F194: 49.5 | G194: 49.4 | H194: 50 | I194: 65706 | J194: 3283342.5 | K194: 2019-02-20 | L194: 1408 | M194: INE661I01014
A195: BHAGERIA | B195: EQ | C195: 224.25 | D195: 224.25 | E195: 218.5 | F195: 219.55 | G195: 221 | H195: 220.4 | I195: 3884 | J195: 853104.95 | K195: 2019-02-20 | L195: 115 | M195: INE354C01027
A196: BHAGYANGR | B196: EQ | C196: 32.2 | D196: 32.25 | E196: 30.55 | F196: 31.05 | G196: 31.05 | H196: 30.55 | I196: 2344 | J196: 72581.35 | K196: 2019-02-20 | L196: 63 | M196: INE458B01036
A197: BHAGYAPROP | B197: EQ | C197: 27.5 | D197: 31.5 | E197: 27.3 | F197: 30.2 | G197: 31 | H197: 28.5 | I197: 4738 | J197: 142548.8 | K197: 2019-02-20 | L197: 25 | M197: INE363W01018
A198: BHANDARI | B198: EQ | C198: 1.95 | D198: 1.95 | E198: 1.85 | F198: 1.9 | G198: 1.95 | H198: 1.95 | I198: 23535 | J198: 44922.85 | K198: 2019-02-20 | L198: 33 | M198: INE474E01029
A199: BHARATFIN | B199: EQ | C199: 920 | D199: 935.2 | E199: 920 | F199: 933 | G199: 930.25 | H199: 923.55 | I199: 480374 | J199: 446891935 | K199: 2019-02-20 | L199: 9974 | M199: INE180K01011
A200: BHARATFORG | B200: EQ | C200: 461 | D200: 477.95 | E200: 459.4 | F200: 473.55 | G200: 473.7 | H200: 457.6 | I200: 1494861 | J200: 700169419.2 | K200: 2019-02-20 | L200: 27022 | M200: INE465A01025
... 1440 more rows

Sheet Sheet1 (hidden)

Sheet Sheet3 (hidden)
